{"text_format":"1","workbook":"xlsx","n_sheets":6,"sheets":["Instructions","Block 1-","Calendar","Crop Table","Report","CONTROL"],"not_rendered":{"charts":1,"images":13,"macros":1,"external_links":0,"defined_names":155,"comments":1,"pivot_tables":0},"unopened":[],"bounds":{"document_bytes":16777216,"sheet_cells":100000,"rows_first":2000,"rows_last":500,"rows_between":2000,"halvings":0,"cell_chars":16384,"cell_head_chars":4096},"cells_cut":0,"cells_raw":0,"read":"whole","date_system":"1900"}

{"sheet":"Instructions","index":0,"n_rows":71,"n_cols":8,"rows_kept":71,"cut":false,"hidden":false,"merged":[[2,4,4,5],[0,0,0,2],[5,4,6,5]]}
["Disclaimer: This document has been prepared in good faith on the basis of information available at the date of publication but its accuracy and completeness cannot be guaranteed. No liability or responsibility is accepted for any errors or any negligence, omissions in the content, default or lack of care, or for any loss or damage whatsoever that may arise from actions based on any material contained in this publication. Readers who act on this information do so at their own risk and should obtain specific, independent professional advice. Products may be identified by proprietary or trade name to help readers identify particular types of products but this is not, and is not intended to be, an endorsement or recommendation of any product or manufacturer referred to."]
[]
[null,{"$f":"MRegion&\" Region\"","v":"Wide Bay Region"},null,null,"Double click the Add a Sheet cell to add more Block sheets. The upper limit of sheet numbers has not been tested so take a copy of the file to guard against it being corrupted."]
[null,{"$f":"CONTROL!F3","v":"Break crop sequence planner"},null,"Add a Sheet"]
[null,{"$f":"CONTROL!F4","v":"For the period between major crops (12, 24 or 36 months)"}]
[null,null,null,"Delete a Sheet","Double click the Delete a Sheet cell to delete a Block sheet.  Deletions will begin with the last sheet being deleted first.  The first sheet will not be deleted."]
[null,{"$f":"\"This tool was designed to assist you in the planning of crops on your property.  \"","v":"This tool was designed to assist you in the planning of crops on your property.  "}]
[null,"For more detailed financial information refer to your usual method."]
[]
[null,{"$f":"\"Start by defining each block (of land) and the previous and next \"&TEXT(CONTROL!F5,\"#\")&\" dates.\"","v":"Start by defining each block (of land) and the previous and next Crop dates."}]
[null,null,null,"The Date Picker / Calendar",null,null,null,"Click on the day number and then click"]
[null,"At the top left of the sheet, enter a name for the block that is meaningful to you.  This will be displayed",null,"Double click on any input capable (green)",null,"Click on the Year for a list of years to","Click on the Month for a list of months to","Okay to bring the selected date into the"]
[null,"in various places to identify the data being viewed.",null,"date cell to access the date picker.",null,"select from.","select from.","cell on the sheet."]
[null,"Enter the size of the block (in hectares).  This will be used in the Gross Margin calculations."]
[null,"The Total min est. GM (yellow cell) will be calcualted.  It is a tally of the Total min est. GM values for "]
[null,"all crops defined on the sheet."]
[]
[]
[]
[null,{"$f":"\"At the top right of the sheet, enter the date of the last \"&TEXT(CONTROL!F5,\"#\")&\" harvest and the anticipated next\"","v":"At the top right of the sheet, enter the date of the last Crop harvest and the anticipated next"}]
[null,"planting date.  You can double click on any date cell to access the date picker / calendar.  The default date"]
[null,"will be the previous crop date plus one day."]
[null,{"$f":"\"The Years between \"&TEXT(CONTROL!F5,\"#\")&\"s (yellow cell) will be calculated from the dates entered above.\"","v":"The Years between Crops (yellow cell) will be calculated from the dates entered above."}]
[]
[]
[null,"Double click on the blue cells at the top of the sheet to perform the described functions."]
[]
[]
[]
[]
[]
[]
[null,"Now define each crop, in sequence, that you are planning to plant.",null,null,null,null,null,"NOTE: The date shown above the Today"]
[null,"The green cells require user input.  The yellow cells are calcualted based on input ",null,null,null,"Date picker by Trevor Eyre",null,"and Okay buttons is the date that will"]
[null,"in the green cells",null,null,null,null,null,"be brought back to the sheet."]
[]
[null,"For each crop, can enter the following information:"]
[null,"Crop Type : Select from drop down list in the cell."]
[null,"Variety : Select from drop down list in cell.  Variety options will",null,null,"Note: If Growing days is zero (either calculated or"]
[null,"be limited by the selection made in the Crop Type Cell.",null,null,"overridden), it will be red.  You must enter a number"]
[null,null,null,null,"of days."]
[null,"Planting Date : Double click in the cell for date picker / calendar. "]
[null,"Default date will be the day after the previous crops harvest date.",null,null,"Note: If you see the message \"Delete to reset -->\""]
[null,{"$f":"\"Growing Period : Automatically populated, but can be overridden.  \"","v":"Growing Period : Automatically populated, but can be overridden.  "},null,null,"in red, next to the Growing period cell, this "]
[null,"Based on Growing Season, Crop Type and Variety.",null,null,"indicates that the formula calculated growing"]
[null,"Approx Harvest Date : Calculated from Planting Date plus Growing Period.",null,null,"period has been manually overridden.  If you "]
[null,null,null,null,"position the cursor on the cell and press"]
[null,"Min yield t/ha : The minimum tonnes of produce you expect from this crop.",null,null,"delete, the formula will be reinstated."]
[null,"Min price $/t : The minimum price per tonne you expect to receive for this crop."]
[null,"Expected costs $/ha : The amount per hectare you expect this crop to cost you"]
[null,"to plant/maintain/harvest."]
[null,"OR Leasing income/ha : If you lease the land for others to use, the amount per"]
[null,"hectare you expect to receive.  This can be used in conjunction"]
[null,"with, or instead of the previous three cells."]
[]
[null,"Min estimated GM/ha : Calculated. Expected yield and/or leasing income less expected cost - per hectare."]
[null,"Total min est. GM : Calculated.  Min estimated GM/ha multiplied by the number of Size (ha) - (from top left of sheet)."]
[]
[null,"Enter your notes here : A space for you to enter any notes you would like to make.  The row will expand if you keep typing."]
[]
[null,"You can double click on the blue cells to Show/Hide Agronomic notes for each group of 4 crops or to clear the input cells for "]
[null,"each crop."]
[]
[null,"The Gantt chart on each Block sheet, and the Calendar sheet will show if you have any overlapping date ranges.  "]
[]
[null,"You can print the calendar block by block by selecting the block from the drop-down list and double clicking the Print Calendar cell."]
[]
[null,"You can also view the Report sheet and print details for either a single block or all used block sheets by double clicking in the cells"]
[null,"indicated."]
[null,"NOTE: A block sheet is deemed to be used when the first Crop Type has a value selected.  If this in not the case, the entire block"]
[null,"will be hidden in the Report sheet."]

{"sheet":"Block 1-","index":1,"n_rows":198,"n_cols":34,"rows_kept":198,"cut":false,"hidden":false,"merged":[[2,9,2,19],[0,9,0,19],[1,9,1,19],[38,21,38,26],[41,21,41,26],[53,21,53,26],[31,15,31,16],[31,19,31,20],[28,17,28,18],[30,17,30,18],[31,17,31,18],[32,19,32,20],[34,15,34,16],[34,19,34,20],[37,15,37,16],[37,19,37,20],[75,15,75,20],[22,21,22,22],[22,25,22,26],[23,21,23,22],[23,25,23,26],[24,21,24,22],[24,25,24,26],[30,15,30,16],[31,21,31,22],[31,25,31,26],[75,21,75,26],[65,21,65,26],[67,21,67,26],[58,21,58,26],[56,21,56,26],[71,21,71,26],[33,23,33,24],[37,21,37,22],[30,5,30,6],[28,5,28,6],[22,19,22,20],[23,15,23,16],[23,19,23,20],[24,15,24,16],[24,19,24,20],[25,15,25,16],[25,19,25,20],[26,15,26,16],[26,19,26,20],[23,17,23,18],[24,17,24,18],[26,17,26,18],[27,19,27,20],[28,15,28,16],[28,19,28,20],[29,15,29,16],[29,17,29,18],[29,19,29,20],[25,13,25,14],[22,23,22,24],[24,7,24,8],[36,13,36,14],[37,9,37,10],[37,13,37,14],[35,11,35,12],[35,23,35,24],[36,21,36,22],[32,13,32,14],[32,3,32,4],[31,3,31,4],[31,7,31,8],[25,11,25,12],[32,7,32,8],[34,3,34,4],[25,17,25,18],[30,19,30,20],[22,15,22,16],[26,13,26,14],[27,9,27,10],[27,13,27,14],[28,9,28,10],[28,13,28,14],[29,9,29,10],[29,11,29,12],[30,3,30,4],[30,7,30,8],[22,9,22,10],[22,13,22,14],[23,9,23,10],[23,13,23,14],[24,9,24,10],[24,13,24,14],[33,11,33,12],[23,11,23,12],[24,11,24,12],[22,3,22,4],[22,7,22,8],[23,3,23,4],[23,7,23,8],[24,3,24,4],[25,3,25,4],[25,7,25,8],[26,3,26,4],[26,7,26,8],[22,5,22,6],[27,3,27,4],[27,7,27,8],[28,3,28,4],[28,7,28,8],[29,3,29,4],[29,5,29,6],[29,7,29,8],[88,25,88,26],[89,25,89,26],[90,21,90,22],[90,25,90,26],[91,21,91,22],[91,25,91,26],[83,25,83,26],[84,21,84,22],[73,21,73,26],[26,5,26,6],[24,5,24,6],[23,5,23,6],[35,5,35,6],[25,5,25,6],[34,5,34,6],[32,5,32,6],[31,5,31,6],[33,5,33,6],[75,3,75,8],[36,9,36,10],[37,25,37,26],[51,21,51,26],[49,21,49,26],[81,9,81,10],[81,13,81,14],[77,16,77,20],[77,10,77,14],[83,17,83,18],[77,4,77,8],[85,23,85,24],[87,5,87,6],[87,11,87,12],[87,17,87,18],[87,23,87,24],[85,5,85,6],[85,11,85,12],[85,17,85,18],[81,7,81,8],[45,15,45,20],[83,23,83,24],[84,11,84,12],[52,9,52,14],[83,9,83,10],[83,13,83,14],[84,9,84,10],[84,13,84,14],[85,9,85,10],[85,13,85,14],[86,9,86,10],[65,9,65,14],[67,9,67,14],[61,9,61,14],[36,25,36,26],[40,3,40,8],[40,21,40,26],[76,4,76,7],[44,21,44,26],[64,3,64,8],[42,3,42,8],[47,21,47,26],[39,21,39,26],[25,9,25,10],[95,19,95,20],[34,13,34,14],[25,21,25,22],[25,25,25,26],[26,21,26,22],[26,25,26,26],[27,21,27,22],[27,25,27,26],[28,21,28,22],[28,25,28,26],[29,21,29,22],[29,23,29,24],[29,25,29,26],[30,21,30,22],[30,25,30,26],[81,21,81,22],[81,25,81,26],[82,21,82,22],[82,25,82,26],[83,21,83,22],[73,9,73,14],[35,9,35,10],[155,21,155,22],[85,7,85,8],[86,3,86,4],[86,7,86,8],[87,3,87,4],[87,7,87,8],[88,3,88,4],[88,5,88,6],[88,7,88,8],[89,3,89,4],[89,7,89,8],[90,3,90,4],[90,7,90,8],[91,3,91,4],[91,7,91,8],[93,3,93,4],[86,13,86,14],[87,9,87,10],[87,13,87,14],[88,9,88,10],[88,11,88,12],[88,13,88,14],[92,5,92,6],[85,15,85,16],[85,19,85,20],[86,15,86,16],[134,3,134,8],[97,3,97,8],[93,5,93,6],[140,3,140,4],[141,3,141,4],[143,5,143,6],[157,3,157,8],[147,11,147,12],[140,9,140,10],[140,13,140,14],[141,9,141,10],[141,13,141,14],[142,9,142,10],[142,13,142,14],[143,9,143,10],[143,13,143,14],[144,9,144,10],[144,13,144,14],[145,9,145,10],[145,13,145,14],[146,9,146,10],[146,13,146,14],[147,9,147,10],[147,13,147,14],[148,9,148,10],[148,13,148,14],[157,9,157,14],[156,9,156,14],[150,13,150,14],[149,9,149,10],[149,13,149,14],[150,9,150,10],[156,3,156,8],[151,11,151,12],[150,11,150,12],[153,7,153,8],[154,7,154,8],[155,7,155,8],[125,3,125,8],[99,3,99,8],[102,3,102,8],[110,3,110,8],[111,3,111,8],[106,3,106,8],[126,3,126,8],[143,3,143,4],[144,3,144,4],[145,3,145,4],[103,3,103,8],[120,3,120,8],[122,3,122,8],[123,3,123,8],[145,7,145,8],[146,7,146,8],[147,7,147,8],[109,3,109,8],[112,3,112,8],[113,3,113,8],[114,3,114,8],[115,3,115,8],[116,3,116,8],[140,5,140,6],[118,3,118,8],[119,3,119,8],[127,3,127,8],[128,3,128,8],[121,3,121,8],[34,7,34,8],[35,3,35,4],[35,7,35,8],[105,3,105,8],[105,9,105,14],[100,3,100,8],[100,9,100,14],[100,15,100,20],[102,15,102,20],[101,15,101,20],[147,17,147,18],[94,3,94,4],[94,7,94,8],[95,3,95,4],[95,7,95,8],[96,3,96,4],[94,17,94,18],[96,7,96,8],[84,17,84,18],[101,3,101,8],[88,15,88,16],[90,15,90,16],[90,19,90,20],[91,15,91,16],[91,19,91,20],[85,3,85,4],[83,3,83,4],[84,3,84,4],[81,5,81,6],[81,3,81,4],[50,9,50,14],[89,5,89,6],[90,9,90,10],[90,13,90,14],[91,9,91,10],[91,13,91,14],[93,9,93,10],[82,15,82,16],[83,19,83,20],[84,15,84,16],[84,19,84,20],[93,7,93,8],[91,23,91,24],[84,5,84,6],[90,5,90,6],[90,11,90,12],[83,5,83,6],[83,11,83,12],[84,7,84,8],[82,19,82,20],[89,21,89,22],[93,13,93,14],[89,9,89,10],[89,13,89,14],[93,15,93,16],[86,19,86,20],[87,15,87,16],[87,19,87,20],[82,7,82,8],[83,7,83,8],[89,11,89,12],[89,17,89,18],[152,5,152,6],[152,11,152,12],[152,17,152,18],[148,5,148,6],[148,11,148,12],[142,3,142,4],[152,19,152,20],[141,15,141,16],[153,19,153,20],[154,15,154,16],[157,15,157,20],[171,21,171,26],[173,15,173,20],[153,5,153,6],[153,11,153,12],[153,17,153,18],[153,23,153,24],[150,5,150,6],[155,15,155,16],[155,19,155,20],[150,7,150,8],[152,7,152,8],[147,5,147,6],[146,3,146,4],[147,3,147,4],[148,3,148,4],[149,3,149,4],[150,3,150,4],[154,3,154,4],[155,3,155,4],[148,7,148,8],[149,7,149,8],[75,9,75,14],[34,17,34,18],[195,22,195,26],[168,3,168,8],[167,3,167,8],[166,3,166,8],[169,3,169,8],[169,9,169,14],[169,15,169,20],[169,21,169,26],[170,3,170,8],[170,9,170,14],[170,15,170,20],[170,21,170,26],[171,3,171,8],[193,21,193,26],[194,4,194,7],[194,10,194,13],[194,16,194,19],[194,22,194,25],[167,9,167,14],[166,9,166,14],[173,9,173,14],[193,3,193,8],[173,21,173,26],[110,15,110,20],[153,3,153,4],[159,9,159,14],[153,9,153,10],[153,13,153,14],[193,9,193,14],[193,15,193,20],[168,9,168,14],[172,3,172,8],[172,9,172,14],[31,11,31,12],[32,11,32,12],[34,11,34,12],[61,15,61,20],[59,15,59,20],[57,15,57,20],[53,15,53,20],[49,15,49,20],[47,15,47,20],[56,9,56,14],[107,3,107,8],[107,9,107,14],[102,9,102,14],[108,15,108,20],[109,15,109,20],[110,9,110,14],[111,9,111,14],[112,9,112,14],[91,5,91,6],[91,11,91,12],[91,17,91,18],[82,5,82,6],[82,11,82,12],[98,9,98,14],[153,15,153,16],[93,11,93,12],[93,17,93,18],[149,5,149,6],[144,5,144,6],[26,11,26,12],[28,11,28,12],[30,11,30,12],[27,15,27,16],[32,15,32,16],[29,13,29,14],[30,9,30,10],[30,13,30,14],[31,9,31,10],[31,13,31,14],[41,9,41,14],[38,9,38,14],[58,9,58,14],[53,9,53,14],[49,9,49,14],[47,9,47,14],[50,15,50,20],[35,13,35,14],[32,9,32,10],[34,9,34,10],[26,9,26,10],[35,17,35,18],[32,17,32,18],[40,9,40,14],[40,15,40,20],[44,15,44,20],[42,9,42,14],[42,15,42,20],[54,9,54,14],[33,17,33,18],[141,21,141,22],[141,25,141,26],[96,15,96,16],[96,19,96,20],[134,15,134,20],[94,21,94,22],[94,25,94,26],[95,21,95,22],[133,9,133,14],[113,9,113,14],[114,9,114,14],[115,9,115,14],[116,9,116,14],[130,9,130,14],[100,21,100,26],[101,21,101,26],[99,9,99,14],[96,21,96,22],[96,25,96,26],[118,9,118,14],[94,11,94,12],[104,9,104,14],[95,25,95,26],[109,9,109,14],[136,10,136,14],[136,16,136,20],[141,23,141,24],[22,17,22,18],[22,11,22,12],[149,11,149,12],[149,17,149,18],[149,23,149,24],[144,11,144,12],[144,17,144,18],[144,23,144,24],[146,11,146,12],[146,17,146,18],[146,23,146,24],[142,11,142,12],[142,17,142,18],[142,23,142,24],[82,17,82,18],[82,23,82,24],[25,23,25,24],[43,15,43,20],[41,15,41,20],[43,21,43,26],[84,23,84,24],[135,22,135,25],[136,22,136,26],[140,15,140,16],[81,11,81,12],[93,19,93,20],[76,10,76,13],[111,15,111,20],[112,15,112,20],[113,15,113,20],[112,21,112,26],[117,9,117,14],[143,11,143,12],[142,15,142,16],[150,19,150,20],[149,19,149,20],[150,15,150,16],[147,19,147,20],[125,15,125,20],[126,9,126,14],[126,15,126,20],[114,15,114,20],[115,15,115,20],[116,15,116,20],[117,15,117,20],[106,9,106,14],[141,11,141,12],[141,17,141,18],[148,17,148,18],[98,3,98,8],[117,3,117,8],[108,3,108,8],[140,17,140,18],[97,15,97,20],[83,15,83,16],[95,15,95,16],[101,9,101,14],[135,10,135,13],[140,11,140,12],[90,17,90,18],[197,1,197,26],[130,3,130,8],[131,3,131,8],[132,3,132,8],[133,3,133,8],[135,4,135,7],[146,5,146,6],[142,5,142,6],[141,7,141,8],[142,7,142,8],[143,7,143,8],[144,7,144,8],[140,7,140,8],[133,21,133,26],[130,15,130,20],[131,15,131,20],[132,15,132,20],[133,15,133,20],[140,19,140,20],[164,15,164,20],[195,4,195,8],[195,10,195,14],[195,16,195,20],[155,25,155,26],[156,15,156,20],[131,9,131,14],[132,9,132,14],[135,16,135,19],[148,19,148,20],[143,19,143,20],[144,15,144,16],[144,19,144,20],[122,9,122,14],[122,15,122,20],[122,21,122,26],[123,9,123,14],[123,15,123,20],[123,21,123,26],[129,15,129,20],[129,21,129,26],[141,19,141,20],[134,9,134,14],[167,21,167,26],[166,21,166,26],[165,21,165,26],[164,21,164,26],[163,21,163,26],[162,21,162,26],[161,21,161,26],[160,21,160,26],[165,9,165,14],[164,9,164,14],[150,17,150,18],[168,15,168,20],[167,15,167,20],[166,15,166,20],[165,15,165,20],[162,15,162,20],[119,15,119,20],[120,15,120,20],[118,15,118,20],[126,21,126,26],[127,9,127,14],[127,15,127,20],[127,21,127,26],[128,9,128,14],[128,15,128,20],[128,21,128,26],[156,21,156,26],[163,9,163,14],[148,23,148,24],[125,21,125,26],[154,19,154,20],[148,15,148,16],[125,9,125,14],[154,9,154,10],[154,13,154,14],[142,25,142,26],[152,9,152,10],[152,13,152,14],[168,21,168,26],[152,23,152,24],[150,23,150,24],[148,25,148,26],[149,21,149,22],[160,15,160,20],[159,15,159,20],[152,25,152,26],[153,21,153,22],[154,21,154,22],[154,25,154,26],[132,21,132,26],[153,25,153,26],[119,21,119,26],[120,21,120,26],[121,21,121,26],[140,23,140,24],[92,11,92,12],[92,17,92,18],[71,15,71,20],[73,15,73,20],[97,21,97,26],[98,21,98,26],[113,21,113,26],[114,21,114,26],[115,21,115,26],[116,21,116,26],[149,25,149,26],[159,21,159,26],[158,21,158,26],[134,21,134,26],[145,21,145,22],[145,25,145,26],[146,21,146,22],[146,25,146,26],[147,21,147,22],[147,23,147,24],[152,15,152,16],[149,15,149,16],[64,21,64,26],[93,23,93,24],[93,25,93,26],[85,21,85,22],[85,25,85,26],[86,21,86,22],[86,25,86,26],[87,21,87,22],[87,25,87,26],[88,21,88,22],[88,23,88,24],[93,21,93,22],[89,15,89,16],[89,19,89,20],[88,17,88,18],[88,19,88,20],[77,22,77,26],[81,15,81,16],[81,19,81,20],[84,25,84,26],[89,23,89,24],[90,23,90,24],[147,25,147,26],[143,23,143,24],[143,17,143,18],[117,21,117,26],[130,21,130,26],[131,21,131,26],[140,21,140,22],[140,25,140,26],[72,1,72,2],[70,1,70,2],[108,9,108,14],[151,5,151,6],[124,3,124,8],[43,1,43,2],[6,18,6,19],[5,18,5,19],[18,24,18,26],[17,24,17,26],[23,23,23,24],[24,23,24,24],[26,23,26,24],[28,23,28,24],[30,23,30,24],[35,15,35,16],[35,19,35,20],[36,15,36,16],[36,19,36,20],[31,23,31,24],[32,23,32,24],[34,23,34,24],[32,21,32,22],[41,3,41,8],[49,3,49,8],[57,3,57,8],[32,25,32,26],[148,21,148,22],[76,16,76,19],[69,15,69,20],[69,21,69,26],[64,9,64,14],[34,21,34,22],[34,25,34,26],[35,21,35,22],[35,25,35,26],[38,3,38,8],[39,3,39,8],[39,9,39,14],[39,15,39,20],[51,9,51,14],[51,15,51,20],[71,9,71,14],[38,15,38,20],[56,15,56,20],[58,15,58,20],[38,1,38,2],[71,1,71,2],[67,1,67,2],[65,1,65,2],[59,1,59,2],[57,1,57,2],[53,1,53,2],[51,1,51,2],[49,1,49,2],[47,1,47,2],[45,1,45,2],[65,3,65,8],[67,3,67,8],[71,3,71,8],[57,9,57,14],[55,9,55,14],[42,1,42,2],[64,15,64,20],[63,1,63,2],[52,1,52,2],[55,1,55,2],[41,1,41,2],[39,1,39,2],[40,1,40,2],[36,3,36,4],[36,7,36,8],[37,3,37,4],[37,7,37,8],[63,3,63,8],[63,9,63,14],[63,15,63,20],[63,21,63,26],[55,3,55,8],[55,15,55,20],[55,21,55,26],[59,3,59,8],[60,1,60,2],[56,1,56,2],[54,1,54,2],[50,1,50,2],[48,1,48,2],[46,1,46,2],[44,1,44,2],[61,1,61,2],[48,3,48,8],[48,9,48,14],[48,15,48,20],[48,21,48,26],[62,1,62,2],[61,3,61,8],[62,9,62,14],[62,15,62,20],[58,1,58,2],[72,15,72,20],[72,21,72,26],[69,1,69,2],[69,3,69,8],[69,9,69,14],[102,21,102,26],[103,21,103,26],[99,15,99,20],[107,15,107,20],[106,15,106,20],[52,3,52,8],[50,3,50,8],[62,3,62,8],[105,15,105,20],[104,15,104,20],[62,21,62,26],[60,3,60,8],[60,9,60,14],[60,15,60,20],[60,21,60,26],[58,3,58,8],[52,15,52,20],[97,1,97,2],[98,1,98,2],[99,1,99,2],[100,1,100,2],[101,1,101,2],[73,1,73,2],[102,1,102,2],[128,1,128,2],[129,1,129,2],[112,1,112,2],[113,1,113,2],[114,1,114,2],[115,1,115,2],[116,1,116,2],[117,1,117,2],[118,1,118,2],[119,1,119,2],[120,1,120,2],[103,1,103,2],[104,1,104,2],[105,1,105,2],[106,1,106,2],[107,1,107,2],[108,1,108,2],[109,1,109,2],[110,1,110,2],[111,1,111,2],[121,1,121,2],[125,1,125,2],[64,1,64,2],[122,1,122,2],[123,1,123,2],[124,1,124,2],[124,9,124,14],[124,15,124,20],[124,21,124,26],[74,3,74,8],[74,1,74,2],[72,3,72,8],[72,9,72,14],[161,1,161,2],[162,1,162,2],[92,23,92,24],[104,21,104,26],[105,21,105,26],[106,21,106,26],[74,21,74,26],[74,15,74,20],[74,9,74,14],[70,21,70,26],[68,3,68,8],[68,9,68,14],[68,15,68,20],[68,21,68,26],[66,3,66,8],[66,9,66,14],[68,1,68,2],[118,21,118,26],[66,1,66,2],[126,1,126,2],[127,1,127,2],[82,3,82,4],[73,3,73,8],[98,15,98,20],[81,23,81,24],[81,17,81,18],[121,15,121,20],[119,9,119,14],[120,9,120,14],[121,9,121,14],[94,15,94,16],[94,19,94,20],[103,15,103,20],[110,21,110,26],[108,21,108,26],[109,21,109,26],[111,21,111,26],[97,9,97,14],[94,9,94,10],[94,13,94,14],[95,9,95,10],[95,13,95,14],[96,9,96,10],[96,13,96,14],[82,9,82,10],[82,13,82,14],[94,5,94,6],[103,9,103,14],[104,3,104,8],[107,21,107,26],[99,21,99,26],[76,22,76,25],[94,23,94,24],[42,21,42,26],[56,3,56,8],[54,3,54,8],[54,15,54,20],[54,21,54,26],[47,3,47,8],[70,3,70,8],[70,9,70,14],[70,15,70,20],[43,3,43,8],[61,21,61,26],[59,21,59,26],[57,21,57,26],[45,9,45,14],[43,9,43,14],[53,3,53,8],[51,3,51,8],[45,3,45,8],[65,15,65,20],[67,15,67,20],[52,21,52,26],[66,15,66,20],[66,21,66,26],[46,3,46,8],[46,9,46,14],[46,15,46,20],[46,21,46,26],[44,3,44,8],[44,9,44,14],[45,21,45,26],[50,21,50,26],[59,9,59,14],[163,15,163,20],[142,19,142,20],[151,17,151,18],[151,23,151,24],[160,9,160,14],[157,21,157,26],[145,15,145,16],[145,19,145,20],[146,15,146,16],[146,19,146,20],[147,15,147,16],[163,1,163,2],[163,3,163,8],[162,3,162,8],[158,15,158,20],[161,3,161,8],[160,3,160,8],[161,15,161,20],[152,21,152,22],[150,25,150,26],[144,25,144,26],[143,15,143,16],[143,21,143,22],[143,25,143,26],[150,21,150,22],[142,21,142,22],[144,21,144,22],[152,3,152,4],[155,9,155,10],[155,13,155,14],[162,9,162,14],[161,9,161,14],[166,1,166,2],[167,1,167,2],[168,1,168,2],[169,1,169,2],[129,3,129,8],[129,9,129,14],[164,1,164,2],[165,1,165,2],[178,3,178,8],[178,9,178,14],[179,3,179,8],[179,9,179,14],[175,3,175,8]],"merged_total":1125,"flags":["merged_cut"]}
[null,null,null,null,null,null,null,null,null,{"$f":"CONTROL!F2&\" Region\"","v":"Wide Bay Region"},null,null,null,null,null,null,null,null,null,null,null,"Yellow cells are calculated.\nDouble click blue cells to perform action.\nRed cells require attention.\nSee Colour cells to the right -->\nIn Crop section: Colour 2 cells require input.\nColour 1 cells also accept user input.\nFor best results, use Crops 1-12 sequentially.",null,null,null,null,null,null,null,null,null,null,null,"Change colours in the cells below and double click to apply to sheet."]
[null,null,null,null,null,null,null,null,null,{"$f":"CONTROL!F3","v":"Break crop sequence planner"},null,null,null,null,null,null,null,null,null,null,null,null,null,null,null,null,null,null,null,null,null,null,null,"Change Colour 1"]
[null,null,null,null,null,null,null,null,null,{"$f":"CONTROL!F4","v":"For the period between major crops (12, 24 or 36 months)"},null,null,null,null,null,null,null,null,null,null,null,null,null,null,null,null,null,null,null,null,null,null,null,"Change Colour 2"]
[null,null,null,null,null,null,null,null,null,{"$f":"cShtDesc&\" - \"&B7","v":"Block 1: - "},null,null,null,null,null,null,null,null,null,null,null,null,null,null,null,null,null,null,null,null,null,null,null,"Reset to Default Colours"]
[null,"Block 1:",null,null,null,null,null,null,null,null,null,null,null,null,null,null,null,null,null,null,null,null,null,null,{"$f":"TEXT(CONTROL!F5,\"#\")&\"s:\"","v":"Crops:"}]
[null,"Name/Description:",null,null,null,null,null,null,null,null,null,null,null,null,null,null,null,"LH Cane less 30 days",{"$f":"dtLHCane-30","v":"2019-12-02"},null,null,null,null,null,"Last Harvest Date:"]
[null,null,null,null,null,null,null,null,null,null,null,null,null,null,null,null,null,"NP Cane +30 days",{"$f":"dtNPCane+30","v":"2023-01-30"},null,null,null,null,null,"2020-01-01"]
[null,null,null,null,{"$f":"\"Previous \"&CONTROL!F5","v":"Previous Crop"},{"$f":"F23& \" - \"&F24&\" - \"&F25","v":"Crop 1 -  - "},{"$f":"L23& \" - \"&L24&\" - \"&L25","v":"Crop 2 -  - "},{"$f":"R23& \" - \"&R24&\" - \"&R25","v":"Crop 3 -  - "},{"$f":"X23& \" - \"&X24&\" - \"&X25","v":"Crop 4 -  - "},{"$f":"F82& \" - \"&F83&\" - \"&F84","v":"Crop 5 -  - "},{"$f":"L82& \" - \"&L83&\" - \"&L84","v":"Crop 6 -  - "},{"$f":"R82& \" - \"&R83&\" - \"&R84","v":"Crop 7 -  - "},{"$f":"X82& \" - \"&X83&\" - \"&X84","v":"Crop 8 -  - "},{"$f":"F141& \" - \"&F142&\" - \"&F143","v":"Crop 9 -  - "},{"$f":"L141& \" - \"&L142&\" - \"&L143","v":"Crop 10 -  - "},{"$f":"R141& \" - \"&R142&\" - \"&R143","v":"Crop 11 -  - "},{"$f":"X141& \" - \"&X142&\" - \"&X143","v":"Crop 12 -  - "},{"$f":"\"Next \"&CONTROL!F5","v":"Next Crop"}]
[null,"Size (ha):",null,null,{"$f":"Y7-E10","v":"2019-12-02"},{"$f":"F27","v":"00:00:00"},{"$f":"L27","v":"00:00:00"},{"$f":"R27","v":"00:00:00"},{"$f":"X27","v":"00:00:00"},{"$f":"F86","v":"00:00:00"},{"$f":"L86","v":"00:00:00"},{"$f":"R86","v":"00:00:00"},{"$f":"X86","v":"00:00:00"},{"$f":"F145","v":"00:00:00"},{"$f":"L145","v":"00:00:00"},{"$f":"R145","v":"00:00:00"},{"$f":"X145","v":"00:00:00"},{"$f":"Y10","v":"2022-12-31"},null,null,null,null,null,null,"Next Planting Date:"]
[null,0,null,null,30,{"$f":"F28","v":0},{"$f":"L28","v":0},{"$f":"R28","v":0},{"$f":"X28","v":0},{"$f":"F87","v":0},{"$f":"L87","v":0},{"$f":"R87","v":0},{"$f":"X87","v":0},{"$f":"F146","v":0},{"$f":"L146","v":0},{"$f":"R146","v":0},{"$f":"X146","v":0},30,null,null,null,null,null,null,"2022-12-31"]
[]
[null,"Total min est. GM:",null,null,{"$f":"\"Enter a date, or double click to use date picker/calendar.  This should be the date of the last \"&CONTROL!F5&\" Harvest on this block.\"","v":"Enter a date, or double click to use date picker/calendar.  This should be the date of the last Crop Harvest on this block."},null,null,null,null,null,null,null,null,null,null,null,null,null,null,null,null,null,null,null,{"$f":"\"Years between \"&CONTROL!F5&\"s\"","v":"Years between Crops"}]
[null,{"$f":"SUM(F36,L36,R36,X36,F95,L95,R95,X95,F154,L154,R154,X154)","v":0},null,null,{"$f":"\"Enter a date or double click to use date picker/calendar.  This is the intended date for planting the next \"&CONTROL!F5&\".\"","v":"Enter a date or double click to use date picker/calendar.  This is the intended date for planting the next Crop."},null,null,null,null,null,null,null,null,null,null,null,null,null,null,null,null,null,null,null,{"$f":"YEARFRAC(dtLHCane,dtNPCane)","v":3}]
[null,null,null,null,null,null,null,null,null,null,null,null,null,null,null,null,null,null,null,null,null,null,null,null,"Double click any of the green date cells on this sheet to access the date picker/calendar."]
[]
[]
[]
[null,"Double click below to Show/Hide all Agronomic Notes:",null,null,null,null,null,null,null,null,null,null,null,null,null,null,null,null,null,null,null,null,null,null,"Double click below to Clear Crop input cells for the entire Sheet:"]
[null,"Show",null,null,null,null,null,null,null,null,null,null,null,null,null,null,null,null,null,null,null,null,null,null,"Clear Sheet"]
[]
[]
[null,"Key",null,null,{"$f":"F24&\"-\"&F25","v":"-"},null,null,null,null,null,{"$f":"L24&\"-\"&L25","v":"-"},null,null,null,null,null,{"$f":"R24&\"-\"&R25","v":"-"},null,null,null,null,null,{"$f":"X24&\"-\"&X25","v":"-"}]
[null,null,null,null,null,"Crop 1",null,null,null,null,null,"Crop 2",null,null,null,null,null,"Crop 3",null,null,null,null,null,"Crop 4"]
[null,"Crop Type"]
[null,"Variety"]
[null,null,null,null,null,{"$f":"IF(AND(F24<>\"\",_xlfn.IFNA(VLOOKUP(F24&\"-\"&F25,lstKey,1,FALSE),1)=1),\"Select a Variety\",\"\")","v":""},null,null,null,null,null,{"$f":"IF(AND(L24<>\"\",_xlfn.IFNA(VLOOKUP(L24&\"-\"&L25,lstKey,1,FALSE),1)=1),\"Select a Variety\",\"\")","v":""},null,null,null,null,null,{"$f":"IF(AND(R24<>\"\",_xlfn.IFNA(VLOOKUP(R24&\"-\"&R25,lstKey,1,FALSE),1)=1),\"Select a Variety\",\"\")","v":""},null,null,null,null,null,{"$f":"IF(AND(X24<>\"\",_xlfn.IFNA(VLOOKUP(X24&\"-\"&X25,lstKey,1,FALSE),1)=1),\"Select a Variety\",\"\")","v":""}]
[null,"Planting date"]
[null,"Growing period (days)",null,{"$f":"IF( _xlfn.ISFORMULA(F28),\"Override if req'd -->\",\"Delete to reset -->\")","v":"Override if req'd -->"},null,{"$f":"_xlfn.IFNA(IF(G28=rfSummer,VLOOKUP(E22,lstCropGrowPd,4,FALSE),IF(G28=rfSpring,VLOOKUP(E22,lstCropGrowPd,5,FALSE),VLOOKUP(E22,lstCropGrowPd,6,FALSE))),0)","v":0},"Summer",null,null,{"$f":"IF( _xlfn.ISFORMULA(L28),\"Override if req'd -->\",\"Delete to reset -->\")","v":"Override if req'd -->"},null,{"$f":"_xlfn.IFNA(IF(M28=rfSummer,VLOOKUP(K22,lstCropGrowPd,4,FALSE),IF(M28=rfSpring,VLOOKUP(K22,lstCropGrowPd,5,FALSE),VLOOKUP(K22,lstCropGrowPd,6,FALSE))),0)","v":0},"Summer",null,null,{"$f":"IF( _xlfn.ISFORMULA(R28),\"Override if req'd -->\",\"Delete to reset -->\")","v":"Override if req'd -->"},null,{"$f":"_xlfn.IFNA(IF(S28=rfSummer,VLOOKUP(Q22,lstCropGrowPd,4,FALSE),IF(S28=rfSpring,VLOOKUP(Q22,lstCropGrowPd,5,FALSE),VLOOKUP(Q22,lstCropGrowPd,6,FALSE))),0)","v":0},"Summer",null,null,{"$f":"IF( _xlfn.ISFORMULA(X28),\"Override if req'd -->\",\"Delete to reset -->\")","v":"Override if req'd -->"},null,{"$f":"_xlfn.IFNA(IF(Y28=rfSummer,VLOOKUP(W22,lstCropGrowPd,4,FALSE),IF(Y28=rfSpring,VLOOKUP(W22,lstCropGrowPd,5,FALSE),VLOOKUP(W22,lstCropGrowPd,6,FALSE))),0)","v":0},"Summer"]
[null,"Approx. Harvest date",null,null,null,{"$f":"IF(dtCrop1<>0,dtCrop1 + F28,\"\")","v":""},null,null,null,null,null,{"$f":"IF(dtCrop2<>0,SUM(L27,L28),\"\")","v":""},null,null,null,null,null,{"$f":"IF(dtCrop3<>0,SUM(R27,R28),\"\")","v":""},null,null,null,null,null,{"$f":"IF(dtCrop4<>0,SUM(X27,X28),\"\")","v":""}]
[]
[null,"Min yield t/ha"]
[null,"Min price $/t"]
[null,"Expected costs $/ha"]
[null,null,"OR  Leasing income $/ha"]
[null,"Min estimated GM/ha",null,null,null,{"$f":"SUM((F31*F32),F34,-F33)","v":0},null,null,null,null,null,{"$f":"SUM((L31*L32),L34,-L33)","v":0},null,null,null,null,null,{"$f":"SUM((R31*R32),R34,-R33)","v":0},null,null,null,null,null,{"$f":"SUM((X31*X32),X34,-X33)","v":0}]
[null,"Total min est. GM",null,null,null,{"$f":"F35*$B$10","v":0},null,null,null,null,null,{"$f":"L35*$B$10","v":0},null,null,null,null,null,{"$f":"R35*$B$10","v":0},null,null,null,null,null,{"$f":"X35*$B$10","v":0}]
[]
[null,"Agronomic notes","Show",null,null,"Clear",null,null,null,null,null,"Clear",null,null,null,null,null,"Clear",null,null,null,null,null,"Clear"]
[{"$f":"'Crop Table'!$G$1","v":0},{"$f":"'Crop Table'!$G$2","v":"Value to rotation:"},null,{"$f":"_xlfn.IFNA(INDEX(lstCrop,MATCH(E$22,lstKey,0),MATCH($B38,lstHdr,0)),\"\")","v":""},null,null,null,null,null,{"$f":"_xlfn.IFNA(INDEX(lstCrop,MATCH(K$22,lstKey,0),MATCH($B38,lstHdr,0)),\"\")","v":""},null,null,null,null,null,{"$f":"_xlfn.IFNA(INDEX(lstCrop,MATCH(Q$22,lstKey,0),MATCH($B38,lstHdr,0)),\"\")","v":""},null,null,null,null,null,{"$f":"_xlfn.IFNA(INDEX(lstCrop,MATCH(W$22,lstKey,0),MATCH($B38,lstHdr,0)),\"\")","v":""}]
[null,{"$f":"'Crop Table'!$G$3","v":"Soil benefits.\nManagement benefits.\nEconomic benefits."},null,{"$f":"_xlfn.IFNA(INDEX(lstCrop,MATCH(E$22,lstKey,0),MATCH($B39,lstHdr,0)),\"\")","v":""},null,null,null,null,null,{"$f":"_xlfn.IFNA(INDEX(lstCrop,MATCH(K$22,lstKey,0),MATCH($B39,lstHdr,0)),\"\")","v":""},null,null,null,null,null,{"$f":"_xlfn.IFNA(INDEX(lstCrop,MATCH(Q$22,lstKey,0),MATCH($B39,lstHdr,0)),\"\")","v":""},null,null,null,null,null,{"$f":"_xlfn.IFNA(INDEX(lstCrop,MATCH(W$22,lstKey,0),MATCH($B39,lstHdr,0)),\"\")","v":""},null,null,null,null,null,null,{"$f":"B40","v":"Soil benefits.\nManagement benefits.\nEconomic benefits."},{"$f":"D40","v":""},{"$f":"J40","v":""},{"$f":"P40","v":""},{"$f":"V40","v":""}]
[{"$f":"'Crop Table'!$H$1","v":0},{"$f":"'Crop Table'!$H$2","v":"Crop risks:"},null,null,null,null,null,null,null,null,null,null,null,null,null,null,null,null,null,null,null,null,null,null,null,null,null,null,null,{"$f":"D41","v":0},{"$f":"J41","v":0},{"$f":"P41","v":0},{"$f":"V41","v":0}]
[null,{"$f":"'Crop Table'!$H$3","v":"Harvest risks  - weathering.\nManagement risks - exacerbate pest, weed or disease.\nSeasonal - rainfall, cloud, wind?\nEconomic - price, yield."},null,{"$f":"_xlfn.IFNA(INDEX(lstCrop,MATCH(E$22,lstKey,0),MATCH($B41,lstHdr,0)),\"\")","v":""},null,null,null,null,null,{"$f":"_xlfn.IFNA(INDEX(lstCrop,MATCH(K$22,lstKey,0),MATCH($B41,lstHdr,0)),\"\")","v":""},null,null,null,null,null,{"$f":"_xlfn.IFNA(INDEX(lstCrop,MATCH(Q$22,lstKey,0),MATCH($B41,lstHdr,0)),\"\")","v":""},null,null,null,null,null,{"$f":"_xlfn.IFNA(INDEX(lstCrop,MATCH(W$22,lstKey,0),MATCH($B41,lstHdr,0)),\"\")","v":""},null,null,null,null,null,null,{"$f":"B42","v":"Harvest risks  - weathering.\nManagement risks - exacerbate pest, weed or disease.\nSeasonal - rainfall, cloud, wind?\nEconomic - price, yield."},"","","",""]
[{"$f":"'Crop Table'!$I$1","v":0},{"$f":"'Crop Table'!$I$2","v":"Planting windows:"},null,null,null,null,null,null,null,null,null,null,null,null,null,null,null,null,null,null,null,null,null,null,null,null,null,null,null,0,0,0,0]
[null,{"$f":"'Crop Table'!$I$3","v":"Spring plant.\nSummer plant.\nDry season plant."},null,{"$f":"_xlfn.IFNA(INDEX(lstCrop,MATCH(E$22,lstKey,0),MATCH($B43,lstHdr,0)),\"\")","v":""},null,null,null,null,null,{"$f":"_xlfn.IFNA(INDEX(lstCrop,MATCH(K$22,lstKey,0),MATCH($B43,lstHdr,0)),\"\")","v":""},null,null,null,null,null,{"$f":"_xlfn.IFNA(INDEX(lstCrop,MATCH(Q$22,lstKey,0),MATCH($B43,lstHdr,0)),\"\")","v":""},null,null,null,null,null,{"$f":"_xlfn.IFNA(INDEX(lstCrop,MATCH(W$22,lstKey,0),MATCH($B43,lstHdr,0)),\"\")","v":""},null,null,null,null,null,null,{"$f":"B44","v":"Spring plant.\nSummer plant.\nDry season plant."},"","","",""]
[{"$f":"'Crop Table'!$J$1","v":0},{"$f":"'Crop Table'!$J$2","v":"Expected yield range:"},null,null,null,null,null,null,null,null,null,null,null,null,null,null,null,null,null,null,null,null,null,null,null,null,null,null,null,0,0,0,0]
[null,{"$f":"'Crop Table'!$J$3","v":0},null,{"$f":"_xlfn.IFNA(INDEX(lstCrop,MATCH(E$22,lstKey,0),MATCH($B45,lstHdr,0)),\"\")","v":""},null,null,null,null,null,{"$f":"_xlfn.IFNA(INDEX(lstCrop,MATCH(K$22,lstKey,0),MATCH($B45,lstHdr,0)),\"\")","v":""},null,null,null,null,null,{"$f":"_xlfn.IFNA(INDEX(lstCrop,MATCH(Q$22,lstKey,0),MATCH($B45,lstHdr,0)),\"\")","v":""},null,null,null,null,null,{"$f":"_xlfn.IFNA(INDEX(lstCrop,MATCH(W$22,lstKey,0),MATCH($B45,lstHdr,0)),\"\")","v":""},null,null,null,null,null,null,{"$f":"B46","v":0},"","","",""]
[{"$f":"'Crop Table'!$K$1","v":0},{"$f":"'Crop Table'!$K$2","v":"Soil features:"},null,null,null,null,null,null,null,null,null,null,null,null,null,null,null,null,null,null,null,null,null,null,null,null,null,null,null,0,0,0,0]
[null,{"$f":"'Crop Table'!$K$3","v":"Texture.\npH (Al, Mn toxicity?)\nSalinity senitivity (soil/water).\nSodicity sensitivity."},null,{"$f":"_xlfn.IFNA(INDEX(lstCrop,MATCH(E$22,lstKey,0),MATCH($B47,lstHdr,0)),\"\")","v":""},null,null,null,null,null,{"$f":"_xlfn.IFNA(INDEX(lstCrop,MATCH(K$22,lstKey,0),MATCH($B47,lstHdr,0)),\"\")","v":""},null,null,null,null,null,{"$f":"_xlfn.IFNA(INDEX(lstCrop,MATCH(Q$22,lstKey,0),MATCH($B47,lstHdr,0)),\"\")","v":""},null,null,null,null,null,{"$f":"_xlfn.IFNA(INDEX(lstCrop,MATCH(W$22,lstKey,0),MATCH($B47,lstHdr,0)),\"\")","v":""},null,null,null,null,null,null,{"$f":"B48","v":"Texture.\npH (Al, Mn toxicity?)\nSalinity senitivity (soil/water).\nSodicity sensitivity."},"","","",""]
[{"$f":"'Crop Table'!$L$1","v":0},{"$f":"'Crop Table'!$L$2","v":"Soil moisture and irrigation:"},null,null,null,null,null,null,null,null,null,null,null,null,null,null,null,null,null,null,null,null,null,null,null,null,null,null,null,0,0,0,0]
[null,{"$f":"'Crop Table'!$L$3","v":"Planting moisture.\nPre-water.\nPeak demand.\nWater requirements.\nScheduling/planning.\nType of irrigation."},null,{"$f":"_xlfn.IFNA(INDEX(lstCrop,MATCH(E$22,lstKey,0),MATCH($B49,lstHdr,0)),\"\")","v":""},null,null,null,null,null,{"$f":"_xlfn.IFNA(INDEX(lstCrop,MATCH(K$22,lstKey,0),MATCH($B49,lstHdr,0)),\"\")","v":""},null,null,null,null,null,{"$f":"_xlfn.IFNA(INDEX(lstCrop,MATCH(Q$22,lstKey,0),MATCH($B49,lstHdr,0)),\"\")","v":""},null,null,null,null,null,{"$f":"_xlfn.IFNA(INDEX(lstCrop,MATCH(W$22,lstKey,0),MATCH($B49,lstHdr,0)),\"\")","v":""},null,null,null,null,null,null,{"$f":"B50","v":"Planting moisture.\nPre-water.\nPeak demand.\nWater requirements.\nScheduling/planning.\nType of irrigation."},"","","",""]
[{"$f":"'Crop Table'!$M$1","v":0},{"$f":"'Crop Table'!$M$2","v":"Environmental factors:"},null,null,null,null,null,null,null,null,null,null,null,null,null,null,null,null,null,null,null,null,null,null,null,null,null,null,null,0,0,0,0]
[null,{"$f":"'Crop Table'!$M$3","v":"Temperature at planting.\nFrost sensitivity.\nSensitivity to day length, day degree accumulation.\nWaterlogging."},null,{"$f":"_xlfn.IFNA(INDEX(lstCrop,MATCH(E$22,lstKey,0),MATCH($B51,lstHdr,0)),\"\")","v":""},null,null,null,null,null,{"$f":"_xlfn.IFNA(INDEX(lstCrop,MATCH(K$22,lstKey,0),MATCH($B51,lstHdr,0)),\"\")","v":""},null,null,null,null,null,{"$f":"_xlfn.IFNA(INDEX(lstCrop,MATCH(Q$22,lstKey,0),MATCH($B51,lstHdr,0)),\"\")","v":""},null,null,null,null,null,{"$f":"_xlfn.IFNA(INDEX(lstCrop,MATCH(W$22,lstKey,0),MATCH($B51,lstHdr,0)),\"\")","v":""},null,null,null,null,null,null,{"$f":"B52","v":"Temperature at planting.\nFrost sensitivity.\nSensitivity to day length, day degree accumulation.\nWaterlogging."},"","","",""]
[{"$f":"'Crop Table'!$N$1","v":0},{"$f":"'Crop Table'!$N$2","v":"Nutrient considerations:"},null,null,null,null,null,null,null,null,null,null,null,null,null,null,null,null,null,null,null,null,null,null,null,null,null,null,null,0,0,0,0]
[null,{"$f":"'Crop Table'!$N$3","v":"Rhizobia inoculant.\nCorrect deficiencies.\nStarter fert.\nVAM dependence.\nAmt N fixed\nN removed at harvest..\nOther big nutrient sinks?"},null,{"$f":"_xlfn.IFNA(INDEX(lstCrop,MATCH(E$22,lstKey,0),MATCH($B53,lstHdr,0)),\"\")","v":""},null,null,null,null,null,{"$f":"_xlfn.IFNA(INDEX(lstCrop,MATCH(K$22,lstKey,0),MATCH($B53,lstHdr,0)),\"\")","v":""},null,null,null,null,null,{"$f":"_xlfn.IFNA(INDEX(lstCrop,MATCH(Q$22,lstKey,0),MATCH($B53,lstHdr,0)),\"\")","v":""},null,null,null,null,null,{"$f":"_xlfn.IFNA(INDEX(lstCrop,MATCH(W$22,lstKey,0),MATCH($B53,lstHdr,0)),\"\")","v":""},null,null,null,null,null,null,{"$f":"B54","v":"Rhizobia inoculant.\nCorrect deficiencies.\nStarter fert.\nVAM dependence.\nAmt N fixed\nN removed at harvest..\nOther big nutrient sinks?"},"","","",""]
[{"$f":"'Crop Table'!$O$1","v":0},{"$f":"'Crop Table'!$O$2","v":"Nematodes:"},null,null,null,null,null,null,null,null,null,null,null,null,null,null,null,null,null,null,null,null,null,null,null,null,null,null,null,0,0,0,0]
[null,{"$f":"'Crop Table'!$O$3","v":"RKN tolerance.\nRLN tolerance."},null,{"$f":"_xlfn.IFNA(INDEX(lstCrop,MATCH(E$22,lstKey,0),MATCH($B55,lstHdr,0)),\"\")","v":""},null,null,null,null,null,{"$f":"_xlfn.IFNA(INDEX(lstCrop,MATCH(K$22,lstKey,0),MATCH($B55,lstHdr,0)),\"\")","v":""},null,null,null,null,null,{"$f":"_xlfn.IFNA(INDEX(lstCrop,MATCH(Q$22,lstKey,0),MATCH($B55,lstHdr,0)),\"\")","v":""},null,null,null,null,null,{"$f":"_xlfn.IFNA(INDEX(lstCrop,MATCH(W$22,lstKey,0),MATCH($B55,lstHdr,0)),\"\")","v":""},null,null,null,null,null,null,{"$f":"B56","v":"RKN tolerance.\nRLN tolerance."},"","","",""]
[{"$f":"'Crop Table'!$P$1","v":0},{"$f":"'Crop Table'!P$2","v":"Land preparation:"},null,null,null,null,null,null,null,null,null,null,null,null,null,null,null,null,null,null,null,null,null,null,null,null,null,null,null,0,0,0,0]
[null,{"$f":"'Crop Table'!$P$3","v":"Drainage/raised beds.\nSuitability for direct drilling.\nSeed bed preparation.\nStubble management from previous crop."},null,{"$f":"_xlfn.IFNA(INDEX(lstCrop,MATCH(E$22,lstKey,0),MATCH($B57,lstHdr,0)),\"\")","v":""},null,null,null,null,null,{"$f":"_xlfn.IFNA(INDEX(lstCrop,MATCH(K$22,lstKey,0),MATCH($B57,lstHdr,0)),\"\")","v":""},null,null,null,null,null,{"$f":"_xlfn.IFNA(INDEX(lstCrop,MATCH(Q$22,lstKey,0),MATCH($B57,lstHdr,0)),\"\")","v":""},null,null,null,null,null,{"$f":"_xlfn.IFNA(INDEX(lstCrop,MATCH(W$22,lstKey,0),MATCH($B57,lstHdr,0)),\"\")","v":""},null,null,null,null,null,null,{"$f":"B58","v":"Drainage/raised beds.\nSuitability for direct drilling.\nSeed bed preparation.\nStubble management from previous crop."},"","","",""]
[{"$f":"'Crop Table'!$Q$1","v":0},{"$f":"'Crop Table'!$Q$2","v":"Disease management:"},null,null,null,null,null,null,null,null,null,null,null,null,null,null,null,null,null,null,null,null,null,null,null,null,null,null,null,0,0,0,0]
[null,{"$f":"'Crop Table'!$Q$3","v":"Susceptibility.\nHosts.\nSuppress."},null,{"$f":"_xlfn.IFNA(INDEX(lstCrop,MATCH(E$22,lstKey,0),MATCH($B59,lstHdr,0)),\"\")","v":""},null,null,null,null,null,{"$f":"_xlfn.IFNA(INDEX(lstCrop,MATCH(K$22,lstKey,0),MATCH($B59,lstHdr,0)),\"\")","v":""},null,null,null,null,null,{"$f":"_xlfn.IFNA(INDEX(lstCrop,MATCH(Q$22,lstKey,0),MATCH($B59,lstHdr,0)),\"\")","v":""},null,null,null,null,null,{"$f":"_xlfn.IFNA(INDEX(lstCrop,MATCH(W$22,lstKey,0),MATCH($B59,lstHdr,0)),\"\")","v":""},null,null,null,null,null,null,{"$f":"B60","v":"Susceptibility.\nHosts.\nSuppress."},"","","",""]
[{"$f":"'Crop Table'!$R$1","v":0},{"$f":"'Crop Table'!$R$2","v":"Insect management:"},null,null,null,null,null,null,null,null,null,null,null,null,null,null,null,null,null,null,null,null,null,null,null,null,null,null,null,0,0,0,0]
[null,{"$f":"'Crop Table'!$R$3","v":"Beneficials.\nSusceptibility.\nHosts.\nSuppress."},null,{"$f":"_xlfn.IFNA(INDEX(lstCrop,MATCH(E$22,lstKey,0),MATCH($B61,lstHdr,0)),\"\")","v":""},null,null,null,null,null,{"$f":"_xlfn.IFNA(INDEX(lstCrop,MATCH(K$22,lstKey,0),MATCH($B61,lstHdr,0)),\"\")","v":""},null,null,null,null,null,{"$f":"_xlfn.IFNA(INDEX(lstCrop,MATCH(Q$22,lstKey,0),MATCH($B61,lstHdr,0)),\"\")","v":""},null,null,null,null,null,{"$f":"_xlfn.IFNA(INDEX(lstCrop,MATCH(W$22,lstKey,0),MATCH($B61,lstHdr,0)),\"\")","v":""},null,null,null,null,null,null,{"$f":"B62","v":"Beneficials.\nSusceptibility.\nHosts.\nSuppress."},"","","",""]
[{"$f":"'Crop Table'!$S$1","v":0},{"$f":"'Crop Table'!$S$2","v":"Weed management:"},null,null,null,null,null,null,null,null,null,null,null,null,null,null,null,null,null,null,null,null,null,null,null,null,null,null,null,0,0,0,0]
[null,{"$f":"'Crop Table'!$S$3","v":"Susceptible to previous residual, plant-back alerts for permitted MOA\ntarget grass/broadleaf, spp specific MOA.\nCrop competition"},null,{"$f":"_xlfn.IFNA(INDEX(lstCrop,MATCH(E$22,lstKey,0),MATCH($B63,lstHdr,0)),\"\")","v":""},null,null,null,null,null,{"$f":"_xlfn.IFNA(INDEX(lstCrop,MATCH(K$22,lstKey,0),MATCH($B63,lstHdr,0)),\"\")","v":""},null,null,null,null,null,{"$f":"_xlfn.IFNA(INDEX(lstCrop,MATCH(Q$22,lstKey,0),MATCH($B63,lstHdr,0)),\"\")","v":""},null,null,null,null,null,{"$f":"_xlfn.IFNA(INDEX(lstCrop,MATCH(W$22,lstKey,0),MATCH($B63,lstHdr,0)),\"\")","v":""},null,null,null,null,null,null,{"$f":"B64","v":"Susceptible to previous residual, plant-back alerts for permitted MOA\ntarget grass/broadleaf, spp specific MOA.\nCrop competition"},"","","",""]
[{"$f":"'Crop Table'!$T$1","v":0},{"$f":"'Crop Table'!$T$2","v":"Harvest:"},null,null,null,null,null,null,null,null,null,null,null,null,null,null,null,null,null,null,null,null,null,null,null,null,null,null,null,0,0,0,0]
[null,{"$f":"'Crop Table'!$T$3","v":"Timing.\nRisk. \nDesiccation.\nLogistics/contractors."},null,{"$f":"_xlfn.IFNA(INDEX(lstCrop,MATCH(E$22,lstKey,0),MATCH($B65,lstHdr,0)),\"\")","v":""},null,null,null,null,null,{"$f":"_xlfn.IFNA(INDEX(lstCrop,MATCH(K$22,lstKey,0),MATCH($B65,lstHdr,0)),\"\")","v":""},null,null,null,null,null,{"$f":"_xlfn.IFNA(INDEX(lstCrop,MATCH(Q$22,lstKey,0),MATCH($B65,lstHdr,0)),\"\")","v":""},null,null,null,null,null,{"$f":"_xlfn.IFNA(INDEX(lstCrop,MATCH(W$22,lstKey,0),MATCH($B65,lstHdr,0)),\"\")","v":""},null,null,null,null,null,null,{"$f":"B66","v":"Timing.\nRisk. \nDesiccation.\nLogistics/contractors."},"","","",""]
[{"$f":"'Crop Table'!$U$1","v":0},{"$f":"'Crop Table'!$U$2","v":"Stubble management for following crop:"},null,null,null,null,null,null,null,null,null,null,null,null,null,null,null,null,null,null,null,null,null,null,null,null,null,null,null,0,0,0,0]
[null,{"$f":"'Crop Table'!$U$3","v":"Ease of planting next crop.\nValue for fallow soil protection."},null,{"$f":"_xlfn.IFNA(INDEX(lstCrop,MATCH(E$22,lstKey,0),MATCH($B67,lstHdr,0)),\"\")","v":""},null,null,null,null,null,{"$f":"_xlfn.IFNA(INDEX(lstCrop,MATCH(K$22,lstKey,0),MATCH($B67,lstHdr,0)),\"\")","v":""},null,null,null,null,null,{"$f":"_xlfn.IFNA(INDEX(lstCrop,MATCH(Q$22,lstKey,0),MATCH($B67,lstHdr,0)),\"\")","v":""},null,null,null,null,null,{"$f":"_xlfn.IFNA(INDEX(lstCrop,MATCH(W$22,lstKey,0),MATCH($B67,lstHdr,0)),\"\")","v":""},null,null,null,null,null,null,{"$f":"B68","v":"Ease of planting next crop.\nValue for fallow soil protection."},"","","",""]
[{"$f":"'Crop Table'!$V$1","v":0},{"$f":"'Crop Table'!$V$2","v":"Economics and marketing:"},null,null,null,null,null,null,null,null,null,null,null,null,null,null,null,null,null,null,null,null,null,null,null,null,null,null,null,0,0,0,0]
[null,{"$f":"'Crop Table'!$V$3","v":"Crop value, marketing, contracts, on-farm storage, freight, end use eg hay, human consumption grain, stockfeed"},null,{"$f":"_xlfn.IFNA(INDEX(lstCrop,MATCH(E$22,lstKey,0),MATCH($B69,lstHdr,0)),\"\")","v":""},null,null,null,null,null,{"$f":"_xlfn.IFNA(INDEX(lstCrop,MATCH(K$22,lstKey,0),MATCH($B69,lstHdr,0)),\"\")","v":""},null,null,null,null,null,{"$f":"_xlfn.IFNA(INDEX(lstCrop,MATCH(Q$22,lstKey,0),MATCH($B69,lstHdr,0)),\"\")","v":""},null,null,null,null,null,{"$f":"_xlfn.IFNA(INDEX(lstCrop,MATCH(W$22,lstKey,0),MATCH($B69,lstHdr,0)),\"\")","v":""},null,null,null,null,null,null,{"$f":"B70","v":"Crop value, marketing, contracts, on-farm storage, freight, end use eg hay, human consumption grain, stockfeed"},"","","",""]
[{"$f":"'Crop Table'!$W$1","v":0},{"$f":"'Crop Table'!$W$2","v":"Management input:"},null,null,null,null,null,null,null,null,null,null,null,null,null,null,null,null,null,null,null,null,null,null,null,null,null,null,null,0,0,0,0]
[null,{"$f":"'Crop Table'!$W$3","v":"Set and forget v intense management, timeliness, agronomic advice for monitoring and sprays"},null,{"$f":"_xlfn.IFNA(INDEX(lstCrop,MATCH(E$22,lstKey,0),MATCH($B71,lstHdr,0)),\"\")","v":""},null,null,null,null,null,{"$f":"_xlfn.IFNA(INDEX(lstCrop,MATCH(K$22,lstKey,0),MATCH($B71,lstHdr,0)),\"\")","v":""},null,null,null,null,null,{"$f":"_xlfn.IFNA(INDEX(lstCrop,MATCH(Q$22,lstKey,0),MATCH($B71,lstHdr,0)),\"\")","v":""},null,null,null,null,null,{"$f":"_xlfn.IFNA(INDEX(lstCrop,MATCH(W$22,lstKey,0),MATCH($B71,lstHdr,0)),\"\")","v":""},null,null,null,null,null,null,{"$f":"B72","v":"Set and forget v intense management, timeliness, agronomic advice for monitoring and sprays"},"","","",""]
[{"$f":"'Crop Table'!$X$1","v":0},{"$f":"'Crop Table'!$X$2","v":"Specialised equipment:"},null,null,null,null,null,null,null,null,null,null,null,null,null,null,null,null,null,null,null,null,null,null,null,null,null,null,null,0,0,0,0]
[null,{"$f":"'Crop Table'!$X$3","v":"What operations, access to contractors"},null,{"$f":"_xlfn.IFNA(INDEX(lstCrop,MATCH(E$22,lstKey,0),MATCH($B73,lstHdr,0)),\"\")","v":""},null,null,null,null,null,{"$f":"_xlfn.IFNA(INDEX(lstCrop,MATCH(K$22,lstKey,0),MATCH($B73,lstHdr,0)),\"\")","v":""},null,null,null,null,null,{"$f":"_xlfn.IFNA(INDEX(lstCrop,MATCH(Q$22,lstKey,0),MATCH($B73,lstHdr,0)),\"\")","v":""},null,null,null,null,null,{"$f":"_xlfn.IFNA(INDEX(lstCrop,MATCH(W$22,lstKey,0),MATCH($B73,lstHdr,0)),\"\")","v":""},null,null,null,null,null,null,{"$f":"B74","v":"What operations, access to contractors"},"","","",""]
[null,null,null,null,null,null,null,null,null,null,null,null,null,null,null,null,null,null,null,null,null,null,null,null,null,null,null,null,null,0,0,0,0]
[]
[null,"Enter your Notes here:",null,null,null,null,null,null,null,null,null,null,null,null,null,null,null,null,null,null,null,null,null,null,null,null,null,null,null,{"$f":"E77","v":0},{"$f":"K77","v":0},{"$f":"Q77","v":0},{"$f":"W77","v":0}]
[]
[]
[]
[null,"Key",null,null,{"$f":"F83&\"-\"&F84","v":"-"},null,null,null,null,null,{"$f":"L83&\"-\"&L84","v":"-"},null,null,null,null,null,{"$f":"R83&\"-\"&R84","v":"-"},null,null,null,null,null,{"$f":"X83&\"-\"&X84","v":"-"}]
[null,null,null,null,null,"Crop 5",null,null,null,null,null,"Crop 6",null,null,null,null,null,"Crop 7",null,null,null,null,null,"Crop 8"]
[null,"Crop Type"]
[null,"Variety"]
[null,null,null,null,null,{"$f":"IF(AND(F83<>\"\",_xlfn.IFNA(VLOOKUP(F83&\"-\"&F84,lstKey,1,FALSE),1)=1),\"Select a Variety\",\"\")","v":""},null,null,null,null,null,{"$f":"IF(AND(L83<>\"\",_xlfn.IFNA(VLOOKUP(L83&\"-\"&L84,lstKey,1,FALSE),1)=1),\"Select a Variety\",\"\")","v":""},null,null,null,null,null,{"$f":"IF(AND(R83<>\"\",_xlfn.IFNA(VLOOKUP(R83&\"-\"&R84,lstKey,1,FALSE),1)=1),\"Select a Variety\",\"\")","v":""},null,null,null,null,null,{"$f":"IF(AND(X83<>\"\",_xlfn.IFNA(VLOOKUP(X83&\"-\"&X84,lstKey,1,FALSE),1)=1),\"Select a Variety\",\"\")","v":""}]
[null,"Planting date"]
[null,"Growing period (days)",null,{"$f":"IF( _xlfn.ISFORMULA(F87),\"Override if req'd -->\",\"Delete to reset -->\")","v":"Override if req'd -->"},null,{"$f":"_xlfn.IFNA(IF(G87=rfSummer,VLOOKUP(E81,lstCropGrowPd,4,FALSE),IF(G87=rfSpring,VLOOKUP(E81,lstCropGrowPd,5,FALSE),VLOOKUP(E81,lstCropGrowPd,6,FALSE))),0)","v":0},"Summer",null,null,{"$f":"IF( _xlfn.ISFORMULA(L87),\"Override if req'd -->\",\"Delete to reset -->\")","v":"Override if req'd -->"},null,{"$f":"_xlfn.IFNA(IF(M87=rfSummer,VLOOKUP(K81,lstCropGrowPd,4,FALSE),IF(M87=rfSpring,VLOOKUP(K81,lstCropGrowPd,5,FALSE),VLOOKUP(K81,lstCropGrowPd,6,FALSE))),0)","v":0},"Summer",null,null,{"$f":"IF( _xlfn.ISFORMULA(R87),\"Override if req'd -->\",\"Delete to reset -->\")","v":"Override if req'd -->"},null,{"$f":"_xlfn.IFNA(IF(S87=rfSummer,VLOOKUP(Q81,lstCropGrowPd,4,FALSE),IF(S87=rfSpring,VLOOKUP(Q81,lstCropGrowPd,5,FALSE),VLOOKUP(Q81,lstCropGrowPd,6,FALSE))),0)","v":0},"Summer",null,null,{"$f":"IF( _xlfn.ISFORMULA(X87),\"Override if req'd -->\",\"Delete to reset -->\")","v":"Override if req'd -->"},null,{"$f":"_xlfn.IFNA(IF(Y87=rfSummer,VLOOKUP(W81,lstCropGrowPd,4,FALSE),IF(Y87=rfSpring,VLOOKUP(W81,lstCropGrowPd,5,FALSE),VLOOKUP(W81,lstCropGrowPd,6,FALSE))),0)","v":0},"Summer"]
[null,"Approx. Harvest date",null,null,null,{"$f":"IF(dtCrop5<>0,SUM(F86,F87),\"\")","v":""},null,null,null,null,null,{"$f":"IF(dtCrop6<>0,SUM(L86,L87),\"\")","v":""},null,null,null,null,null,{"$f":"IF(dtCrop7<>0,SUM(R86,R87),\"\")","v":""},null,null,null,null,null,{"$f":"IF(dtCrop8<>0,SUM(X86,X87),\"\")","v":""}]
[]
[null,"Min yield t/ha"]
[null,"Min price $/t"]
[null,"Expected costs $/ha"]
[null,null,"OR  Leasing income $/ha"]
[null,"Min estimated GM/ha",null,null,null,{"$f":"SUM((F90*F91),F93,-F92)","v":0},null,null,null,null,null,{"$f":"SUM((L90*L91),L93,-L92)","v":0},null,null,null,null,null,{"$f":"SUM((R90*R91),R93,-R92)","v":0},null,null,null,null,null,{"$f":"SUM((X90*X91),X93,-X92)","v":0}]
[null,"Total min est. GM",null,null,null,{"$f":"F94*$B$10","v":0},null,null,null,null,null,{"$f":"L94*$B$10","v":0},null,null,null,null,null,{"$f":"R94*$B$10","v":0},null,null,null,null,null,{"$f":"X94*$B$10","v":0}]
[]
[null,"Agronomic notes","Show",null,null,"Clear",null,null,null,null,null,"Clear",null,null,null,null,null,"Clear",null,null,null,null,null,"Clear"]
[{"$f":"'Crop Table'!$G$1","v":0},{"$f":"'Crop Table'!$G$2","v":"Value to rotation:"},null,{"$f":"_xlfn.IFNA(INDEX(lstCrop,MATCH(E$81,lstKey,0),MATCH($B97,lstHdr,0)),\"\")","v":""},null,null,null,null,null,{"$f":"_xlfn.IFNA(INDEX(lstCrop,MATCH(K$81,lstKey,0),MATCH($B97,lstHdr,0)),\"\")","v":""},null,null,null,null,null,{"$f":"_xlfn.IFNA(INDEX(lstCrop,MATCH(Q$81,lstKey,0),MATCH($B97,lstHdr,0)),\"\")","v":""},null,null,null,null,null,{"$f":"_xlfn.IFNA(INDEX(lstCrop,MATCH(W$81,lstKey,0),MATCH($B97,lstHdr,0)),\"\")","v":""}]
[null,{"$f":"'Crop Table'!$G$3","v":"Soil benefits.\nManagement benefits.\nEconomic benefits."},null,{"$f":"_xlfn.IFNA(INDEX(lstCrop,MATCH(E$81,lstKey,0),MATCH($B98,lstHdr,0)),\"\")","v":""},null,null,null,null,null,{"$f":"_xlfn.IFNA(INDEX(lstCrop,MATCH(K$81,lstKey,0),MATCH($B98,lstHdr,0)),\"\")","v":""},null,null,null,null,null,{"$f":"_xlfn.IFNA(INDEX(lstCrop,MATCH(Q$81,lstKey,0),MATCH($B98,lstHdr,0)),\"\")","v":""},null,null,null,null,null,{"$f":"_xlfn.IFNA(INDEX(lstCrop,MATCH(W$81,lstKey,0),MATCH($B98,lstHdr,0)),\"\")","v":""},null,null,null,null,null,null,{"$f":"B99","v":"Soil benefits.\nManagement benefits.\nEconomic benefits."},{"$f":"D99","v":""},{"$f":"J99","v":""},{"$f":"P99","v":""},{"$f":"V99","v":""}]
[{"$f":"'Crop Table'!$H$1","v":0},{"$f":"'Crop Table'!$H$2","v":"Crop risks:"},null,null,null,null,null,null,null,null,null,null,null,null,null,null,null,null,null,null,null,null,null,null,null,null,null,null,null,{"$f":"D100","v":0},{"$f":"J100","v":0},{"$f":"P100","v":0},{"$f":"V100","v":0}]
[null,{"$f":"'Crop Table'!$H$3","v":"Harvest risks  - weathering.\nManagement risks - exacerbate pest, weed or disease.\nSeasonal - rainfall, cloud, wind?\nEconomic - price, yield."},null,{"$f":"_xlfn.IFNA(INDEX(lstCrop,MATCH(E$81,lstKey,0),MATCH($B100,lstHdr,0)),\"\")","v":""},null,null,null,null,null,{"$f":"_xlfn.IFNA(INDEX(lstCrop,MATCH(K$81,lstKey,0),MATCH($B100,lstHdr,0)),\"\")","v":""},null,null,null,null,null,{"$f":"_xlfn.IFNA(INDEX(lstCrop,MATCH(Q$81,lstKey,0),MATCH($B100,lstHdr,0)),\"\")","v":""},null,null,null,null,null,{"$f":"_xlfn.IFNA(INDEX(lstCrop,MATCH(W$81,lstKey,0),MATCH($B100,lstHdr,0)),\"\")","v":""},null,null,null,null,null,null,{"$f":"B101","v":"Harvest risks  - weathering.\nManagement risks - exacerbate pest, weed or disease.\nSeasonal - rainfall, cloud, wind?\nEconomic - price, yield."},"","","",""]
[{"$f":"'Crop Table'!$I$1","v":0},{"$f":"'Crop Table'!$I$2","v":"Planting windows:"},null,null,null,null,null,null,null,null,null,null,null,null,null,null,null,null,null,null,null,null,null,null,null,null,null,null,null,0,0,0,0]
[null,{"$f":"'Crop Table'!$I$3","v":"Spring plant.\nSummer plant.\nDry season plant."},null,{"$f":"_xlfn.IFNA(INDEX(lstCrop,MATCH(E$81,lstKey,0),MATCH($B102,lstHdr,0)),\"\")","v":""},null,null,null,null,null,{"$f":"_xlfn.IFNA(INDEX(lstCrop,MATCH(K$81,lstKey,0),MATCH($B102,lstHdr,0)),\"\")","v":""},null,null,null,null,null,{"$f":"_xlfn.IFNA(INDEX(lstCrop,MATCH(Q$81,lstKey,0),MATCH($B102,lstHdr,0)),\"\")","v":""},null,null,null,null,null,{"$f":"_xlfn.IFNA(INDEX(lstCrop,MATCH(W$81,lstKey,0),MATCH($B102,lstHdr,0)),\"\")","v":""},null,null,null,null,null,null,{"$f":"B103","v":"Spring plant.\nSummer plant.\nDry season plant."},"",{"$f":"J103","v":""},"",""]
[{"$f":"'Crop Table'!$J$1","v":0},{"$f":"'Crop Table'!$J$2","v":"Expected yield range:"},null,null,null,null,null,null,null,null,null,null,null,null,null,null,null,null,null,null,null,null,null,null,null,null,null,null,null,0,0,0,0]
[null,{"$f":"'Crop Table'!$J$3","v":0},null,{"$f":"_xlfn.IFNA(INDEX(lstCrop,MATCH(E$81,lstKey,0),MATCH($B104,lstHdr,0)),\"\")","v":""},null,null,null,null,null,{"$f":"_xlfn.IFNA(INDEX(lstCrop,MATCH(K$81,lstKey,0),MATCH($B104,lstHdr,0)),\"\")","v":""},null,null,null,null,null,{"$f":"_xlfn.IFNA(INDEX(lstCrop,MATCH(Q$81,lstKey,0),MATCH($B104,lstHdr,0)),\"\")","v":""},null,null,null,null,null,{"$f":"_xlfn.IFNA(INDEX(lstCrop,MATCH(W$81,lstKey,0),MATCH($B104,lstHdr,0)),\"\")","v":""},null,null,null,null,null,null,{"$f":"B105","v":0},"","","",""]
[{"$f":"'Crop Table'!$K$1","v":0},{"$f":"'Crop Table'!$K$2","v":"Soil features:"},null,null,null,null,null,null,null,null,null,null,null,null,null,null,null,null,null,null,null,null,null,null,null,null,null,null,null,0,0,0,0]
[null,{"$f":"'Crop Table'!$K$3","v":"Texture.\npH (Al, Mn toxicity?)\nSalinity senitivity (soil/water).\nSodicity sensitivity."},null,{"$f":"_xlfn.IFNA(INDEX(lstCrop,MATCH(E$81,lstKey,0),MATCH($B106,lstHdr,0)),\"\")","v":""},null,null,null,null,null,{"$f":"_xlfn.IFNA(INDEX(lstCrop,MATCH(K$81,lstKey,0),MATCH($B106,lstHdr,0)),\"\")","v":""},null,null,null,null,null,{"$f":"_xlfn.IFNA(INDEX(lstCrop,MATCH(Q$81,lstKey,0),MATCH($B106,lstHdr,0)),\"\")","v":""},null,null,null,null,null,{"$f":"_xlfn.IFNA(INDEX(lstCrop,MATCH(W$81,lstKey,0),MATCH($B106,lstHdr,0)),\"\")","v":""},null,null,null,null,null,null,{"$f":"B107","v":"Texture.\npH (Al, Mn toxicity?)\nSalinity senitivity (soil/water).\nSodicity sensitivity."},"","","",""]
[{"$f":"'Crop Table'!$L$1","v":0},{"$f":"'Crop Table'!$L$2","v":"Soil moisture and irrigation:"},null,null,null,null,null,null,null,null,null,null,null,null,null,null,null,null,null,null,null,null,null,null,null,null,null,null,null,0,0,0,0]
[null,{"$f":"'Crop Table'!$L$3","v":"Planting moisture.\nPre-water.\nPeak demand.\nWater requirements.\nScheduling/planning.\nType of irrigation."},null,{"$f":"_xlfn.IFNA(INDEX(lstCrop,MATCH(E$81,lstKey,0),MATCH($B108,lstHdr,0)),\"\")","v":""},null,null,null,null,null,{"$f":"_xlfn.IFNA(INDEX(lstCrop,MATCH(K$81,lstKey,0),MATCH($B108,lstHdr,0)),\"\")","v":""},null,null,null,null,null,{"$f":"_xlfn.IFNA(INDEX(lstCrop,MATCH(Q$81,lstKey,0),MATCH($B108,lstHdr,0)),\"\")","v":""},null,null,null,null,null,{"$f":"_xlfn.IFNA(INDEX(lstCrop,MATCH(W$81,lstKey,0),MATCH($B108,lstHdr,0)),\"\")","v":""},null,null,null,null,null,null,{"$f":"B109","v":"Planting moisture.\nPre-water.\nPeak demand.\nWater requirements.\nScheduling/planning.\nType of irrigation."},"","","",""]
[{"$f":"'Crop Table'!$M$1","v":0},{"$f":"'Crop Table'!$M$2","v":"Environmental factors:"},null,null,null,null,null,null,null,null,null,null,null,null,null,null,null,null,null,null,null,null,null,null,null,null,null,null,null,0,0,0,0]
[null,{"$f":"'Crop Table'!$M$3","v":"Temperature at planting.\nFrost sensitivity.\nSensitivity to day length, day degree accumulation.\nWaterlogging."},null,{"$f":"_xlfn.IFNA(INDEX(lstCrop,MATCH(E$81,lstKey,0),MATCH($B110,lstHdr,0)),\"\")","v":""},null,null,null,null,null,{"$f":"_xlfn.IFNA(INDEX(lstCrop,MATCH(K$81,lstKey,0),MATCH($B110,lstHdr,0)),\"\")","v":""},null,null,null,null,null,{"$f":"_xlfn.IFNA(INDEX(lstCrop,MATCH(Q$81,lstKey,0),MATCH($B110,lstHdr,0)),\"\")","v":""},null,null,null,null,null,{"$f":"_xlfn.IFNA(INDEX(lstCrop,MATCH(W$81,lstKey,0),MATCH($B110,lstHdr,0)),\"\")","v":""},null,null,null,null,null,null,{"$f":"B111","v":"Temperature at planting.\nFrost sensitivity.\nSensitivity to day length, day degree accumulation.\nWaterlogging."},"","","",""]
[{"$f":"'Crop Table'!$N$1","v":0},{"$f":"'Crop Table'!$N$2","v":"Nutrient considerations:"},null,null,null,null,null,null,null,null,null,null,null,null,null,null,null,null,null,null,null,null,null,null,null,null,null,null,null,0,0,0,0]
[null,{"$f":"'Crop Table'!$N$3","v":"Rhizobia inoculant.\nCorrect deficiencies.\nStarter fert.\nVAM dependence.\nAmt N fixed\nN removed at harvest..\nOther big nutrient sinks?"},null,{"$f":"_xlfn.IFNA(INDEX(lstCrop,MATCH(E$81,lstKey,0),MATCH($B112,lstHdr,0)),\"\")","v":""},null,null,null,null,null,{"$f":"_xlfn.IFNA(INDEX(lstCrop,MATCH(K$81,lstKey,0),MATCH($B112,lstHdr,0)),\"\")","v":""},null,null,null,null,null,{"$f":"_xlfn.IFNA(INDEX(lstCrop,MATCH(Q$81,lstKey,0),MATCH($B112,lstHdr,0)),\"\")","v":""},null,null,null,null,null,{"$f":"_xlfn.IFNA(INDEX(lstCrop,MATCH(W$81,lstKey,0),MATCH($B112,lstHdr,0)),\"\")","v":""},null,null,null,null,null,null,{"$f":"B113","v":"Rhizobia inoculant.\nCorrect deficiencies.\nStarter fert.\nVAM dependence.\nAmt N fixed\nN removed at harvest..\nOther big nutrient sinks?"},"","","",""]
[{"$f":"'Crop Table'!$O$1","v":0},{"$f":"'Crop Table'!$O$2","v":"Nematodes:"},null,null,null,null,null,null,null,null,null,null,null,null,null,null,null,null,null,null,null,null,null,null,null,null,null,null,null,0,0,0,0]
[null,{"$f":"'Crop Table'!$O$3","v":"RKN tolerance.\nRLN tolerance."},null,{"$f":"_xlfn.IFNA(INDEX(lstCrop,MATCH(E$81,lstKey,0),MATCH($B114,lstHdr,0)),\"\")","v":""},null,null,null,null,null,{"$f":"_xlfn.IFNA(INDEX(lstCrop,MATCH(K$81,lstKey,0),MATCH($B114,lstHdr,0)),\"\")","v":""},null,null,null,null,null,{"$f":"_xlfn.IFNA(INDEX(lstCrop,MATCH(Q$81,lstKey,0),MATCH($B114,lstHdr,0)),\"\")","v":""},null,null,null,null,null,{"$f":"_xlfn.IFNA(INDEX(lstCrop,MATCH(W$81,lstKey,0),MATCH($B114,lstHdr,0)),\"\")","v":""},null,null,null,null,null,null,{"$f":"B115","v":"RKN tolerance.\nRLN tolerance."},"","","",""]
[{"$f":"'Crop Table'!$P$1","v":0},{"$f":"'Crop Table'!P$2","v":"Land preparation:"},null,null,null,null,null,null,null,null,null,null,null,null,null,null,null,null,null,null,null,null,null,null,null,null,null,null,null,0,0,0,0]
[null,{"$f":"'Crop Table'!$P$3","v":"Drainage/raised beds.\nSuitability for direct drilling.\nSeed bed preparation.\nStubble management from previous crop."},null,{"$f":"_xlfn.IFNA(INDEX(lstCrop,MATCH(E$81,lstKey,0),MATCH($B116,lstHdr,0)),\"\")","v":""},null,null,null,null,null,{"$f":"_xlfn.IFNA(INDEX(lstCrop,MATCH(K$81,lstKey,0),MATCH($B116,lstHdr,0)),\"\")","v":""},null,null,null,null,null,{"$f":"_xlfn.IFNA(INDEX(lstCrop,MATCH(Q$81,lstKey,0),MATCH($B116,lstHdr,0)),\"\")","v":""},null,null,null,null,null,{"$f":"_xlfn.IFNA(INDEX(lstCrop,MATCH(W$81,lstKey,0),MATCH($B116,lstHdr,0)),\"\")","v":""},null,null,null,null,null,null,{"$f":"B117","v":"Drainage/raised beds.\nSuitability for direct drilling.\nSeed bed preparation.\nStubble management from previous crop."},"","","",""]
[{"$f":"'Crop Table'!$Q$1","v":0},{"$f":"'Crop Table'!$Q$2","v":"Disease management:"},null,null,null,null,null,null,null,null,null,null,null,null,null,null,null,null,null,null,null,null,null,null,null,null,null,null,null,0,0,0,0]
[null,{"$f":"'Crop Table'!$Q$3","v":"Susceptibility.\nHosts.\nSuppress."},null,{"$f":"_xlfn.IFNA(INDEX(lstCrop,MATCH(E$81,lstKey,0),MATCH($B118,lstHdr,0)),\"\")","v":""},null,null,null,null,null,{"$f":"_xlfn.IFNA(INDEX(lstCrop,MATCH(K$81,lstKey,0),MATCH($B118,lstHdr,0)),\"\")","v":""},null,null,null,null,null,{"$f":"_xlfn.IFNA(INDEX(lstCrop,MATCH(Q$81,lstKey,0),MATCH($B118,lstHdr,0)),\"\")","v":""},null,null,null,null,null,{"$f":"_xlfn.IFNA(INDEX(lstCrop,MATCH(W$81,lstKey,0),MATCH($B118,lstHdr,0)),\"\")","v":""},null,null,null,null,null,null,{"$f":"B119","v":"Susceptibility.\nHosts.\nSuppress."},"","","",""]
[{"$f":"'Crop Table'!$R$1","v":0},{"$f":"'Crop Table'!$R$2","v":"Insect management:"},null,null,null,null,null,null,null,null,null,null,null,null,null,null,null,null,null,null,null,null,null,null,null,null,null,null,null,0,0,0,0]
[null,{"$f":"'Crop Table'!$R$3","v":"Beneficials.\nSusceptibility.\nHosts.\nSuppress."},null,{"$f":"_xlfn.IFNA(INDEX(lstCrop,MATCH(E$81,lstKey,0),MATCH($B120,lstHdr,0)),\"\")","v":""},null,null,null,null,null,{"$f":"_xlfn.IFNA(INDEX(lstCrop,MATCH(K$81,lstKey,0),MATCH($B120,lstHdr,0)),\"\")","v":""},null,null,null,null,null,{"$f":"_xlfn.IFNA(INDEX(lstCrop,MATCH(Q$81,lstKey,0),MATCH($B120,lstHdr,0)),\"\")","v":""},null,null,null,null,null,{"$f":"_xlfn.IFNA(INDEX(lstCrop,MATCH(W$81,lstKey,0),MATCH($B120,lstHdr,0)),\"\")","v":""},null,null,null,null,null,null,{"$f":"B121","v":"Beneficials.\nSusceptibility.\nHosts.\nSuppress."},"","","",""]
[{"$f":"'Crop Table'!$S$1","v":0},{"$f":"'Crop Table'!$S$2","v":"Weed management:"},null,null,null,null,null,null,null,null,null,null,null,null,null,null,null,null,null,null,null,null,null,null,null,null,null,null,null,0,0,0,0]
[null,{"$f":"'Crop Table'!$S$3","v":"Susceptible to previous residual, plant-back alerts for permitted MOA\ntarget grass/broadleaf, spp specific MOA.\nCrop competition"},null,{"$f":"_xlfn.IFNA(INDEX(lstCrop,MATCH(E$81,lstKey,0),MATCH($B122,lstHdr,0)),\"\")","v":""},null,null,null,null,null,{"$f":"_xlfn.IFNA(INDEX(lstCrop,MATCH(K$81,lstKey,0),MATCH($B122,lstHdr,0)),\"\")","v":""},null,null,null,null,null,{"$f":"_xlfn.IFNA(INDEX(lstCrop,MATCH(Q$81,lstKey,0),MATCH($B122,lstHdr,0)),\"\")","v":""},null,null,null,null,null,{"$f":"_xlfn.IFNA(INDEX(lstCrop,MATCH(W$81,lstKey,0),MATCH($B122,lstHdr,0)),\"\")","v":""},null,null,null,null,null,null,{"$f":"B123","v":"Susceptible to previous residual, plant-back alerts for permitted MOA\ntarget grass/broadleaf, spp specific MOA.\nCrop competition"},"","","",""]
[{"$f":"'Crop Table'!$T$1","v":0},{"$f":"'Crop Table'!$T$2","v":"Harvest:"},null,null,null,null,null,null,null,null,null,null,null,null,null,null,null,null,null,null,null,null,null,null,null,null,null,null,null,0,0,0,0]
[null,{"$f":"'Crop Table'!$T$3","v":"Timing.\nRisk. \nDesiccation.\nLogistics/contractors."},null,{"$f":"_xlfn.IFNA(INDEX(lstCrop,MATCH(E$81,lstKey,0),MATCH($B124,lstHdr,0)),\"\")","v":""},null,null,null,null,null,{"$f":"_xlfn.IFNA(INDEX(lstCrop,MATCH(K$81,lstKey,0),MATCH($B124,lstHdr,0)),\"\")","v":""},null,null,null,null,null,{"$f":"_xlfn.IFNA(INDEX(lstCrop,MATCH(Q$81,lstKey,0),MATCH($B124,lstHdr,0)),\"\")","v":""},null,null,null,null,null,{"$f":"_xlfn.IFNA(INDEX(lstCrop,MATCH(W$81,lstKey,0),MATCH($B124,lstHdr,0)),\"\")","v":""},null,null,null,null,null,null,{"$f":"B125","v":"Timing.\nRisk. \nDesiccation.\nLogistics/contractors."},"","","",""]
[{"$f":"'Crop Table'!$U$1","v":0},{"$f":"'Crop Table'!$U$2","v":"Stubble management for following crop:"},null,null,null,null,null,null,null,null,null,null,null,null,null,null,null,null,null,null,null,null,null,null,null,null,null,null,null,0,0,0,0]
[null,{"$f":"'Crop Table'!$U$3","v":"Ease of planting next crop.\nValue for fallow soil protection."},null,{"$f":"_xlfn.IFNA(INDEX(lstCrop,MATCH(E$81,lstKey,0),MATCH($B126,lstHdr,0)),\"\")","v":""},null,null,null,null,null,{"$f":"_xlfn.IFNA(INDEX(lstCrop,MATCH(K$81,lstKey,0),MATCH($B126,lstHdr,0)),\"\")","v":""},null,null,null,null,null,{"$f":"_xlfn.IFNA(INDEX(lstCrop,MATCH(Q$81,lstKey,0),MATCH($B126,lstHdr,0)),\"\")","v":""},null,null,null,null,null,{"$f":"_xlfn.IFNA(INDEX(lstCrop,MATCH(W$81,lstKey,0),MATCH($B126,lstHdr,0)),\"\")","v":""},null,null,null,null,null,null,{"$f":"B127","v":"Ease of planting next crop.\nValue for fallow soil protection."},"","","",""]
[{"$f":"'Crop Table'!$V$1","v":0},{"$f":"'Crop Table'!$V$2","v":"Economics and marketing:"},null,null,null,null,null,null,null,null,null,null,null,null,null,null,null,null,null,null,null,null,null,null,null,null,null,null,null,0,0,0,0]
[null,{"$f":"'Crop Table'!$V$3","v":"Crop value, marketing, contracts, on-farm storage, freight, end use eg hay, human consumption grain, stockfeed"},null,{"$f":"_xlfn.IFNA(INDEX(lstCrop,MATCH(E$81,lstKey,0),MATCH($B128,lstHdr,0)),\"\")","v":""},null,null,null,null,null,{"$f":"_xlfn.IFNA(INDEX(lstCrop,MATCH(K$81,lstKey,0),MATCH($B128,lstHdr,0)),\"\")","v":""},null,null,null,null,null,{"$f":"_xlfn.IFNA(INDEX(lstCrop,MATCH(Q$81,lstKey,0),MATCH($B128,lstHdr,0)),\"\")","v":""},null,null,null,null,null,{"$f":"_xlfn.IFNA(INDEX(lstCrop,MATCH(W$81,lstKey,0),MATCH($B128,lstHdr,0)),\"\")","v":""},null,null,null,null,null,null,{"$f":"B129","v":"Crop value, marketing, contracts, on-farm storage, freight, end use eg hay, human consumption grain, stockfeed"},"","","",""]
[{"$f":"'Crop Table'!$W$1","v":0},{"$f":"'Crop Table'!$W$2","v":"Management input:"},null,null,null,null,null,null,null,null,null,null,null,null,null,null,null,null,null,null,null,null,null,null,null,null,null,null,null,0,0,0,0]
[null,{"$f":"'Crop Table'!$W$3","v":"Set and forget v intense management, timeliness, agronomic advice for monitoring and sprays"},null,{"$f":"_xlfn.IFNA(INDEX(lstCrop,MATCH(E$81,lstKey,0),MATCH($B130,lstHdr,0)),\"\")","v":""},null,null,null,null,null,{"$f":"_xlfn.IFNA(INDEX(lstCrop,MATCH(K$81,lstKey,0),MATCH($B130,lstHdr,0)),\"\")","v":""},null,null,null,null,null,{"$f":"_xlfn.IFNA(INDEX(lstCrop,MATCH(Q$81,lstKey,0),MATCH($B130,lstHdr,0)),\"\")","v":""},null,null,null,null,null,{"$f":"_xlfn.IFNA(INDEX(lstCrop,MATCH(W$81,lstKey,0),MATCH($B130,lstHdr,0)),\"\")","v":""},null,null,null,null,null,null,{"$f":"B131","v":"Set and forget v intense management, timeliness, agronomic advice for monitoring and sprays"},"","","",""]
[{"$f":"'Crop Table'!$X$1","v":0},{"$f":"'Crop Table'!$X$2","v":"Specialised equipment:"},null,null,null,null,null,null,null,null,null,null,null,null,null,null,null,null,null,null,null,null,null,null,null,null,null,null,null,0,0,0,0]
[null,{"$f":"'Crop Table'!$X$3","v":"What operations, access to contractors"},null,{"$f":"_xlfn.IFNA(INDEX(lstCrop,MATCH(E$81,lstKey,0),MATCH($B132,lstHdr,0)),\"\")","v":""},null,null,null,null,null,{"$f":"_xlfn.IFNA(INDEX(lstCrop,MATCH(K$81,lstKey,0),MATCH($B132,lstHdr,0)),\"\")","v":""},null,null,null,null,null,{"$f":"_xlfn.IFNA(INDEX(lstCrop,MATCH(Q$81,lstKey,0),MATCH($B132,lstHdr,0)),\"\")","v":""},null,null,null,null,null,{"$f":"_xlfn.IFNA(INDEX(lstCrop,MATCH(W$81,lstKey,0),MATCH($B132,lstHdr,0)),\"\")","v":""},null,null,null,null,null,null,{"$f":"B133","v":"What operations, access to contractors"},"","","",""]
[null,null,null,null,null,null,null,null,null,null,null,null,null,null,null,null,null,null,null,null,null,null,null,null,null,null,null,null,null,0,0,0,0]
[]
[null,"Enter your Notes here:",null,null,null,null,null,null,null,null,null,null,null,null,null,null,null,null,null,null,null,null,null,null,null,null,null,null,null,{"$f":"E136","v":0},{"$f":"K136","v":0},{"$f":"Q136","v":0},{"$f":"W136","v":0}]
[]
[]
[]
[null,"Key",null,null,{"$f":"F142&\"-\"&F143","v":"-"},null,null,null,null,null,{"$f":"L142&\"-\"&L143","v":"-"},null,null,null,null,null,{"$f":"R142&\"-\"&R143","v":"-"},null,null,null,null,null,{"$f":"X142&\"-\"&X143","v":"-"}]
[null,null,null,null,null,"Crop 9",null,null,null,null,null,"Crop 10",null,null,null,null,null,"Crop 11",null,null,null,null,null,"Crop 12"]
[null,"Crop Type"]
[null,"Variety"]
[null,null,null,null,null,{"$f":"IF(AND(F142<>\"\",_xlfn.IFNA(VLOOKUP(F142&\"-\"&F143,lstKey,1,FALSE),1)=1),\"Select a Variety\",\"\")","v":""},null,null,null,null,null,{"$f":"IF(AND(L142<>\"\",_xlfn.IFNA(VLOOKUP(L142&\"-\"&L143,lstKey,1,FALSE),1)=1),\"Select a Variety\",\"\")","v":""},null,null,null,null,null,{"$f":"IF(AND(R142<>\"\",_xlfn.IFNA(VLOOKUP(R142&\"-\"&R143,lstKey,1,FALSE),1)=1),\"Select a Variety\",\"\")","v":""},null,null,null,null,null,{"$f":"IF(AND(X142<>\"\",_xlfn.IFNA(VLOOKUP(X142&\"-\"&X143,lstKey,1,FALSE),1)=1),\"Select a Variety\",\"\")","v":""}]
[null,"Planting date"]
[null,"Growing period (days)",null,{"$f":"IF( _xlfn.ISFORMULA(F146),\"Override if req'd -->\",\"Delete to reset -->\")","v":"Override if req'd -->"},null,{"$f":"_xlfn.IFNA(IF(G146=rfSummer,VLOOKUP(E140,lstCropGrowPd,4,FALSE),IF(G146=rfSpring,VLOOKUP(E140,lstCropGrowPd,5,FALSE),VLOOKUP(E140,lstCropGrowPd,6,FALSE))),0)","v":0},"Summer",null,null,{"$f":"IF( _xlfn.ISFORMULA(L146),\"Override if req'd -->\",\"Delete to reset -->\")","v":"Override if req'd -->"},null,{"$f":"_xlfn.IFNA(IF(M146=rfSummer,VLOOKUP(K140,lstCropGrowPd,4,FALSE),IF(M146=rfSpring,VLOOKUP(K140,lstCropGrowPd,5,FALSE),VLOOKUP(K140,lstCropGrowPd,6,FALSE))),0)","v":0},"Summer",null,null,{"$f":"IF( _xlfn.ISFORMULA(R146),\"Override if req'd -->\",\"Delete to reset -->\")","v":"Override if req'd -->"},null,{"$f":"_xlfn.IFNA(IF(S146=rfSummer,VLOOKUP(Q140,lstCropGrowPd,4,FALSE),IF(S146=rfSpring,VLOOKUP(Q140,lstCropGrowPd,5,FALSE),VLOOKUP(Q140,lstCropGrowPd,6,FALSE))),0)","v":0},"Summer",null,null,{"$f":"IF( _xlfn.ISFORMULA(X146),\"Override if req'd -->\",\"Delete to reset -->\")","v":"Override if req'd -->"},null,{"$f":"_xlfn.IFNA(IF(Y146=rfSummer,VLOOKUP(W140,lstCropGrowPd,4,FALSE),IF(Y146=rfSpring,VLOOKUP(W140,lstCropGrowPd,5,FALSE),VLOOKUP(W140,lstCropGrowPd,6,FALSE))),0)","v":0},"Summer"]
[null,"Approx. Harvest date",null,null,null,{"$f":"IF(dtCrop9<>0,SUM(F145,F146),\"\")","v":""},null,null,null,null,null,{"$f":"IF(dtCrop10<>0,SUM(L145,L146),\"\")","v":""},null,null,null,null,null,{"$f":"IF(dtCrop11<>0,SUM(R145,R146),\"\")","v":""},null,null,null,null,null,{"$f":"IF(dtCrop12<>0,SUM(X145,X146),\"\")","v":""}]
[]
[null,"Min yield t/ha"]
[null,"Min price $/t"]
[null,"Expected costs $/ha"]
[null,null,"OR  Leasing income $/ha"]
[null,"Min estimated GM/ha",null,null,null,{"$f":"SUM((F149*F150),F152,-F151)","v":0},null,null,null,null,null,{"$f":"SUM((L149*L150),L152,-L151)","v":0},null,null,null,null,null,{"$f":"SUM((R149*R150),R152,-R151)","v":0},null,null,null,null,null,{"$f":"SUM((X149*X150),X152,-X151)","v":0}]
[null,"Total min est. GM",null,null,null,{"$f":"F153*$B$10","v":0},null,null,null,null,null,{"$f":"L153*$B$10","v":0},null,null,null,null,null,{"$f":"R153*$B$10","v":0},null,null,null,null,null,{"$f":"X153*$B$10","v":0}]
[]
[null,"Agronomic notes","Show",null,null,"Clear",null,null,null,null,null,"Clear",null,null,null,null,null,"Clear",null,null,null,null,null,"Clear"]
[{"$f":"'Crop Table'!$G$1","v":0},{"$f":"'Crop Table'!$G$2","v":"Value to rotation:"},null,{"$f":"_xlfn.IFNA(INDEX(lstCrop,MATCH(E$140,lstKey,0),MATCH($B156,lstHdr,0)),\"\")","v":""},null,null,null,null,null,{"$f":"_xlfn.IFNA(INDEX(lstCrop,MATCH(K$140,lstKey,0),MATCH($B156,lstHdr,0)),\"\")","v":""},null,null,null,null,null,{"$f":"_xlfn.IFNA(INDEX(lstCrop,MATCH(Q$140,lstKey,0),MATCH($B156,lstHdr,0)),\"\")","v":""},null,null,null,null,null,{"$f":"_xlfn.IFNA(INDEX(lstCrop,MATCH(W$140,lstKey,0),MATCH($B156,lstHdr,0)),\"\")","v":""}]
[null,{"$f":"'Crop Table'!$G$3","v":"Soil benefits.\nManagement benefits.\nEconomic benefits."},null,{"$f":"_xlfn.IFNA(INDEX(lstCrop,MATCH(E$140,lstKey,0),MATCH($B157,lstHdr,0)),\"\")","v":""},null,null,null,null,null,{"$f":"_xlfn.IFNA(INDEX(lstCrop,MATCH(K$140,lstKey,0),MATCH($B157,lstHdr,0)),\"\")","v":""},null,null,null,null,null,{"$f":"_xlfn.IFNA(INDEX(lstCrop,MATCH(Q$140,lstKey,0),MATCH($B157,lstHdr,0)),\"\")","v":""},null,null,null,null,null,{"$f":"_xlfn.IFNA(INDEX(lstCrop,MATCH(W$140,lstKey,0),MATCH($B157,lstHdr,0)),\"\")","v":""},null,null,null,null,null,null,{"$f":"B158","v":"Soil benefits.\nManagement benefits.\nEconomic benefits."},{"$f":"D158","v":""},{"$f":"J158","v":""},{"$f":"P158","v":""},{"$f":"V158","v":""}]
[{"$f":"'Crop Table'!$H$1","v":0},{"$f":"'Crop Table'!$H$2","v":"Crop risks:"},null,null,null,null,null,null,null,null,null,null,null,null,null,null,null,null,null,null,null,null,null,null,null,null,null,null,null,{"$f":"D159","v":0},{"$f":"J159","v":0},{"$f":"P159","v":0},{"$f":"V159","v":0}]
[null,{"$f":"'Crop Table'!$H$3","v":"Harvest risks  - weathering.\nManagement risks - exacerbate pest, weed or disease.\nSeasonal - rainfall, cloud, wind?\nEconomic - price, yield."},null,{"$f":"_xlfn.IFNA(INDEX(lstCrop,MATCH(E$140,lstKey,0),MATCH($B159,lstHdr,0)),\"\")","v":""},null,null,null,null,null,{"$f":"_xlfn.IFNA(INDEX(lstCrop,MATCH(K$140,lstKey,0),MATCH($B159,lstHdr,0)),\"\")","v":""},null,null,null,null,null,{"$f":"_xlfn.IFNA(INDEX(lstCrop,MATCH(Q$140,lstKey,0),MATCH($B159,lstHdr,0)),\"\")","v":""},null,null,null,null,null,{"$f":"_xlfn.IFNA(INDEX(lstCrop,MATCH(W$140,lstKey,0),MATCH($B159,lstHdr,0)),\"\")","v":""},null,null,null,null,null,null,{"$f":"B160","v":"Harvest risks  - weathering.\nManagement risks - exacerbate pest, weed or disease.\nSeasonal - rainfall, cloud, wind?\nEconomic - price, yield."},"","","",""]
[{"$f":"'Crop Table'!$I$1","v":0},{"$f":"'Crop Table'!$I$2","v":"Planting windows:"},null,null,null,null,null,null,null,null,null,null,null,null,null,null,null,null,null,null,null,null,null,null,null,null,null,null,null,0,0,0,0]
[null,{"$f":"'Crop Table'!$I$3","v":"Spring plant.\nSummer plant.\nDry season plant."},null,{"$f":"_xlfn.IFNA(INDEX(lstCrop,MATCH(E$140,lstKey,0),MATCH($B161,lstHdr,0)),\"\")","v":""},null,null,null,null,null,{"$f":"_xlfn.IFNA(INDEX(lstCrop,MATCH(K$140,lstKey,0),MATCH($B161,lstHdr,0)),\"\")","v":""},null,null,null,null,null,{"$f":"_xlfn.IFNA(INDEX(lstCrop,MATCH(Q$140,lstKey,0),MATCH($B161,lstHdr,0)),\"\")","v":""},null,null,null,null,null,{"$f":"_xlfn.IFNA(INDEX(lstCrop,MATCH(W$140,lstKey,0),MATCH($B161,lstHdr,0)),\"\")","v":""},null,null,null,null,null,null,{"$f":"B162","v":"Spring plant.\nSummer plant.\nDry season plant."},"",{"$f":"J162","v":""},"",""]
[{"$f":"'Crop Table'!$J$1","v":0},{"$f":"'Crop Table'!$J$2","v":"Expected yield range:"},null,null,null,null,null,null,null,null,null,null,null,null,null,null,null,null,null,null,null,null,null,null,null,null,null,null,null,0,{"$f":"J163","v":0},0,0]
[null,{"$f":"'Crop Table'!$J$3","v":0},null,{"$f":"_xlfn.IFNA(INDEX(lstCrop,MATCH(E$140,lstKey,0),MATCH($B163,lstHdr,0)),\"\")","v":""},null,null,null,null,null,{"$f":"_xlfn.IFNA(INDEX(lstCrop,MATCH(K$140,lstKey,0),MATCH($B163,lstHdr,0)),\"\")","v":""},null,null,null,null,null,{"$f":"_xlfn.IFNA(INDEX(lstCrop,MATCH(Q$140,lstKey,0),MATCH($B163,lstHdr,0)),\"\")","v":""},null,null,null,null,null,{"$f":"_xlfn.IFNA(INDEX(lstCrop,MATCH(W$140,lstKey,0),MATCH($B163,lstHdr,0)),\"\")","v":""},null,null,null,null,null,null,{"$f":"B164","v":0},"","","",""]
[{"$f":"'Crop Table'!$K$1","v":0},{"$f":"'Crop Table'!$K$2","v":"Soil features:"},null,null,null,null,null,null,null,null,null,null,null,null,null,null,null,null,null,null,null,null,null,null,null,null,null,null,null,0,0,0,0]
[null,{"$f":"'Crop Table'!$K$3","v":"Texture.\npH (Al, Mn toxicity?)\nSalinity senitivity (soil/water).\nSodicity sensitivity."},null,{"$f":"_xlfn.IFNA(INDEX(lstCrop,MATCH(E$140,lstKey,0),MATCH($B165,lstHdr,0)),\"\")","v":""},null,null,null,null,null,{"$f":"_xlfn.IFNA(INDEX(lstCrop,MATCH(K$140,lstKey,0),MATCH($B165,lstHdr,0)),\"\")","v":""},null,null,null,null,null,{"$f":"_xlfn.IFNA(INDEX(lstCrop,MATCH(Q$140,lstKey,0),MATCH($B165,lstHdr,0)),\"\")","v":""},null,null,null,null,null,{"$f":"_xlfn.IFNA(INDEX(lstCrop,MATCH(W$140,lstKey,0),MATCH($B165,lstHdr,0)),\"\")","v":""},null,null,null,null,null,null,{"$f":"B166","v":"Texture.\npH (Al, Mn toxicity?)\nSalinity senitivity (soil/water).\nSodicity sensitivity."},"","","",""]
[{"$f":"'Crop Table'!$L$1","v":0},{"$f":"'Crop Table'!$L$2","v":"Soil moisture and irrigation:"},null,null,null,null,null,null,null,null,null,null,null,null,null,null,null,null,null,null,null,null,null,null,null,null,null,null,null,0,0,0,0]
[null,{"$f":"'Crop Table'!$L$3","v":"Planting moisture.\nPre-water.\nPeak demand.\nWater requirements.\nScheduling/planning.\nType of irrigation."},null,{"$f":"_xlfn.IFNA(INDEX(lstCrop,MATCH(E$140,lstKey,0),MATCH($B167,lstHdr,0)),\"\")","v":""},null,null,null,null,null,{"$f":"_xlfn.IFNA(INDEX(lstCrop,MATCH(K$140,lstKey,0),MATCH($B167,lstHdr,0)),\"\")","v":""},null,null,null,null,null,{"$f":"_xlfn.IFNA(INDEX(lstCrop,MATCH(Q$140,lstKey,0),MATCH($B167,lstHdr,0)),\"\")","v":""},null,null,null,null,null,{"$f":"_xlfn.IFNA(INDEX(lstCrop,MATCH(W$140,lstKey,0),MATCH($B167,lstHdr,0)),\"\")","v":""},null,null,null,null,null,null,{"$f":"B168","v":"Planting moisture.\nPre-water.\nPeak demand.\nWater requirements.\nScheduling/planning.\nType of irrigation."},"","","",""]
[{"$f":"'Crop Table'!$M$1","v":0},{"$f":"'Crop Table'!$M$2","v":"Environmental factors:"},null,null,null,null,null,null,null,null,null,null,null,null,null,null,null,null,null,null,null,null,null,null,null,null,null,null,null,0,0,0,0]
[null,{"$f":"'Crop Table'!$M$3","v":"Temperature at planting.\nFrost sensitivity.\nSensitivity to day length, day degree accumulation.\nWaterlogging."},null,{"$f":"_xlfn.IFNA(INDEX(lstCrop,MATCH(E$140,lstKey,0),MATCH($B169,lstHdr,0)),\"\")","v":""},null,null,null,null,null,{"$f":"_xlfn.IFNA(INDEX(lstCrop,MATCH(K$140,lstKey,0),MATCH($B169,lstHdr,0)),\"\")","v":""},null,null,null,null,null,{"$f":"_xlfn.IFNA(INDEX(lstCrop,MATCH(Q$140,lstKey,0),MATCH($B169,lstHdr,0)),\"\")","v":""},null,null,null,null,null,{"$f":"_xlfn.IFNA(INDEX(lstCrop,MATCH(W$140,lstKey,0),MATCH($B169,lstHdr,0)),\"\")","v":""},null,null,null,null,null,null,{"$f":"B170","v":"Temperature at planting.\nFrost sensitivity.\nSensitivity to day length, day degree accumulation.\nWaterlogging."},"","","",""]
[{"$f":"'Crop Table'!$N$1","v":0},{"$f":"'Crop Table'!$N$2","v":"Nutrient considerations:"},null,null,null,null,null,null,null,null,null,null,null,null,null,null,null,null,null,null,null,null,null,null,null,null,null,null,null,0,0,0,0]
[null,{"$f":"'Crop Table'!$N$3","v":"Rhizobia inoculant.\nCorrect deficiencies.\nStarter fert.\nVAM dependence.\nAmt N fixed\nN removed at harvest..\nOther big nutrient sinks?"},null,{"$f":"_xlfn.IFNA(INDEX(lstCrop,MATCH(E$140,lstKey,0),MATCH($B171,lstHdr,0)),\"\")","v":""},null,null,null,null,null,{"$f":"_xlfn.IFNA(INDEX(lstCrop,MATCH(K$140,lstKey,0),MATCH($B171,lstHdr,0)),\"\")","v":""},null,null,null,null,null,{"$f":"_xlfn.IFNA(INDEX(lstCrop,MATCH(Q$140,lstKey,0),MATCH($B171,lstHdr,0)),\"\")","v":""},null,null,null,null,null,{"$f":"_xlfn.IFNA(INDEX(lstCrop,MATCH(W$140,lstKey,0),MATCH($B171,lstHdr,0)),\"\")","v":""},null,null,null,null,null,null,{"$f":"B172","v":"Rhizobia inoculant.\nCorrect deficiencies.\nStarter fert.\nVAM dependence.\nAmt N fixed\nN removed at harvest..\nOther big nutrient sinks?"},"","","",""]
[{"$f":"'Crop Table'!$O$1","v":0},{"$f":"'Crop Table'!$O$2","v":"Nematodes:"},null,null,null,null,null,null,null,null,null,null,null,null,null,null,null,null,null,null,null,null,null,null,null,null,null,null,null,0,0,0,0]
[null,{"$f":"'Crop Table'!$O$3","v":"RKN tolerance.\nRLN tolerance."},null,{"$f":"_xlfn.IFNA(INDEX(lstCrop,MATCH(E$140,lstKey,0),MATCH($B173,lstHdr,0)),\"\")","v":""},null,null,null,null,null,{"$f":"_xlfn.IFNA(INDEX(lstCrop,MATCH(K$140,lstKey,0),MATCH($B173,lstHdr,0)),\"\")","v":""},null,null,null,null,null,{"$f":"_xlfn.IFNA(INDEX(lstCrop,MATCH(Q$140,lstKey,0),MATCH($B173,lstHdr,0)),\"\")","v":""},null,null,null,null,null,{"$f":"_xlfn.IFNA(INDEX(lstCrop,MATCH(W$140,lstKey,0),MATCH($B173,lstHdr,0)),\"\")","v":""},null,null,null,null,null,null,{"$f":"B174","v":"RKN tolerance.\nRLN tolerance."},"","","",""]
[{"$f":"'Crop Table'!$P$1","v":0},{"$f":"'Crop Table'!P$2","v":"Land preparation:"},null,null,null,null,null,null,null,null,null,null,null,null,null,null,null,null,null,null,null,null,null,null,null,null,null,null,null,0,0,0,0]
[null,{"$f":"'Crop Table'!$P$3","v":"Drainage/raised beds.\nSuitability for direct drilling.\nSeed bed preparation.\nStubble management from previous crop."},null,{"$f":"_xlfn.IFNA(INDEX(lstCrop,MATCH(E$140,lstKey,0),MATCH($B175,lstHdr,0)),\"\")","v":""},null,null,null,null,null,{"$f":"_xlfn.IFNA(INDEX(lstCrop,MATCH(K$140,lstKey,0),MATCH($B175,lstHdr,0)),\"\")","v":""},null,null,null,null,null,{"$f":"_xlfn.IFNA(INDEX(lstCrop,MATCH(Q$140,lstKey,0),MATCH($B175,lstHdr,0)),\"\")","v":""},null,null,null,null,null,{"$f":"_xlfn.IFNA(INDEX(lstCrop,MATCH(W$140,lstKey,0),MATCH($B175,lstHdr,0)),\"\")","v":""},null,null,null,null,null,null,{"$f":"B176","v":"Drainage/raised beds.\nSuitability for direct drilling.\nSeed bed preparation.\nStubble management from previous crop."},"","","",""]
[{"$f":"'Crop Table'!$Q$1","v":0},{"$f":"'Crop Table'!$Q$2","v":"Disease management:"},null,null,null,null,null,null,null,null,null,null,null,null,null,null,null,null,null,null,null,null,null,null,null,null,null,null,null,0,0,0,0]
[null,{"$f":"'Crop Table'!$Q$3","v":"Susceptibility.\nHosts.\nSuppress."},null,{"$f":"_xlfn.IFNA(INDEX(lstCrop,MATCH(E$140,lstKey,0),MATCH($B177,lstHdr,0)),\"\")","v":""},null,null,null,null,null,{"$f":"_xlfn.IFNA(INDEX(lstCrop,MATCH(K$140,lstKey,0),MATCH($B177,lstHdr,0)),\"\")","v":""},null,null,null,null,null,{"$f":"_xlfn.IFNA(INDEX(lstCrop,MATCH(Q$140,lstKey,0),MATCH($B177,lstHdr,0)),\"\")","v":""},null,null,null,null,null,{"$f":"_xlfn.IFNA(INDEX(lstCrop,MATCH(W$140,lstKey,0),MATCH($B177,lstHdr,0)),\"\")","v":""},null,null,null,null,null,null,{"$f":"B178","v":"Susceptibility.\nHosts.\nSuppress."},"","","",""]
[{"$f":"'Crop Table'!$R$1","v":0},{"$f":"'Crop Table'!$R$2","v":"Insect management:"},null,null,null,null,null,null,null,null,null,null,null,null,null,null,null,null,null,null,null,null,null,null,null,null,null,null,null,0,0,0,0]
[null,{"$f":"'Crop Table'!$R$3","v":"Beneficials.\nSusceptibility.\nHosts.\nSuppress."},null,{"$f":"_xlfn.IFNA(INDEX(lstCrop,MATCH(E$140,lstKey,0),MATCH($B179,lstHdr,0)),\"\")","v":""},null,null,null,null,null,{"$f":"_xlfn.IFNA(INDEX(lstCrop,MATCH(K$140,lstKey,0),MATCH($B179,lstHdr,0)),\"\")","v":""},null,null,null,null,null,{"$f":"_xlfn.IFNA(INDEX(lstCrop,MATCH(Q$140,lstKey,0),MATCH($B179,lstHdr,0)),\"\")","v":""},null,null,null,null,null,{"$f":"_xlfn.IFNA(INDEX(lstCrop,MATCH(W$140,lstKey,0),MATCH($B179,lstHdr,0)),\"\")","v":""},null,null,null,null,null,null,{"$f":"B180","v":"Beneficials.\nSusceptibility.\nHosts.\nSuppress."},"","","",""]
[{"$f":"'Crop Table'!$S$1","v":0},{"$f":"'Crop Table'!$S$2","v":"Weed management:"},null,null,null,null,null,null,null,null,null,null,null,null,null,null,null,null,null,null,null,null,null,null,null,null,null,null,null,0,0,0,0]
[null,{"$f":"'Crop Table'!$S$3","v":"Susceptible to previous residual, plant-back alerts for permitted MOA\ntarget grass/broadleaf, spp specific MOA.\nCrop competition"},null,{"$f":"_xlfn.IFNA(INDEX(lstCrop,MATCH(E$140,lstKey,0),MATCH($B181,lstHdr,0)),\"\")","v":""},null,null,null,null,null,{"$f":"_xlfn.IFNA(INDEX(lstCrop,MATCH(K$140,lstKey,0),MATCH($B181,lstHdr,0)),\"\")","v":""},null,null,null,null,null,{"$f":"_xlfn.IFNA(INDEX(lstCrop,MATCH(Q$140,lstKey,0),MATCH($B181,lstHdr,0)),\"\")","v":""},null,null,null,null,null,{"$f":"_xlfn.IFNA(INDEX(lstCrop,MATCH(W$140,lstKey,0),MATCH($B181,lstHdr,0)),\"\")","v":""},null,null,null,null,null,null,{"$f":"B182","v":"Susceptible to previous residual, plant-back alerts for permitted MOA\ntarget grass/broadleaf, spp specific MOA.\nCrop competition"},"","","",""]
[{"$f":"'Crop Table'!$T$1","v":0},{"$f":"'Crop Table'!$T$2","v":"Harvest:"},null,null,null,null,null,null,null,null,null,null,null,null,null,null,null,null,null,null,null,null,null,null,null,null,null,null,null,0,0,0,0]
[null,{"$f":"'Crop Table'!$T$3","v":"Timing.\nRisk. \nDesiccation.\nLogistics/contractors."},null,{"$f":"_xlfn.IFNA(INDEX(lstCrop,MATCH(E$140,lstKey,0),MATCH($B183,lstHdr,0)),\"\")","v":""},null,null,null,null,null,{"$f":"_xlfn.IFNA(INDEX(lstCrop,MATCH(K$140,lstKey,0),MATCH($B183,lstHdr,0)),\"\")","v":""},null,null,null,null,null,{"$f":"_xlfn.IFNA(INDEX(lstCrop,MATCH(Q$140,lstKey,0),MATCH($B183,lstHdr,0)),\"\")","v":""},null,null,null,null,null,{"$f":"_xlfn.IFNA(INDEX(lstCrop,MATCH(W$140,lstKey,0),MATCH($B183,lstHdr,0)),\"\")","v":""},null,null,null,null,null,null,{"$f":"B184","v":"Timing.\nRisk. \nDesiccation.\nLogistics/contractors."},"","","",""]
[{"$f":"'Crop Table'!$U$1","v":0},{"$f":"'Crop Table'!$U$2","v":"Stubble management for following crop:"},null,null,null,null,null,null,null,null,null,null,null,null,null,null,null,null,null,null,null,null,null,null,null,null,null,null,null,0,0,0,0]
[null,{"$f":"'Crop Table'!$U$3","v":"Ease of planting next crop.\nValue for fallow soil protection."},null,{"$f":"_xlfn.IFNA(INDEX(lstCrop,MATCH(E$140,lstKey,0),MATCH($B185,lstHdr,0)),\"\")","v":""},null,null,null,null,null,{"$f":"_xlfn.IFNA(INDEX(lstCrop,MATCH(K$140,lstKey,0),MATCH($B185,lstHdr,0)),\"\")","v":""},null,null,null,null,null,{"$f":"_xlfn.IFNA(INDEX(lstCrop,MATCH(Q$140,lstKey,0),MATCH($B185,lstHdr,0)),\"\")","v":""},null,null,null,null,null,{"$f":"_xlfn.IFNA(INDEX(lstCrop,MATCH(W$140,lstKey,0),MATCH($B185,lstHdr,0)),\"\")","v":""},null,null,null,null,null,null,{"$f":"B186","v":"Ease of planting next crop.\nValue for fallow soil protection."},"","","",""]
[{"$f":"'Crop Table'!$V$1","v":0},{"$f":"'Crop Table'!$V$2","v":"Economics and marketing:"},null,null,null,null,null,null,null,null,null,null,null,null,null,null,null,null,null,null,null,null,null,null,null,null,null,null,null,0,0,0,0]
[null,{"$f":"'Crop Table'!$V$3","v":"Crop value, marketing, contracts, on-farm storage, freight, end use eg hay, human consumption grain, stockfeed"},null,{"$f":"_xlfn.IFNA(INDEX(lstCrop,MATCH(E$140,lstKey,0),MATCH($B187,lstHdr,0)),\"\")","v":""},null,null,null,null,null,{"$f":"_xlfn.IFNA(INDEX(lstCrop,MATCH(K$140,lstKey,0),MATCH($B187,lstHdr,0)),\"\")","v":""},null,null,null,null,null,{"$f":"_xlfn.IFNA(INDEX(lstCrop,MATCH(Q$140,lstKey,0),MATCH($B187,lstHdr,0)),\"\")","v":""},null,null,null,null,null,{"$f":"_xlfn.IFNA(INDEX(lstCrop,MATCH(W$140,lstKey,0),MATCH($B187,lstHdr,0)),\"\")","v":""},null,null,null,null,null,null,{"$f":"B188","v":"Crop value, marketing, contracts, on-farm storage, freight, end use eg hay, human consumption grain, stockfeed"},"","","",""]
[{"$f":"'Crop Table'!$W$1","v":0},{"$f":"'Crop Table'!$W$2","v":"Management input:"},null,null,null,null,null,null,null,null,null,null,null,null,null,null,null,null,null,null,null,null,null,null,null,null,null,null,null,0,0,0,0]
[null,{"$f":"'Crop Table'!$W$3","v":"Set and forget v intense management, timeliness, agronomic advice for monitoring and sprays"},null,{"$f":"_xlfn.IFNA(INDEX(lstCrop,MATCH(E$140,lstKey,0),MATCH($B189,lstHdr,0)),\"\")","v":""},null,null,null,null,null,{"$f":"_xlfn.IFNA(INDEX(lstCrop,MATCH(K$140,lstKey,0),MATCH($B189,lstHdr,0)),\"\")","v":""},null,null,null,null,null,{"$f":"_xlfn.IFNA(INDEX(lstCrop,MATCH(Q$140,lstKey,0),MATCH($B189,lstHdr,0)),\"\")","v":""},null,null,null,null,null,{"$f":"_xlfn.IFNA(INDEX(lstCrop,MATCH(W$140,lstKey,0),MATCH($B189,lstHdr,0)),\"\")","v":""},null,null,null,null,null,null,{"$f":"B190","v":"Set and forget v intense management, timeliness, agronomic advice for monitoring and sprays"},"","","",""]
[{"$f":"'Crop Table'!$X$1","v":0},{"$f":"'Crop Table'!$X$2","v":"Specialised equipment:"},null,null,null,null,null,null,null,null,null,null,null,null,null,null,null,null,null,null,null,null,null,null,null,null,null,null,null,0,0,0,0]
[null,{"$f":"'Crop Table'!$X$3","v":"What operations, access to contractors"},null,{"$f":"_xlfn.IFNA(INDEX(lstCrop,MATCH(E$140,lstKey,0),MATCH($B191,lstHdr,0)),\"\")","v":""},null,null,null,null,null,{"$f":"_xlfn.IFNA(INDEX(lstCrop,MATCH(K$140,lstKey,0),MATCH($B191,lstHdr,0)),\"\")","v":""},null,null,null,null,null,{"$f":"_xlfn.IFNA(INDEX(lstCrop,MATCH(Q$140,lstKey,0),MATCH($B191,lstHdr,0)),\"\")","v":""},null,null,null,null,null,{"$f":"_xlfn.IFNA(INDEX(lstCrop,MATCH(W$140,lstKey,0),MATCH($B191,lstHdr,0)),\"\")","v":""},null,null,null,null,null,null,{"$f":"B192","v":"What operations, access to contractors"},"","","",""]
[null,null,null,null,null,null,null,null,null,null,null,null,null,null,null,null,null,null,null,null,null,null,null,null,null,null,null,null,null,0,0,0,0]
[]
[null,"Enter your Notes here:",null,null,null,null,null,null,null,null,null,null,null,null,null,null,null,null,null,null,null,null,null,null,null,null,null,null,null,{"$f":"E195","v":0},{"$f":"K195","v":0},{"$f":"Q195","v":0},{"$f":"W195","v":0}]
[]
[]
[null,"Pulse Check Coastal Break Crops Planner – Conceptual design: Cindy Benjamin,  Developed by: Jenny Scott (ScottLogic)"]

{"sheet":"Calendar","index":2,"n_rows":47,"n_cols":75,"rows_kept":47,"cut":false,"hidden":false,"merged":[[1,2,1,17],[15,60,15,66],[15,68,15,74],[12,50,12,54],[15,27,15,33],[15,35,15,41],[9,32,9,36],[9,38,9,42],[11,26,11,30],[11,32,11,36],[8,14,8,18],[15,52,15,58],[11,2,11,6],[9,2,9,6],[9,20,9,24],[12,2,12,6],[8,2,8,6],[9,8,9,12],[8,8,8,12],[12,44,12,48],[9,44,9,48],[15,2,15,8],[15,10,15,16],[15,43,15,49],[31,2,31,8],[31,10,31,16],[31,18,31,24],[39,27,39,33],[39,35,39,41],[31,27,31,33],[31,35,31,41],[23,27,23,33],[23,35,23,41],[3,20,3,26],[3,27,3,42],[5,2,5,6],[5,8,5,12],[5,20,5,24],[5,15,5,17],[3,2,3,17],[39,60,39,66],[11,8,11,12],[12,8,12,12],[7,62,7,66],[11,38,11,42],[12,20,12,24],[8,20,8,24],[11,20,11,24],[9,26,9,30],[23,52,23,58],[31,52,31,58],[39,2,39,8],[39,10,39,16],[39,43,39,49],[39,18,39,24],[31,43,31,49],[23,2,23,8],[39,68,39,74],[23,60,23,66],[23,68,23,74],[31,60,31,66],[31,68,31,74],[9,14,9,18],[11,50,11,54],[11,56,11,60],[11,62,11,66],[11,68,11,72],[12,14,12,18],[15,18,15,24],[11,14,11,18],[39,52,39,58],[23,43,23,49],[23,10,23,16],[23,18,23,24],[1,60,1,64],[1,56,1,59],[1,66,1,70],[1,71,1,73],[12,56,12,60],[12,62,12,66],[12,68,12,72],[5,27,5,72],[8,50,8,54],[8,56,8,60],[8,62,8,66],[8,68,8,72],[9,50,9,54],[9,56,9,60],[9,62,9,66],[11,44,11,48],[8,38,8,42],[12,26,12,30],[12,32,12,36],[12,38,12,42],[8,26,8,30],[8,32,8,36],[9,68,9,72],[8,44,8,48],[7,68,7,72],[7,32,7,36],[7,38,7,42],[7,44,7,48],[7,50,7,54],[7,56,7,60],[7,2,7,6],[7,8,7,12],[7,14,7,18],[7,20,7,24],[7,26,7,30]]}
[]
[null,null,"Print Calendar",null,null,null,null,null,null,null,null,null,null,null,null,null,null,null,"<-- Double click here to print the calendar",null,null,null,null,null,null,null,null,null,null,null,null,null,null,null,null,null,null,null,null,null,null,null,null,null,null,null,null,null,null,null,null,null,null,null,null,null,"Start Date:",null,null,null,{"$f":"DATE(Calendar!P6,MATCH(Calendar!I6,lstMonths,0),1)","v":"2020-01-01"},null,null,null,null,null,"Day of Week:",null,null,null,null,{"$f":"WEEKDAY(BI2,1)","v":4}]
[]
[null,null,"Block 1-",null,null,null,null,null,null,null,null,null,null,null,null,null,null,null,null,null,{"$f":"INDIRECT(\"'\"  & $C$4 & \"'!\" & ADDRESS(ROW('Block 1-'!$B$5),COLUMN('Block 1-'!$B$5)))","v":"Block 1:"},null,null,null,null,null,null,{"$f":"INDIRECT(\"'\"  & $C$4 & \"'!\" & ADDRESS(ROW('Block 1-'!$B$7),COLUMN('Block 1-'!$B$7)))","v":0}]
[]
[null,null,"Start month:",null,null,null,null,null,"Jan",null,null,null,null,null,null,2020,null,null,null,null,"<-- Select",null,null,null,null,null,null,{"$f":"\"NOTE: Red cells indicate overlapping date ranges.  Make corrections on the \" & C4 &  \" sheet.\"","v":"NOTE: Red cells indicate overlapping date ranges.  Make corrections on the Block 1- sheet."}]
[]
[null,null,"Crop 1",null,null,null,null,null,"Crop 2",null,null,null,null,null,"Crop 3",null,null,null,null,null,"Crop 4",null,null,null,null,null,"Crop 5",null,null,null,null,null,"Crop 6",null,null,null,null,null,"Crop 7",null,null,null,null,null,"Crop 8",null,null,null,null,null,"Crop 9",null,null,null,null,null,"Crop 10",null,null,null,null,null,"Crop 11",null,null,null,null,null,"Crop 12"]
[null,null,{"$f":"INDIRECT(\"'\"  & $C$4 & \"'!\" & ADDRESS(ROW('Block 1-'!$F24),COLUMN('Block 1-'!$F24)))","v":0},null,null,null,null,null,{"$f":"INDIRECT(\"'\"  & $C$4 & \"'!\" & ADDRESS(ROW('Block 1-'!$L24),COLUMN('Block 1-'!$L24)))","v":0},null,null,null,null,null,{"$f":"INDIRECT(\"'\"  & $C$4 & \"'!\" & ADDRESS(ROW('Block 1-'!$R24),COLUMN('Block 1-'!$R24)))","v":0},null,null,null,null,null,{"$f":"INDIRECT(\"'\"  & $C$4 & \"'!\" & ADDRESS(ROW('Block 1-'!$X24),COLUMN('Block 1-'!$X24)))","v":0},null,null,null,null,null,{"$f":"INDIRECT(\"'\"  & $C$4 & \"'!\" & ADDRESS(ROW('Block 1-'!$F83),COLUMN('Block 1-'!$F83)))","v":0},null,null,null,null,null,{"$f":"INDIRECT(\"'\"  & $C$4 & \"'!\" & ADDRESS(ROW('Block 1-'!$L83),COLUMN('Block 1-'!$L83)))","v":0},null,null,null,null,null,{"$f":"INDIRECT(\"'\"  & $C$4 & \"'!\" & ADDRESS(ROW('Block 1-'!$R83),COLUMN('Block 1-'!$R83)))","v":0},null,null,null,null,null,{"$f":"INDIRECT(\"'\"  & $C$4 & \"'!\" & ADDRESS(ROW('Block 1-'!$X83),COLUMN('Block 1-'!$X83)))","v":0},null,null,null,null,null,{"$f":"INDIRECT(\"'\"  & $C$4 & \"'!\" & ADDRESS(ROW('Block 1-'!$F142),COLUMN('Block 1-'!$F142)))","v":0},null,null,null,null,null,{"$f":"INDIRECT(\"'\"  & $C$4 & \"'!\" & ADDRESS(ROW('Block 1-'!$L142),COLUMN('Block 1-'!$L142)))","v":0},null,null,null,null,null,{"$f":"INDIRECT(\"'\"  & $C$4 & \"'!\" & ADDRESS(ROW('Block 1-'!$R142),COLUMN('Block 1-'!$R142)))","v":0},null,null,null,null,null,{"$f":"INDIRECT(\"'\"  & $C$4 & \"'!\" & ADDRESS(ROW('Block 1-'!$X142),COLUMN('Block 1-'!$X142)))","v":0}]
[null,null,{"$f":"INDIRECT(\"'\"  & $C$4 & \"'!\" & ADDRESS(ROW('Block 1-'!$F25),COLUMN('Block 1-'!$F25)))","v":0},null,null,null,null,null,{"$f":"INDIRECT(\"'\"  & $C$4 & \"'!\" & ADDRESS(ROW('Block 1-'!$L25),COLUMN('Block 1-'!$L25)))","v":0},null,null,null,null,null,{"$f":"INDIRECT(\"'\"  & $C$4 & \"'!\" & ADDRESS(ROW('Block 1-'!$R25),COLUMN('Block 1-'!$R25)))","v":0},null,null,null,null,null,{"$f":"INDIRECT(\"'\"  & $C$4 & \"'!\" & ADDRESS(ROW('Block 1-'!$X25),COLUMN('Block 1-'!$X25)))","v":0},null,null,null,null,null,{"$f":"INDIRECT(\"'\"  & $C$4 & \"'!\" & ADDRESS(ROW('Block 1-'!$F84),COLUMN('Block 1-'!$F84)))","v":0},null,null,null,null,null,{"$f":"INDIRECT(\"'\"  & $C$4 & \"'!\" & ADDRESS(ROW('Block 1-'!$L84),COLUMN('Block 1-'!$L84)))","v":0},null,null,null,null,null,{"$f":"INDIRECT(\"'\"  & $C$4 & \"'!\" & ADDRESS(ROW('Block 1-'!$R84),COLUMN('Block 1-'!$R84)))","v":0},null,null,null,null,null,{"$f":"INDIRECT(\"'\"  & $C$4 & \"'!\" & ADDRESS(ROW('Block 1-'!$X84),COLUMN('Block 1-'!$X84)))","v":0},null,null,null,null,null,{"$f":"INDIRECT(\"'\"  & $C$4 & \"'!\" & ADDRESS(ROW('Block 1-'!$F143),COLUMN('Block 1-'!$F143)))","v":0},null,null,null,null,null,{"$f":"INDIRECT(\"'\"  & $C$4 & \"'!\" & ADDRESS(ROW('Block 1-'!$L143),COLUMN('Block 1-'!$L143)))","v":0},null,null,null,null,null,{"$f":"INDIRECT(\"'\"  & $C$4 & \"'!\" & ADDRESS(ROW('Block 1-'!$R143),COLUMN('Block 1-'!$R143)))","v":0},null,null,null,null,null,{"$f":"INDIRECT(\"'\"  & $C$4 & \"'!\" & ADDRESS(ROW('Block 1-'!$X143),COLUMN('Block 1-'!$X143)))","v":0}]
[]
[null,null,{"$f":"INDIRECT(\"'\"  & $C$4 & \"'!\" & ADDRESS(ROW('Block 1-'!$F27),COLUMN('Block 1-'!$F27)))","v":"00:00:00"},null,null,null,null,null,{"$f":"INDIRECT(\"'\"  & $C$4 & \"'!\" & ADDRESS(ROW('Block 1-'!$L27),COLUMN('Block 1-'!$L27)))","v":"00:00:00"},null,null,null,null,null,{"$f":"INDIRECT(\"'\"  & $C$4 & \"'!\" & ADDRESS(ROW('Block 1-'!$R27),COLUMN('Block 1-'!$R27)))","v":"00:00:00"},null,null,null,null,null,{"$f":"INDIRECT(\"'\"  & $C$4 & \"'!\" & ADDRESS(ROW('Block 1-'!$X27),COLUMN('Block 1-'!$X27)))","v":"00:00:00"},null,null,null,null,null,{"$f":"INDIRECT(\"'\"  & $C$4 & \"'!\" & ADDRESS(ROW('Block 1-'!$F86),COLUMN('Block 1-'!$F86)))","v":"00:00:00"},null,null,null,null,null,{"$f":"INDIRECT(\"'\"  & $C$4 & \"'!\" & ADDRESS(ROW('Block 1-'!$L86),COLUMN('Block 1-'!$L86)))","v":"00:00:00"},null,null,null,null,null,{"$f":"INDIRECT(\"'\"  & $C$4 & \"'!\" & ADDRESS(ROW('Block 1-'!$R86),COLUMN('Block 1-'!$R86)))","v":"00:00:00"},null,null,null,null,null,{"$f":"INDIRECT(\"'\"  & $C$4 & \"'!\" & ADDRESS(ROW('Block 1-'!$X86),COLUMN('Block 1-'!$X86)))","v":"00:00:00"},null,null,null,null,null,{"$f":"INDIRECT(\"'\"  & $C$4 & \"'!\" & ADDRESS(ROW('Block 1-'!$F145),COLUMN('Block 1-'!$F145)))","v":"00:00:00"},null,null,null,null,null,{"$f":"INDIRECT(\"'\"  & $C$4 & \"'!\" & ADDRESS(ROW('Block 1-'!$L145),COLUMN('Block 1-'!$L145)))","v":"00:00:00"},null,null,null,null,null,{"$f":"INDIRECT(\"'\"  & $C$4 & \"'!\" & ADDRESS(ROW('Block 1-'!$R145),COLUMN('Block 1-'!$R145)))","v":"00:00:00"},null,null,null,null,null,{"$f":"INDIRECT(\"'\"  & $C$4 & \"'!\" & ADDRESS(ROW('Block 1-'!$X145),COLUMN('Block 1-'!$X145)))","v":"00:00:00"}]
[null,null,{"$f":"INDIRECT(\"'\"  & $C$4 & \"'!\" & ADDRESS(ROW('Block 1-'!$F29),COLUMN('Block 1-'!$F29)))","v":""},null,null,null,null,null,{"$f":"INDIRECT(\"'\"  & $C$4 & \"'!\" & ADDRESS(ROW('Block 1-'!$L29),COLUMN('Block 1-'!$L29)))","v":""},null,null,null,null,null,{"$f":"INDIRECT(\"'\"  & $C$4 & \"'!\" & ADDRESS(ROW('Block 1-'!$R29),COLUMN('Block 1-'!$R29)))","v":""},null,null,null,null,null,{"$f":"INDIRECT(\"'\"  & $C$4 & \"'!\" & ADDRESS(ROW('Block 1-'!$X29),COLUMN('Block 1-'!$X29)))","v":""},null,null,null,null,null,{"$f":"INDIRECT(\"'\"  & $C$4 & \"'!\" & ADDRESS(ROW('Block 1-'!$F88),COLUMN('Block 1-'!$F88)))","v":""},null,null,null,null,null,{"$f":"INDIRECT(\"'\"  & $C$4 & \"'!\" & ADDRESS(ROW('Block 1-'!$L88),COLUMN('Block 1-'!$L88)))","v":""},null,null,null,null,null,{"$f":"INDIRECT(\"'\"  & $C$4 & \"'!\" & ADDRESS(ROW('Block 1-'!$R88),COLUMN('Block 1-'!$R88)))","v":""},null,null,null,null,null,{"$f":"INDIRECT(\"'\"  & $C$4 & \"'!\" & ADDRESS(ROW('Block 1-'!$X88),COLUMN('Block 1-'!$X88)))","v":""},null,null,null,null,null,{"$f":"INDIRECT(\"'\"  & $C$4 & \"'!\" & ADDRESS(ROW('Block 1-'!$F147),COLUMN('Block 1-'!$F147)))","v":""},null,null,null,null,null,{"$f":"INDIRECT(\"'\"  & $C$4 & \"'!\" & ADDRESS(ROW('Block 1-'!$L147),COLUMN('Block 1-'!$L147)))","v":""},null,null,null,null,null,{"$f":"INDIRECT(\"'\"  & $C$4 & \"'!\" & ADDRESS(ROW('Block 1-'!$R147),COLUMN('Block 1-'!$R147)))","v":""},null,null,null,null,null,{"$f":"INDIRECT(\"'\"  & $C$4 & \"'!\" & ADDRESS(ROW('Block 1-'!$X147),COLUMN('Block 1-'!$X147)))","v":""}]
[]
[]
[null,null,{"$f":"Calendar!BI2","v":"2020-01-01"},null,null,null,null,null,null,null,{"$f":"EDATE(C16,1)","v":"2020-02-01"},null,null,null,null,null,null,null,{"$f":"EDATE(K16,1)","v":"2020-03-01"},null,null,null,null,null,null,null,null,{"$f":"EDATE(S40,1)","v":"2021-01-28"},null,null,null,null,null,null,null,{"$f":"EDATE(AB16,1)","v":"2021-02-28"},null,null,null,null,null,null,null,{"$f":"EDATE(AJ16,1)","v":"2021-03-28"},null,null,null,null,null,null,null,null,{"$f":"EDATE(AR40,1)","v":"2022-01-27"},null,null,null,null,null,null,null,{"$f":"EDATE(BA16,1)","v":"2022-02-27"},null,null,null,null,null,null,null,{"$f":"EDATE(BI16,1)","v":"2022-03-27"}]
[null,null,"S","M","T","W","T","F","S",null,"S","M","T","W","T","F","S",null,"S","M","T","W","T","F","S",null,null,"S","M","T","W","T","F","S",null,"S","M","T","W","T","F","S",null,"S","M","T","W","T","F","S",null,null,"S","M","T","W","T","F","S",null,"S","M","T","W","T","F","S",null,"S","M","T","W","T","F","S"]
[null,null,{"$f":"Calendar!$BI$2-Calendar!$BT$2+1","v":"2019-12-29"},{"$f":"C18+1","v":"2019-12-30"},{"$f":"D18+1","v":"2019-12-31"},"2020-01-01","2020-01-02","2020-01-03","2020-01-04",null,{"$f":"IF(AND(DAY(C23)>1,DAY(C23)<=7),C22,C23)","v":"2020-01-26"},{"$f":"K18+1","v":"2020-01-27"},{"$f":"L18+1","v":"2020-01-28"},"2020-01-29","2020-01-30","2020-01-31","2020-02-01",null,{"$f":"IF(AND(DAY(K23)>1,DAY(K23)<=7),K22,K23)","v":"2020-03-01"},{"$f":"S18+1","v":"2020-03-02"},{"$f":"T18+1","v":"2020-03-03"},"2020-03-04","2020-03-05","2020-03-06","2020-03-07",null,null,{"$f":"IF(AND(DAY(S47)>1,DAY(S47)<=7),S46,S47)","v":"2020-12-27"},{"$f":"AB18+1","v":"2020-12-28"},{"$f":"AC18+1","v":"2020-12-29"},"2020-12-30","2020-12-31","2021-01-01","2021-01-02",null,{"$f":"IF(AND(DAY(AB23)>1,DAY(AB23)<=7),AB22,AB23)","v":"2021-01-31"},{"$f":"AJ18+1","v":"2021-02-01"},{"$f":"AK18+1","v":"2021-02-02"},"2021-02-03","2021-02-04","2021-02-05","2021-02-06",null,{"$f":"IF(AND(DAY(AJ23)>1,DAY(AJ23)<=7),AJ22,AJ23)","v":"2021-02-28"},{"$f":"AR18+1","v":"2021-03-01"},{"$f":"AS18+1","v":"2021-03-02"},"2021-03-03","2021-03-04","2021-03-05","2021-03-06",null,null,{"$f":"IF(AND(DAY(AR47)>1,DAY(AR47)<=7),AR46,AR47)","v":"2021-12-26"},{"$f":"BA18+1","v":"2021-12-27"},{"$f":"BB18+1","v":"2021-12-28"},{"$f":"BC18+1","v":"2021-12-29"},{"$f":"BD18+1","v":"2021-12-30"},{"$f":"BE18+1","v":"2021-12-31"},{"$f":"BF18+1","v":"2022-01-01"},null,{"$f":"IF(AND(DAY(BA23)>1,DAY(BA23)<=7),BA22,BA23)","v":"2022-01-30"},{"$f":"BI18+1","v":"2022-01-31"},{"$f":"BJ18+1","v":"2022-02-01"},{"$f":"BK18+1","v":"2022-02-02"},{"$f":"BL18+1","v":"2022-02-03"},{"$f":"BM18+1","v":"2022-02-04"},{"$f":"BN18+1","v":"2022-02-05"},null,{"$f":"IF(AND(DAY(BI23)>1,DAY(BI23)<=7),BI22,BI23)","v":"2022-02-27"},{"$f":"BQ18+1","v":"2022-02-28"},{"$f":"BR18+1","v":"2022-03-01"},{"$f":"BS18+1","v":"2022-03-02"},{"$f":"BT18+1","v":"2022-03-03"},{"$f":"BU18+1","v":"2022-03-04"},{"$f":"BV18+1","v":"2022-03-05"}]
[null,null,{"$f":"I18+1","v":"2020-01-05"},"2020-01-06","2020-01-07","2020-01-08","2020-01-09","2020-01-10","2020-01-11",null,{"$f":"Q18+1","v":"2020-02-02"},"2020-02-03","2020-02-04","2020-02-05","2020-02-06","2020-02-07","2020-02-08",null,{"$f":"Y18+1","v":"2020-03-08"},"2020-03-09","2020-03-10","2020-03-11","2020-03-12","2020-03-13","2020-03-14",null,null,{"$f":"AH18+1","v":"2021-01-03"},"2021-01-04","2021-01-05","2021-01-06","2021-01-07","2021-01-08","2021-01-09",null,{"$f":"AP18+1","v":"2021-02-07"},"2021-02-08","2021-02-09","2021-02-10","2021-02-11","2021-02-12","2021-02-13",null,{"$f":"AX18+1","v":"2021-03-07"},"2021-03-08","2021-03-09","2021-03-10","2021-03-11","2021-03-12","2021-03-13",null,null,{"$f":"BG18+1","v":"2022-01-02"},"2022-01-03","2022-01-04","2022-01-05","2022-01-06","2022-01-07","2022-01-08",null,{"$f":"BO18+1","v":"2022-02-06"},"2022-02-07","2022-02-08","2022-02-09","2022-02-10","2022-02-11","2022-02-12",null,{"$f":"BW18+1","v":"2022-03-06"},"2022-03-07","2022-03-08","2022-03-09","2022-03-10","2022-03-11","2022-03-12"]
[null,null,{"$f":"I19+1","v":"2020-01-12"},"2020-01-13","2020-01-14","2020-01-15","2020-01-16","2020-01-17","2020-01-18",null,{"$f":"Q19+1","v":"2020-02-09"},"2020-02-10","2020-02-11","2020-02-12","2020-02-13","2020-02-14","2020-02-15",null,{"$f":"Y19+1","v":"2020-03-15"},"2020-03-16","2020-03-17","2020-03-18","2020-03-19","2020-03-20","2020-03-21",null,null,{"$f":"AH19+1","v":"2021-01-10"},"2021-01-11","2021-01-12","2021-01-13","2021-01-14","2021-01-15","2021-01-16",null,{"$f":"AP19+1","v":"2021-02-14"},"2021-02-15","2021-02-16","2021-02-17","2021-02-18","2021-02-19","2021-02-20",null,{"$f":"AX19+1","v":"2021-03-14"},"2021-03-15","2021-03-16","2021-03-17","2021-03-18","2021-03-19","2021-03-20",null,null,{"$f":"BG19+1","v":"2022-01-09"},"2022-01-10","2022-01-11","2022-01-12","2022-01-13","2022-01-14","2022-01-15",null,{"$f":"BO19+1","v":"2022-02-13"},"2022-02-14","2022-02-15","2022-02-16","2022-02-17","2022-02-18","2022-02-19",null,{"$f":"BW19+1","v":"2022-03-13"},"2022-03-14","2022-03-15","2022-03-16","2022-03-17","2022-03-18","2022-03-19"]
[null,null,{"$f":"I20+1","v":"2020-01-19"},"2020-01-20","2020-01-21","2020-01-22","2020-01-23","2020-01-24","2020-01-25",null,{"$f":"Q20+1","v":"2020-02-16"},"2020-02-17","2020-02-18","2020-02-19","2020-02-20","2020-02-21","2020-02-22",null,{"$f":"Y20+1","v":"2020-03-22"},"2020-03-23","2020-03-24","2020-03-25","2020-03-26","2020-03-27","2020-03-28",null,null,{"$f":"AH20+1","v":"2021-01-17"},"2021-01-18","2021-01-19","2021-01-20","2021-01-21","2021-01-22","2021-01-23",null,{"$f":"AP20+1","v":"2021-02-21"},"2021-02-22","2021-02-23","2021-02-24","2021-02-25","2021-02-26","2021-02-27",null,{"$f":"AX20+1","v":"2021-03-21"},"2021-03-22","2021-03-23","2021-03-24","2021-03-25","2021-03-26","2021-03-27",null,null,{"$f":"BG20+1","v":"2022-01-16"},"2022-01-17","2022-01-18","2022-01-19","2022-01-20","2022-01-21","2022-01-22",null,{"$f":"BO20+1","v":"2022-02-20"},"2022-02-21","2022-02-22","2022-02-23","2022-02-24","2022-02-25","2022-02-26",null,{"$f":"BW20+1","v":"2022-03-20"},"2022-03-21","2022-03-22","2022-03-23","2022-03-24","2022-03-25","2022-03-26"]
[null,null,{"$f":"I21+1","v":"2020-01-26"},"2020-01-27","2020-01-28","2020-01-29","2020-01-30","2020-01-31","2020-02-01",null,{"$f":"Q21+1","v":"2020-02-23"},"2020-02-24","2020-02-25","2020-02-26","2020-02-27","2020-02-28","2020-02-29",null,{"$f":"Y21+1","v":"2020-03-29"},"2020-03-30","2020-03-31","2020-04-01","2020-04-02","2020-04-03","2020-04-04",null,null,{"$f":"AH21+1","v":"2021-01-24"},"2021-01-25","2021-01-26","2021-01-27","2021-01-28","2021-01-29","2021-01-30",null,{"$f":"AP21+1","v":"2021-02-28"},"2021-03-01","2021-03-02","2021-03-03","2021-03-04","2021-03-05","2021-03-06",null,{"$f":"AX21+1","v":"2021-03-28"},"2021-03-29","2021-03-30","2021-03-31","2021-04-01","2021-04-02","2021-04-03",null,null,{"$f":"BG21+1","v":"2022-01-23"},"2022-01-24","2022-01-25","2022-01-26","2022-01-27","2022-01-28","2022-01-29",null,{"$f":"BO21+1","v":"2022-02-27"},"2022-02-28","2022-03-01","2022-03-02","2022-03-03","2022-03-04","2022-03-05",null,{"$f":"BW21+1","v":"2022-03-27"},"2022-03-28","2022-03-29","2022-03-30","2022-03-31","2022-04-01","2022-04-02"]
[null,null,{"$f":"I22+1","v":"2020-02-02"},"2020-02-03","2020-02-04","2020-02-05","2020-02-06","2020-02-07","2020-02-08",null,{"$f":"Q22+1","v":"2020-03-01"},"2020-03-02","2020-03-03","2020-03-04","2020-03-05","2020-03-06","2020-03-07",null,{"$f":"Y22+1","v":"2020-04-05"},"2020-04-06","2020-04-07","2020-04-08","2020-04-09","2020-04-10","2020-04-11",null,null,{"$f":"AH22+1","v":"2021-01-31"},"2021-02-01","2021-02-02","2021-02-03","2021-02-04","2021-02-05","2021-02-06",null,{"$f":"AP22+1","v":"2021-03-07"},"2021-03-08","2021-03-09","2021-03-10","2021-03-11","2021-03-12","2021-03-13",null,{"$f":"AX22+1","v":"2021-04-04"},"2021-04-05","2021-04-06","2021-04-07","2021-04-08","2021-04-09","2021-04-10",null,null,{"$f":"BG22+1","v":"2022-01-30"},"2022-01-31","2022-02-01","2022-02-02","2022-02-03","2022-02-04","2022-02-05",null,{"$f":"BO22+1","v":"2022-03-06"},"2022-03-07","2022-03-08","2022-03-09","2022-03-10","2022-03-11","2022-03-12",null,{"$f":"BW22+1","v":"2022-04-03"},"2022-04-04","2022-04-05","2022-04-06","2022-04-07","2022-04-08","2022-04-09"]
[null,null,{"$f":"EDATE(S16,1)","v":"2020-04-01"},null,null,null,null,null,null,null,{"$f":"EDATE(C24,1)","v":"2020-05-01"},null,null,null,null,null,null,null,{"$f":"EDATE(K24,1)","v":"2020-06-01"},null,null,null,null,null,null,null,null,{"$f":"EDATE(AR16,1)","v":"2021-04-28"},null,null,null,null,null,null,null,{"$f":"EDATE(AB24,1)","v":"2021-05-28"},null,null,null,null,null,null,null,{"$f":"EDATE(AJ24,1)","v":"2021-06-28"},null,null,null,null,null,null,null,null,{"$f":"EDATE(BQ16,1)","v":"2022-04-27"},null,null,null,null,null,null,null,{"$f":"EDATE(BA24,1)","v":"2022-05-27"},null,null,null,null,null,null,null,{"$f":"EDATE(BI24,1)","v":"2022-06-27"}]
[null,null,"S","M","T","W","T","F","S",null,"S","M","T","W","T","F","S",null,"S","M","T","W","T","F","S",null,null,"S","M","T","W","T","F","S",null,"S","M","T","W","T","F","S",null,"S","M","T","W","T","F","S",null,null,"S","M","T","W","T","F","S",null,"S","M","T","W","T","F","S",null,"S","M","T","W","T","F","S"]
[null,null,{"$f":"IF(AND(DAY(S23)>1,DAY(S23)<=7),S22,S23)","v":"2020-03-29"},{"$f":"C26+1","v":"2020-03-30"},{"$f":"D26+1","v":"2020-03-31"},"2020-04-01","2020-04-02","2020-04-03","2020-04-04",null,{"$f":"IF(AND(DAY(C31)>1,DAY(C31)<=7),C30,C31)","v":"2020-04-26"},{"$f":"K26+1","v":"2020-04-27"},{"$f":"L26+1","v":"2020-04-28"},"2020-04-29","2020-04-30","2020-05-01","2020-05-02",null,{"$f":"IF(AND(DAY(K31)>1,DAY(K31)<=7),K30,K31)","v":"2020-05-31"},{"$f":"S26+1","v":"2020-06-01"},{"$f":"T26+1","v":"2020-06-02"},"2020-06-03","2020-06-04","2020-06-05","2020-06-06",null,null,{"$f":"IF(AND(DAY(AR23)>1,DAY(AR23)<=7),AR22,AR23)","v":"2021-03-28"},{"$f":"AB26+1","v":"2021-03-29"},{"$f":"AC26+1","v":"2021-03-30"},"2021-03-31","2021-04-01","2021-04-02","2021-04-03",null,{"$f":"IF(AND(DAY(AB31)>1,DAY(AB31)<=7),AB30,AB31)","v":"2021-04-25"},{"$f":"AJ26+1","v":"2021-04-26"},{"$f":"AK26+1","v":"2021-04-27"},"2021-04-28","2021-04-29","2021-04-30","2021-05-01",null,{"$f":"IF(AND(DAY(AJ31)>1,DAY(AJ31)<=7),AJ30,AJ31)","v":"2021-05-30"},{"$f":"AR26+1","v":"2021-05-31"},{"$f":"AS26+1","v":"2021-06-01"},"2021-06-02","2021-06-03","2021-06-04","2021-06-05",null,null,{"$f":"IF(AND(DAY(BQ23)>1,DAY(BQ23)<=7),BQ22,BQ23)","v":"2022-03-27"},{"$f":"BA26+1","v":"2022-03-28"},{"$f":"BB26+1","v":"2022-03-29"},{"$f":"BC26+1","v":"2022-03-30"},{"$f":"BD26+1","v":"2022-03-31"},{"$f":"BE26+1","v":"2022-04-01"},{"$f":"BF26+1","v":"2022-04-02"},null,{"$f":"IF(AND(DAY(BA31)>1,DAY(BA31)<=7),BA30,BA31)","v":"2022-05-01"},{"$f":"BI26+1","v":"2022-05-02"},{"$f":"BJ26+1","v":"2022-05-03"},{"$f":"BK26+1","v":"2022-05-04"},{"$f":"BL26+1","v":"2022-05-05"},{"$f":"BM26+1","v":"2022-05-06"},{"$f":"BN26+1","v":"2022-05-07"},null,{"$f":"IF(AND(DAY(BI31)>1,DAY(BI31)<=7),BI30,BI31)","v":"2022-05-29"},{"$f":"BQ26+1","v":"2022-05-30"},{"$f":"BR26+1","v":"2022-05-31"},{"$f":"BS26+1","v":"2022-06-01"},{"$f":"BT26+1","v":"2022-06-02"},{"$f":"BU26+1","v":"2022-06-03"},{"$f":"BV26+1","v":"2022-06-04"}]
[null,null,{"$f":"I26+1","v":"2020-04-05"},"2020-04-06","2020-04-07","2020-04-08","2020-04-09","2020-04-10","2020-04-11",null,{"$f":"Q26+1","v":"2020-05-03"},"2020-05-04","2020-05-05","2020-05-06","2020-05-07","2020-05-08","2020-05-09",null,{"$f":"Y26+1","v":"2020-06-07"},"2020-06-08","2020-06-09","2020-06-10","2020-06-11","2020-06-12","2020-06-13",null,null,{"$f":"AH26+1","v":"2021-04-04"},"2021-04-05","2021-04-06","2021-04-07","2021-04-08","2021-04-09","2021-04-10",null,{"$f":"AP26+1","v":"2021-05-02"},"2021-05-03","2021-05-04","2021-05-05","2021-05-06","2021-05-07","2021-05-08",null,{"$f":"AX26+1","v":"2021-06-06"},"2021-06-07","2021-06-08","2021-06-09","2021-06-10","2021-06-11","2021-06-12",null,null,{"$f":"BG26+1","v":"2022-04-03"},"2022-04-04","2022-04-05","2022-04-06","2022-04-07","2022-04-08","2022-04-09",null,{"$f":"BO26+1","v":"2022-05-08"},"2022-05-09","2022-05-10","2022-05-11","2022-05-12","2022-05-13","2022-05-14",null,{"$f":"BW26+1","v":"2022-06-05"},"2022-06-06","2022-06-07","2022-06-08","2022-06-09","2022-06-10","2022-06-11"]
[null,null,{"$f":"I27+1","v":"2020-04-12"},"2020-04-13","2020-04-14","2020-04-15","2020-04-16","2020-04-17","2020-04-18",null,{"$f":"Q27+1","v":"2020-05-10"},"2020-05-11","2020-05-12","2020-05-13","2020-05-14","2020-05-15","2020-05-16",null,{"$f":"Y27+1","v":"2020-06-14"},"2020-06-15","2020-06-16","2020-06-17","2020-06-18","2020-06-19","2020-06-20",null,null,{"$f":"AH27+1","v":"2021-04-11"},"2021-04-12","2021-04-13","2021-04-14","2021-04-15","2021-04-16","2021-04-17",null,{"$f":"AP27+1","v":"2021-05-09"},"2021-05-10","2021-05-11","2021-05-12","2021-05-13","2021-05-14","2021-05-15",null,{"$f":"AX27+1","v":"2021-06-13"},"2021-06-14","2021-06-15","2021-06-16","2021-06-17","2021-06-18","2021-06-19",null,null,{"$f":"BG27+1","v":"2022-04-10"},"2022-04-11","2022-04-12","2022-04-13","2022-04-14","2022-04-15","2022-04-16",null,{"$f":"BO27+1","v":"2022-05-15"},"2022-05-16","2022-05-17","2022-05-18","2022-05-19","2022-05-20","2022-05-21",null,{"$f":"BW27+1","v":"2022-06-12"},"2022-06-13","2022-06-14","2022-06-15","2022-06-16","2022-06-17","2022-06-18"]
[null,null,{"$f":"I28+1","v":"2020-04-19"},"2020-04-20","2020-04-21","2020-04-22","2020-04-23","2020-04-24","2020-04-25",null,{"$f":"Q28+1","v":"2020-05-17"},"2020-05-18","2020-05-19","2020-05-20","2020-05-21","2020-05-22","2020-05-23",null,{"$f":"Y28+1","v":"2020-06-21"},"2020-06-22","2020-06-23","2020-06-24","2020-06-25","2020-06-26","2020-06-27",null,null,{"$f":"AH28+1","v":"2021-04-18"},"2021-04-19","2021-04-20","2021-04-21","2021-04-22","2021-04-23","2021-04-24",null,{"$f":"AP28+1","v":"2021-05-16"},"2021-05-17","2021-05-18","2021-05-19","2021-05-20","2021-05-21","2021-05-22",null,{"$f":"AX28+1","v":"2021-06-20"},"2021-06-21","2021-06-22","2021-06-23","2021-06-24","2021-06-25","2021-06-26",null,null,{"$f":"BG28+1","v":"2022-04-17"},"2022-04-18","2022-04-19","2022-04-20","2022-04-21","2022-04-22","2022-04-23",null,{"$f":"BO28+1","v":"2022-05-22"},"2022-05-23","2022-05-24","2022-05-25","2022-05-26","2022-05-27","2022-05-28",null,{"$f":"BW28+1","v":"2022-06-19"},"2022-06-20","2022-06-21","2022-06-22","2022-06-23","2022-06-24","2022-06-25"]
[null,null,{"$f":"I29+1","v":"2020-04-26"},"2020-04-27","2020-04-28","2020-04-29","2020-04-30","2020-05-01","2020-05-02",null,{"$f":"Q29+1","v":"2020-05-24"},"2020-05-25","2020-05-26","2020-05-27","2020-05-28","2020-05-29","2020-05-30",null,{"$f":"Y29+1","v":"2020-06-28"},"2020-06-29","2020-06-30","2020-07-01","2020-07-02","2020-07-03","2020-07-04",null,null,{"$f":"AH29+1","v":"2021-04-25"},"2021-04-26","2021-04-27","2021-04-28","2021-04-29","2021-04-30","2021-05-01",null,{"$f":"AP29+1","v":"2021-05-23"},"2021-05-24","2021-05-25","2021-05-26","2021-05-27","2021-05-28","2021-05-29",null,{"$f":"AX29+1","v":"2021-06-27"},"2021-06-28","2021-06-29","2021-06-30","2021-07-01","2021-07-02","2021-07-03",null,null,{"$f":"BG29+1","v":"2022-04-24"},"2022-04-25","2022-04-26","2022-04-27","2022-04-28","2022-04-29","2022-04-30",null,{"$f":"BO29+1","v":"2022-05-29"},"2022-05-30","2022-05-31","2022-06-01","2022-06-02","2022-06-03","2022-06-04",null,{"$f":"BW29+1","v":"2022-06-26"},"2022-06-27","2022-06-28","2022-06-29","2022-06-30","2022-07-01","2022-07-02"]
[null,null,{"$f":"I30+1","v":"2020-05-03"},"2020-05-04","2020-05-05","2020-05-06","2020-05-07","2020-05-08","2020-05-09",null,{"$f":"Q30+1","v":"2020-05-31"},"2020-06-01","2020-06-02","2020-06-03","2020-06-04","2020-06-05","2020-06-06",null,{"$f":"Y30+1","v":"2020-07-05"},"2020-07-06","2020-07-07","2020-07-08","2020-07-09","2020-07-10","2020-07-11",null,null,{"$f":"AH30+1","v":"2021-05-02"},"2021-05-03","2021-05-04","2021-05-05","2021-05-06","2021-05-07","2021-05-08",null,{"$f":"AP30+1","v":"2021-05-30"},"2021-05-31","2021-06-01","2021-06-02","2021-06-03","2021-06-04","2021-06-05",null,{"$f":"AX30+1","v":"2021-07-04"},"2021-07-05","2021-07-06","2021-07-07","2021-07-08","2021-07-09","2021-07-10",null,null,{"$f":"BG30+1","v":"2022-05-01"},"2022-05-02","2022-05-03","2022-05-04","2022-05-05","2022-05-06","2022-05-07",null,{"$f":"BO30+1","v":"2022-06-05"},"2022-06-06","2022-06-07","2022-06-08","2022-06-09","2022-06-10","2022-06-11",null,{"$f":"BW30+1","v":"2022-07-03"},"2022-07-04","2022-07-05","2022-07-06","2022-07-07","2022-07-08","2022-07-09"]
[null,null,{"$f":"EDATE(S30,1)","v":"2020-07-28"},null,null,null,null,null,null,null,{"$f":"EDATE(C32,1)","v":"2020-08-28"},null,null,null,null,null,null,null,{"$f":"EDATE(K32,1)","v":"2020-09-28"},null,null,null,null,null,null,null,null,{"$f":"EDATE(AR30,1)","v":"2021-07-27"},null,null,null,null,null,null,null,{"$f":"EDATE(AB32,1)","v":"2021-08-27"},null,null,null,null,null,null,null,{"$f":"EDATE(AJ32,1)","v":"2021-09-27"},null,null,null,null,null,null,null,null,{"$f":"EDATE(BQ30,1)","v":"2022-07-26"},null,null,null,null,null,null,null,{"$f":"EDATE(BA32,1)","v":"2022-08-26"},null,null,null,null,null,null,null,{"$f":"EDATE(BI32,1)","v":"2022-09-26"}]
[null,null,"S","M","T","W","T","F","S",null,"S","M","T","W","T","F","S",null,"S","M","T","W","T","F","S",null,null,"S","M","T","W","T","F","S",null,"S","M","T","W","T","F","S",null,"S","M","T","W","T","F","S",null,null,"S","M","T","W","T","F","S",null,"S","M","T","W","T","F","S",null,"S","M","T","W","T","F","S"]
[null,null,{"$f":"IF(AND(DAY(S31)>1,DAY(S31)<=7),S30,S31)","v":"2020-06-28"},{"$f":"C34+1","v":"2020-06-29"},{"$f":"D34+1","v":"2020-06-30"},"2020-07-01","2020-07-02","2020-07-03","2020-07-04",null,{"$f":"IF(AND(DAY(C39)>1,DAY(C39)<=7),C38,C39)","v":"2020-07-26"},{"$f":"K34+1","v":"2020-07-27"},{"$f":"L34+1","v":"2020-07-28"},"2020-07-29","2020-07-30","2020-07-31","2020-08-01",null,{"$f":"IF(AND(DAY(K39)>1,DAY(K39)<=7),K38,K39)","v":"2020-08-30"},{"$f":"S34+1","v":"2020-08-31"},{"$f":"T34+1","v":"2020-09-01"},"2020-09-02","2020-09-03","2020-09-04","2020-09-05",null,null,{"$f":"IF(AND(DAY(AR31)>1,DAY(AR31)<=7),AR30,AR31)","v":"2021-06-27"},{"$f":"AB34+1","v":"2021-06-28"},{"$f":"AC34+1","v":"2021-06-29"},"2021-06-30","2021-07-01","2021-07-02","2021-07-03",null,{"$f":"IF(AND(DAY(AB39)>1,DAY(AB39)<=7),AB38,AB39)","v":"2021-08-01"},{"$f":"AJ34+1","v":"2021-08-02"},{"$f":"AK34+1","v":"2021-08-03"},"2021-08-04","2021-08-05","2021-08-06","2021-08-07",null,{"$f":"IF(AND(DAY(AJ39)>1,DAY(AJ39)<=7),AJ38,AJ39)","v":"2021-08-29"},{"$f":"AR34+1","v":"2021-08-30"},{"$f":"AS34+1","v":"2021-08-31"},"2021-09-01","2021-09-02","2021-09-03","2021-09-04",null,null,{"$f":"IF(AND(DAY(BQ31)>1,DAY(BQ31)<=7),BQ30,BQ31)","v":"2022-06-26"},{"$f":"BA34+1","v":"2022-06-27"},{"$f":"BB34+1","v":"2022-06-28"},{"$f":"BC34+1","v":"2022-06-29"},{"$f":"BD34+1","v":"2022-06-30"},{"$f":"BE34+1","v":"2022-07-01"},{"$f":"BF34+1","v":"2022-07-02"},null,{"$f":"IF(AND(DAY(BA39)>1,DAY(BA39)<=7),BA38,BA39)","v":"2022-07-31"},{"$f":"BI34+1","v":"2022-08-01"},{"$f":"BJ34+1","v":"2022-08-02"},{"$f":"BK34+1","v":"2022-08-03"},{"$f":"BL34+1","v":"2022-08-04"},{"$f":"BM34+1","v":"2022-08-05"},{"$f":"BN34+1","v":"2022-08-06"},null,{"$f":"IF(AND(DAY(BI39)>1,DAY(BI39)<=7),BI38,BI39)","v":"2022-08-28"},{"$f":"BQ34+1","v":"2022-08-29"},{"$f":"BR34+1","v":"2022-08-30"},{"$f":"BS34+1","v":"2022-08-31"},{"$f":"BT34+1","v":"2022-09-01"},{"$f":"BU34+1","v":"2022-09-02"},{"$f":"BV34+1","v":"2022-09-03"}]
[null,null,{"$f":"I34+1","v":"2020-07-05"},"2020-07-06","2020-07-07","2020-07-08","2020-07-09","2020-07-10","2020-07-11",null,{"$f":"Q34+1","v":"2020-08-02"},"2020-08-03","2020-08-04","2020-08-05","2020-08-06","2020-08-07","2020-08-08",null,{"$f":"Y34+1","v":"2020-09-06"},"2020-09-07","2020-09-08","2020-09-09","2020-09-10","2020-09-11","2020-09-12",null,null,{"$f":"AH34+1","v":"2021-07-04"},"2021-07-05","2021-07-06","2021-07-07","2021-07-08","2021-07-09","2021-07-10",null,{"$f":"AP34+1","v":"2021-08-08"},"2021-08-09","2021-08-10","2021-08-11","2021-08-12","2021-08-13","2021-08-14",null,{"$f":"AX34+1","v":"2021-09-05"},"2021-09-06","2021-09-07","2021-09-08","2021-09-09","2021-09-10","2021-09-11",null,null,{"$f":"BG34+1","v":"2022-07-03"},"2022-07-04","2022-07-05","2022-07-06","2022-07-07","2022-07-08","2022-07-09",null,{"$f":"BO34+1","v":"2022-08-07"},"2022-08-08","2022-08-09","2022-08-10","2022-08-11","2022-08-12","2022-08-13",null,{"$f":"BW34+1","v":"2022-09-04"},"2022-09-05","2022-09-06","2022-09-07","2022-09-08","2022-09-09","2022-09-10"]
[null,null,{"$f":"I35+1","v":"2020-07-12"},"2020-07-13","2020-07-14","2020-07-15","2020-07-16","2020-07-17","2020-07-18",null,{"$f":"Q35+1","v":"2020-08-09"},"2020-08-10","2020-08-11","2020-08-12","2020-08-13","2020-08-14","2020-08-15",null,{"$f":"Y35+1","v":"2020-09-13"},"2020-09-14","2020-09-15","2020-09-16","2020-09-17","2020-09-18","2020-09-19",null,null,{"$f":"AH35+1","v":"2021-07-11"},"2021-07-12","2021-07-13","2021-07-14","2021-07-15","2021-07-16","2021-07-17",null,{"$f":"AP35+1","v":"2021-08-15"},"2021-08-16","2021-08-17","2021-08-18","2021-08-19","2021-08-20","2021-08-21",null,{"$f":"AX35+1","v":"2021-09-12"},"2021-09-13","2021-09-14","2021-09-15","2021-09-16","2021-09-17","2021-09-18",null,null,{"$f":"BG35+1","v":"2022-07-10"},"2022-07-11","2022-07-12","2022-07-13","2022-07-14","2022-07-15","2022-07-16",null,{"$f":"BO35+1","v":"2022-08-14"},"2022-08-15","2022-08-16","2022-08-17","2022-08-18","2022-08-19","2022-08-20",null,{"$f":"BW35+1","v":"2022-09-11"},"2022-09-12","2022-09-13","2022-09-14","2022-09-15","2022-09-16","2022-09-17"]
[null,null,{"$f":"I36+1","v":"2020-07-19"},"2020-07-20","2020-07-21","2020-07-22","2020-07-23","2020-07-24","2020-07-25",null,{"$f":"Q36+1","v":"2020-08-16"},"2020-08-17","2020-08-18","2020-08-19","2020-08-20","2020-08-21","2020-08-22",null,{"$f":"Y36+1","v":"2020-09-20"},"2020-09-21","2020-09-22","2020-09-23","2020-09-24","2020-09-25","2020-09-26",null,null,{"$f":"AH36+1","v":"2021-07-18"},"2021-07-19","2021-07-20","2021-07-21","2021-07-22","2021-07-23","2021-07-24",null,{"$f":"AP36+1","v":"2021-08-22"},"2021-08-23","2021-08-24","2021-08-25","2021-08-26","2021-08-27","2021-08-28",null,{"$f":"AX36+1","v":"2021-09-19"},"2021-09-20","2021-09-21","2021-09-22","2021-09-23","2021-09-24","2021-09-25",null,null,{"$f":"BG36+1","v":"2022-07-17"},"2022-07-18","2022-07-19","2022-07-20","2022-07-21","2022-07-22","2022-07-23",null,{"$f":"BO36+1","v":"2022-08-21"},"2022-08-22","2022-08-23","2022-08-24","2022-08-25","2022-08-26","2022-08-27",null,{"$f":"BW36+1","v":"2022-09-18"},"2022-09-19","2022-09-20","2022-09-21","2022-09-22","2022-09-23","2022-09-24"]
[null,null,{"$f":"I37+1","v":"2020-07-26"},"2020-07-27","2020-07-28","2020-07-29","2020-07-30","2020-07-31","2020-08-01",null,{"$f":"Q37+1","v":"2020-08-23"},"2020-08-24","2020-08-25","2020-08-26","2020-08-27","2020-08-28","2020-08-29",null,{"$f":"Y37+1","v":"2020-09-27"},"2020-09-28","2020-09-29","2020-09-30","2020-10-01","2020-10-02","2020-10-03",null,null,{"$f":"AH37+1","v":"2021-07-25"},"2021-07-26","2021-07-27","2021-07-28","2021-07-29","2021-07-30","2021-07-31",null,{"$f":"AP37+1","v":"2021-08-29"},"2021-08-30","2021-08-31","2021-09-01","2021-09-02","2021-09-03","2021-09-04",null,{"$f":"AX37+1","v":"2021-09-26"},"2021-09-27","2021-09-28","2021-09-29","2021-09-30","2021-10-01","2021-10-02",null,null,{"$f":"BG37+1","v":"2022-07-24"},"2022-07-25","2022-07-26","2022-07-27","2022-07-28","2022-07-29","2022-07-30",null,{"$f":"BO37+1","v":"2022-08-28"},"2022-08-29","2022-08-30","2022-08-31","2022-09-01","2022-09-02","2022-09-03",null,{"$f":"BW37+1","v":"2022-09-25"},"2022-09-26","2022-09-27","2022-09-28","2022-09-29","2022-09-30","2022-10-01"]
[null,null,{"$f":"I38+1","v":"2020-08-02"},"2020-08-03","2020-08-04","2020-08-05","2020-08-06","2020-08-07","2020-08-08",null,{"$f":"Q38+1","v":"2020-08-30"},"2020-08-31","2020-09-01","2020-09-02","2020-09-03","2020-09-04","2020-09-05",null,{"$f":"Y38+1","v":"2020-10-04"},"2020-10-05","2020-10-06","2020-10-07","2020-10-08","2020-10-09","2020-10-10",null,null,{"$f":"AH38+1","v":"2021-08-01"},"2021-08-02","2021-08-03","2021-08-04","2021-08-05","2021-08-06","2021-08-07",null,{"$f":"AP38+1","v":"2021-09-05"},"2021-09-06","2021-09-07","2021-09-08","2021-09-09","2021-09-10","2021-09-11",null,{"$f":"AX38+1","v":"2021-10-03"},"2021-10-04","2021-10-05","2021-10-06","2021-10-07","2021-10-08","2021-10-09",null,null,{"$f":"BG38+1","v":"2022-07-31"},"2022-08-01","2022-08-02","2022-08-03","2022-08-04","2022-08-05","2022-08-06",null,{"$f":"BO38+1","v":"2022-09-04"},"2022-09-05","2022-09-06","2022-09-07","2022-09-08","2022-09-09","2022-09-10",null,{"$f":"BW38+1","v":"2022-10-02"},"2022-10-03","2022-10-04","2022-10-05","2022-10-06","2022-10-07","2022-10-08"]
[null,null,{"$f":"EDATE(S32,1)","v":"2020-10-28"},null,null,null,null,null,null,null,{"$f":"EDATE(C40,1)","v":"2020-11-28"},null,null,null,null,null,null,null,{"$f":"EDATE(K40,1)","v":"2020-12-28"},null,null,null,null,null,null,null,null,{"$f":"EDATE(AR32,1)","v":"2021-10-27"},null,null,null,null,null,null,null,{"$f":"EDATE(AB40,1)","v":"2021-11-27"},null,null,null,null,null,null,null,{"$f":"EDATE(AJ40,1)","v":"2021-12-27"},null,null,null,null,null,null,null,null,{"$f":"EDATE(BQ32,1)","v":"2022-10-26"},null,null,null,null,null,null,null,{"$f":"EDATE(BA40,1)","v":"2022-11-26"},null,null,null,null,null,null,null,{"$f":"EDATE(BI40,1)","v":"2022-12-26"}]
[null,null,"S","M","T","W","T","F","S",null,"S","M","T","W","T","F","S",null,"S","M","T","W","T","F","S",null,null,"S","M","T","W","T","F","S",null,"S","M","T","W","T","F","S",null,"S","M","T","W","T","F","S",null,null,"S","M","T","W","T","F","S",null,"S","M","T","W","T","F","S",null,"S","M","T","W","T","F","S"]
[null,null,{"$f":"IF(AND(DAY(S39)>1,DAY(S39)<=7),S38,S39)","v":"2020-09-27"},{"$f":"C42+1","v":"2020-09-28"},{"$f":"D42+1","v":"2020-09-29"},"2020-09-30","2020-10-01","2020-10-02","2020-10-03",null,{"$f":"IF(AND(DAY(C47)>1,DAY(C47)<=7),C46,C47)","v":"2020-11-01"},{"$f":"K42+1","v":"2020-11-02"},{"$f":"L42+1","v":"2020-11-03"},"2020-11-04","2020-11-05","2020-11-06","2020-11-07",null,{"$f":"IF(AND(DAY(K47)>1,DAY(K47)<=7),K46,K47)","v":"2020-11-29"},{"$f":"S42+1","v":"2020-11-30"},{"$f":"T42+1","v":"2020-12-01"},"2020-12-02","2020-12-03","2020-12-04","2020-12-05",null,null,{"$f":"IF(AND(DAY(AR39)>1,DAY(AR39)<=7),AR38,AR39)","v":"2021-09-26"},{"$f":"AB42+1","v":"2021-09-27"},{"$f":"AC42+1","v":"2021-09-28"},"2021-09-29","2021-09-30","2021-10-01","2021-10-02",null,{"$f":"IF(AND(DAY(AB47)>1,DAY(AB47)<=7),AB46,AB47)","v":"2021-10-31"},{"$f":"AJ42+1","v":"2021-11-01"},{"$f":"AK42+1","v":"2021-11-02"},"2021-11-03","2021-11-04","2021-11-05","2021-11-06",null,{"$f":"IF(AND(DAY(AJ47)>1,DAY(AJ47)<=7),AJ46,AJ47)","v":"2021-11-28"},{"$f":"AR42+1","v":"2021-11-29"},{"$f":"AS42+1","v":"2021-11-30"},"2021-12-01","2021-12-02","2021-12-03","2021-12-04",null,null,{"$f":"IF(AND(DAY(BQ39)>1,DAY(BQ39)<=7),BQ38,BQ39)","v":"2022-09-25"},{"$f":"BA42+1","v":"2022-09-26"},{"$f":"BB42+1","v":"2022-09-27"},{"$f":"BC42+1","v":"2022-09-28"},{"$f":"BD42+1","v":"2022-09-29"},{"$f":"BE42+1","v":"2022-09-30"},{"$f":"BF42+1","v":"2022-10-01"},null,{"$f":"IF(AND(DAY(BA47)>1,DAY(BA47)<=7),BA46,BA47)","v":"2022-10-30"},{"$f":"BI42+1","v":"2022-10-31"},{"$f":"BJ42+1","v":"2022-11-01"},{"$f":"BK42+1","v":"2022-11-02"},{"$f":"BL42+1","v":"2022-11-03"},{"$f":"BM42+1","v":"2022-11-04"},{"$f":"BN42+1","v":"2022-11-05"},null,{"$f":"IF(AND(DAY(BI47)>1,DAY(BI47)<=7),BI46,BI47)","v":"2022-11-27"},{"$f":"BQ42+1","v":"2022-11-28"},{"$f":"BR42+1","v":"2022-11-29"},{"$f":"BS42+1","v":"2022-11-30"},{"$f":"BT42+1","v":"2022-12-01"},{"$f":"BU42+1","v":"2022-12-02"},{"$f":"BV42+1","v":"2022-12-03"}]
[null,null,{"$f":"I42+1","v":"2020-10-04"},"2020-10-05","2020-10-06","2020-10-07","2020-10-08","2020-10-09","2020-10-10",null,{"$f":"Q42+1","v":"2020-11-08"},"2020-11-09","2020-11-10","2020-11-11","2020-11-12","2020-11-13","2020-11-14",null,{"$f":"Y42+1","v":"2020-12-06"},"2020-12-07","2020-12-08","2020-12-09","2020-12-10","2020-12-11","2020-12-12",null,null,{"$f":"AH42+1","v":"2021-10-03"},"2021-10-04","2021-10-05","2021-10-06","2021-10-07","2021-10-08","2021-10-09",null,{"$f":"AP42+1","v":"2021-11-07"},"2021-11-08","2021-11-09","2021-11-10","2021-11-11","2021-11-12","2021-11-13",null,{"$f":"AX42+1","v":"2021-12-05"},"2021-12-06","2021-12-07","2021-12-08","2021-12-09","2021-12-10","2021-12-11",null,null,{"$f":"BG42+1","v":"2022-10-02"},"2022-10-03","2022-10-04","2022-10-05","2022-10-06","2022-10-07","2022-10-08",null,{"$f":"BO42+1","v":"2022-11-06"},"2022-11-07","2022-11-08","2022-11-09","2022-11-10","2022-11-11","2022-11-12",null,{"$f":"BW42+1","v":"2022-12-04"},"2022-12-05","2022-12-06","2022-12-07","2022-12-08","2022-12-09","2022-12-10"]
[null,null,{"$f":"I43+1","v":"2020-10-11"},"2020-10-12","2020-10-13","2020-10-14","2020-10-15","2020-10-16","2020-10-17",null,{"$f":"Q43+1","v":"2020-11-15"},"2020-11-16","2020-11-17","2020-11-18","2020-11-19","2020-11-20","2020-11-21",null,{"$f":"Y43+1","v":"2020-12-13"},"2020-12-14","2020-12-15","2020-12-16","2020-12-17","2020-12-18","2020-12-19",null,null,{"$f":"AH43+1","v":"2021-10-10"},"2021-10-11","2021-10-12","2021-10-13","2021-10-14","2021-10-15","2021-10-16",null,{"$f":"AP43+1","v":"2021-11-14"},"2021-11-15","2021-11-16","2021-11-17","2021-11-18","2021-11-19","2021-11-20",null,{"$f":"AX43+1","v":"2021-12-12"},"2021-12-13","2021-12-14","2021-12-15","2021-12-16","2021-12-17","2021-12-18",null,null,{"$f":"BG43+1","v":"2022-10-09"},"2022-10-10","2022-10-11","2022-10-12","2022-10-13","2022-10-14","2022-10-15",null,{"$f":"BO43+1","v":"2022-11-13"},"2022-11-14","2022-11-15","2022-11-16","2022-11-17","2022-11-18","2022-11-19",null,{"$f":"BW43+1","v":"2022-12-11"},"2022-12-12","2022-12-13","2022-12-14","2022-12-15","2022-12-16","2022-12-17"]
[null,null,{"$f":"I44+1","v":"2020-10-18"},"2020-10-19","2020-10-20","2020-10-21","2020-10-22","2020-10-23","2020-10-24",null,{"$f":"Q44+1","v":"2020-11-22"},"2020-11-23","2020-11-24","2020-11-25","2020-11-26","2020-11-27","2020-11-28",null,{"$f":"Y44+1","v":"2020-12-20"},"2020-12-21","2020-12-22","2020-12-23","2020-12-24","2020-12-25","2020-12-26",null,null,{"$f":"AH44+1","v":"2021-10-17"},"2021-10-18","2021-10-19","2021-10-20","2021-10-21","2021-10-22","2021-10-23",null,{"$f":"AP44+1","v":"2021-11-21"},"2021-11-22","2021-11-23","2021-11-24","2021-11-25","2021-11-26","2021-11-27",null,{"$f":"AX44+1","v":"2021-12-19"},"2021-12-20","2021-12-21","2021-12-22","2021-12-23","2021-12-24","2021-12-25",null,null,{"$f":"BG44+1","v":"2022-10-16"},"2022-10-17","2022-10-18","2022-10-19","2022-10-20","2022-10-21","2022-10-22",null,{"$f":"BO44+1","v":"2022-11-20"},"2022-11-21","2022-11-22","2022-11-23","2022-11-24","2022-11-25","2022-11-26",null,{"$f":"BW44+1","v":"2022-12-18"},"2022-12-19","2022-12-20","2022-12-21","2022-12-22","2022-12-23","2022-12-24"]
[null,null,{"$f":"I45+1","v":"2020-10-25"},"2020-10-26","2020-10-27","2020-10-28","2020-10-29","2020-10-30","2020-10-31",null,{"$f":"Q45+1","v":"2020-11-29"},"2020-11-30","2020-12-01","2020-12-02","2020-12-03","2020-12-04","2020-12-05",null,{"$f":"Y45+1","v":"2020-12-27"},"2020-12-28","2020-12-29","2020-12-30","2020-12-31","2021-01-01","2021-01-02",null,null,{"$f":"AH45+1","v":"2021-10-24"},"2021-10-25","2021-10-26","2021-10-27","2021-10-28","2021-10-29","2021-10-30",null,{"$f":"AP45+1","v":"2021-11-28"},"2021-11-29","2021-11-30","2021-12-01","2021-12-02","2021-12-03","2021-12-04",null,{"$f":"AX45+1","v":"2021-12-26"},"2021-12-27","2021-12-28","2021-12-29","2021-12-30","2021-12-31","2022-01-01",null,null,{"$f":"BG45+1","v":"2022-10-23"},"2022-10-24","2022-10-25","2022-10-26","2022-10-27","2022-10-28","2022-10-29",null,{"$f":"BO45+1","v":"2022-11-27"},"2022-11-28","2022-11-29","2022-11-30","2022-12-01","2022-12-02","2022-12-03",null,{"$f":"BW45+1","v":"2022-12-25"},"2022-12-26","2022-12-27","2022-12-28","2022-12-29","2022-12-30","2022-12-31"]
[null,null,{"$f":"I46+1","v":"2020-11-01"},"2020-11-02","2020-11-03","2020-11-04","2020-11-05","2020-11-06","2020-11-07",null,{"$f":"Q46+1","v":"2020-12-06"},"2020-12-07","2020-12-08","2020-12-09","2020-12-10","2020-12-11","2020-12-12",null,{"$f":"Y46+1","v":"2021-01-03"},"2021-01-04","2021-01-05","2021-01-06","2021-01-07","2021-01-08","2021-01-09",null,null,{"$f":"AH46+1","v":"2021-10-31"},"2021-11-01","2021-11-02","2021-11-03","2021-11-04","2021-11-05","2021-11-06",null,{"$f":"AP46+1","v":"2021-12-05"},"2021-12-06","2021-12-07","2021-12-08","2021-12-09","2021-12-10","2021-12-11",null,{"$f":"AX46+1","v":"2022-01-02"},"2022-01-03","2022-01-04","2022-01-05","2022-01-06","2022-01-07","2022-01-08",null,null,{"$f":"BG46+1","v":"2022-10-30"},"2022-10-31","2022-11-01","2022-11-02","2022-11-03","2022-11-04","2022-11-05",null,{"$f":"BO46+1","v":"2022-12-04"},"2022-12-05","2022-12-06","2022-12-07","2022-12-08","2022-12-09","2022-12-10",null,{"$f":"BW46+1","v":"2023-01-01"},"2023-01-02","2023-01-03","2023-01-04","2023-01-05","2023-01-06","2023-01-07"]

{"sheet":"Crop Table","index":3,"n_rows":68,"n_cols":25,"rows_kept":68,"cut":false,"hidden":true,"merged":[]}
[null,"Make sure this table is always sorted by Crop Type - this facilitates the dependent drop-down validation lists.",null,null,null,null,null,null,null,null,null,null,null,null,null,null,null,null,null,null,null,null,null,null,"<---To prevent a column from displaying on the Block sheets type \"HIDE\" in this row."]
["Key","Crop Type","Variety","Growing season length (summer plant)","Growing season length (spring plant)","Growing season length (dry season plant)","Value to rotation:","Crop risks:","Planting windows:","Expected yield range:","Soil features:","Soil moisture and irrigation:","Environmental factors:","Nutrient considerations:","Nematodes:","Land preparation:","Disease management:","Insect management:","Weed management:","Harvest:","Stubble management for following crop:","Economics and marketing:","Management input:","Specialised equipment:"]
["Hdr-Desc","Hdr","Desc","Number of days","Number of days","Number of days","Soil benefits.\nManagement benefits.\nEconomic benefits.","Harvest risks  - weathering.\nManagement risks - exacerbate pest, weed or disease.\nSeasonal - rainfall, cloud, wind?\nEconomic - price, yield.","Spring plant.\nSummer plant.\nDry season plant.",0,"Texture.\npH (Al, Mn toxicity?)\nSalinity senitivity (soil/water).\nSodicity sensitivity.","Planting moisture.\nPre-water.\nPeak demand.\nWater requirements.\nScheduling/planning.\nType of irrigation.","Temperature at planting.\nFrost sensitivity.\nSensitivity to day length, day degree accumulation.\nWaterlogging.","Rhizobia inoculant.\nCorrect deficiencies.\nStarter fert.\nVAM dependence.\nAmt N fixed\nN removed at harvest..\nOther big nutrient sinks?","RKN tolerance.\nRLN tolerance.","Drainage/raised beds.\nSuitability for direct drilling.\nSeed bed preparation.\nStubble management from previous crop.","Susceptibility.\nHosts.\nSuppress.","Beneficials.\nSusceptibility.\nHosts.\nSuppress.","Susceptible to previous residual, plant-back alerts for permitted MOA\ntarget grass/broadleaf, spp specific MOA.\nCrop competition","Timing.\nRisk. \nDesiccation.\nLogistics/contractors.","Ease of planting next crop.\nValue for fallow soil protection.","Crop value, marketing, contracts, on-farm storage, freight, end use eg hay, human consumption grain, stockfeed","Set and forget v intense management, timeliness, agronomic advice for monitoring and sprays","What operations, access to contractors"]
["Key","Crop Type","Variety","Summer Dur","Spring Dur","Dry Dur","Value to rotation:","Crop risks:","Planting windows:","Expected yield range:","Soil features:","Soil moisture and irrigation:","Environmental factors:","Nutrient considerations:","Nematodes:","Land preparation:","Disease management:","Insect management:","Weed management:","Harvest:","Stubble management for following crop:","Economics and marketing:","Management input:","Specialised equipment:"]
[{"$f":"B5&\"-\"&C5","v":"Chickpea-Kyabra"},"Chickpea","Kyabra",null,null,120,"• Fix atmospheric nitrogen, more biomass fixes more N\n• Improve soil health, reduces soil erosion \n• Improve soil friability.\n• Control grass weeds \n• Good returns for high quality peas.\n• Winter legume option\n• Stubble breaks down easily.","• Low (winter plant, dry harvest).\n• Price fluctuations, direct marketing recommended\n• Poor competitor against weeds - ensure weed-free establishment.","• Winter planting windows. Suited to double cropping situations.\n• Early May planting.\n• 120 to 150 days. Requires lengthening daylength for reproductive phase.","1-2 t/ha","• Suited to a wide range of soil types provided they are well drained. Avoid major changes in soil type or soil moisture storage capacity.\n• Loam to self-mulching clay.\n• Avoid sodicity levels (ESP) >1% in root zone (to 90 cm)\n•Sensitive to salinity. Yield reduction in soils with EC >1.5 dS/m.\n• Avoid hostile sub-soils, including compacted soils. \n• pH 6 to 8. pH <5.5 (measured in 1:5 soil–water) can induce nutrient imbalances. Sensitive to high exchangeable Al in acid soils, B toxicity. ","• Sow on raised beds to improve drainage.\n• Suited to rain-fed production in areas with >450 mm rainfall.\n• 1 to 2 ML/ha irrigation required.\n• Sensitive to moisture stress during through flowering and pod fill\n• Flood or spray irrigation. Ensure paddock is well drained and irrigation is applied pre-flowering.\n• Roots can extend to 90 cm depth in un-compacted soil.","• Can be successfully dry sown in weed-free paddocks.\n• Emergence occurs >7°C, but\nup to 30°C is ideal for crop growth.\n• Sensitive to waterlogging and compaction.\n• Sensitive to frost and heat stress at flowering and podding. \n• Requires temperatures over 15°C and below 35°C to sustain flowering and podding.\n","• Inoculate with Group N rhizobia. \n• N fixation depends on effective inoculation, low soil N at planting and low salinity.\n• Fix approx. 35 kgN/ha when sown into low-nitrate conditions.\n• Very highly VAM dependent.\n• The main nutrients required are P, S, K and Zn. Foliar Zn and Mn may be needed on high pH soils.\n• N removed at harvest 33 kg/t\n• Sensitivite to B, Al and Mn toxicity.\n• Mb and Co required for nodulation.","• Highly susceptible to RKN (found only in light textured soils) \n• Resistant to RLN – varietal differences","• Well suited to no-till situations, and planting directly into standing stubble encourages the crop to grow taller, resulting in additional height to the lowest pods for ease of harvest.\n• Remove all obstacles from the soil surface to aid harvest low to the ground. Consider rolling at or after planting.\n• Standing stubble from previous crop can inhibit aphid flights.","• Check varietal resistance.\n• Susceptible to Ascochyta blight and Phytophthora root rot, botrytis and sclerotinia.\n• Check nematode status of soil. Chickpea is susceptible to nematoes that infect cereals.\n• Avoid sowing after another broadleaf crop due to disease risks such as sclerotinia. \n• Fungicide seed treatment is recommended.\n","• Main pest is helicoverpa. \n• Insect damage is a key contributor to grain quality downgrades.\n• Most susceptible to pest attack from budding onwards.\n• Monitor at least once per week during vegetative growth, and twice a week in the reproductive stage (budding onwards). ","• Select fields with low broadleaf weed burdens as herbicide options are limited.\n• Low tolerance of Group B residues (particularly SU).\n• Sensitive to spray drift and soil residues of Group I phenoxys.\n• Poor competitor with weeds but more competitive when early weed control is a priority.\n• Suited to croptopping for late weed control when pods are 75% mature.","• Harvest when pods are 90% of stems and pods turn to light golden yellow.","• Quick break down means stubble is not suitable for long fallow situations.","• Suitable for short term storage in aerated silos\n• Arrange market prior to sowing, consider hectare contracts.","• Requires high level of management\n• Experienced local advisor for crop monitoring and spray recommendations","• Specialised equipment needed for planting and harvesting\n• Contractors are present in the district"]
[{"$f":"B6&\"-\"&C6","v":"Chickpea-HatTrick"},"Chickpea","HatTrick",null,null,120,"• Fix atmospheric nitrogen, more biomass fixes more N\n• Improve soil health, reduces soil erosion \n• Improve soil friability.\n• Control grass weeds \n• Good returns for high quality peas.\n• Winter legume option\n• Stubble breaks down easily.","• Low (winter plant, dry harvest).\n• Price fluctuations, direct marketing recommended\n• Poor competitor against weeds - ensure weed-free establishment.","• Winter planting windows. Suited to double cropping situations.\n• Early May planting.\n• 120 to 150 days. Requires lengthening daylength for reproductive phase.","1-2 t/ha","• Suited to a wide range of soil types provided they are well drained. Avoid major changes in soil type or soil moisture storage capacity.\n• Loam to self-mulching clay.\n• Avoid sodicity levels (ESP) >1% in root zone (to 90 cm)\n•Sensitive to salinity. Yield reduction in soils with EC >1.5 dS/m.\n• Avoid hostile sub-soils, including compacted soils. \n• pH 6 to 8. pH <5.5 (measured in 1:5 soil–water) can induce nutrient imbalances. Sensitive to high exchangeable Al in acid soils, B toxicity. ","• Sow on raised beds to improve drainage.\n• Suited to rain-fed production in areas with >450 mm rainfall.\n• 1 to 2 ML/ha irrigation required.\n• Sensitive to moisture stress during through flowering and pod fill\n• Flood or spray irrigation. Ensure paddock is well drained and irrigation is applied pre-flowering.\n• Roots can extend to 90 cm depth in un-compacted soil.","• Can be successfully dry sown in weed-free paddocks.\n• Emergence occurs >7°C, but\nup to 30°C is ideal for crop growth.\n• Sensitive to waterlogging and compaction.\n• Sensitive to frost and heat stress at flowering and podding. \n• Requires temperatures over 15°C and below 35°C to sustain flowering and podding.\n","• Inoculate with Group N rhizobia. \n• N fixation depends on effective inoculation, low soil N at planting and low salinity.\n• Fix approx. 35 kgN/ha when sown into low-nitrate conditions.\n• Very highly VAM dependent.\n• The main nutrients required are P, S, K and Zn. Foliar Zn and Mn may be needed on high pH soils.\n• N removed at harvest 33 kg/t\n• Sensitivite to B, Al and Mn toxicity.\n• Mb and Co required for nodulation.","• Highly susceptible to RKN (found only in light textured soils) \n• Resistant to RLN – varietal differences","• Well suited to no-till situations, and planting directly into standing stubble encourages the crop to grow taller, resulting in additional height to the lowest pods for ease of harvest.\n• Remove all obstacles from the soil surface to aid harvest low to the ground. Consider rolling at or after planting.\n• Standing stubble from previous crop can inhibit aphid flights.","• Check varietal resistance.\n• Susceptible to Ascochyta blight and Phytophthora root rot, botrytis and sclerotinia.\n• Check nematode status of soil. Chickpea is susceptible to nematoes that infect cereals.\n• Avoid sowing after another broadleaf crop due to disease risks such as sclerotinia. \n• Fungicide seed treatment is recommended.\n","• Main pest is helicoverpa. \n• Insect damage is a key contributor to grain quality downgrades.\n• Most susceptible to pest attack from budding onwards.\n• Monitor at least once per week during vegetative growth, and twice a week in the reproductive stage (budding onwards). ","• Select fields with low broadleaf weed burdens as herbicide options are limited.\n• Low tolerance of Group B residues (particularly SU).\n• Sensitive to spray drift and soil residues of Group I phenoxys.\n• Poor competitor with weeds but more competitive when early weed control is a priority.\n• Suited to croptopping for late weed control when pods are 75% mature.","• Harvest when pods are 90% of stems and pods turn to light golden yellow.","• Quick break down means stubble is not suitable for long fallow situations.","• Suitable for short term storage in aerated silos\n• Arrange market prior to sowing, consider hectare contracts.","• Requires high level of management\n• Experienced local advisor for crop monitoring and spray recommendations","• Specialised equipment needed for planting and harvesting\n• Contractors are present in the district"]
[{"$f":"B7&\"-\"&C7","v":"Chickpea-Seamer"},"Chickpea","Seamer",null,null,120,"• Fix atmospheric nitrogen, more biomass fixes more N\n• Improve soil health, reduces soil erosion \n• Improve soil friability.\n• Control grass weeds \n• Good returns for high quality peas.\n• Winter legume option\n• Stubble breaks down easily.","• Low (winter plant, dry harvest).\n• Price fluctuations, direct marketing recommended\n• Poor competitor against weeds - ensure weed-free establishment.","• Winter planting windows. Suited to double cropping situations.\n• Early May planting.\n• 120 to 150 days. Requires lengthening daylength for reproductive phase.","1-2 t/ha","• Suited to a wide range of soil types provided they are well drained. Avoid major changes in soil type or soil moisture storage capacity.\n• Loam to self-mulching clay.\n• Avoid sodicity levels (ESP) >1% in root zone (to 90 cm)\n•Sensitive to salinity. Yield reduction in soils with EC >1.5 dS/m.\n• Avoid hostile sub-soils, including compacted soils. \n• pH 6 to 8. pH <5.5 (measured in 1:5 soil–water) can induce nutrient imbalances. Sensitive to high exchangeable Al in acid soils, B toxicity. ","• Sow on raised beds to improve drainage.\n• Suited to rain-fed production in areas with >450 mm rainfall.\n• 1 to 2 ML/ha irrigation required.\n• Sensitive to moisture stress during through flowering and pod fill\n• Flood or spray irrigation. Ensure paddock is well drained and irrigation is applied pre-flowering.\n• Roots can extend to 90 cm depth in un-compacted soil.","• Can be successfully dry sown in weed-free paddocks.\n• Emergence occurs >7°C, but\nup to 30°C is ideal for crop growth.\n• Sensitive to waterlogging and compaction.\n• Sensitive to frost and heat stress at flowering and podding. \n• Requires temperatures over 15°C and below 35°C to sustain flowering and podding.\n","• Inoculate with Group N rhizobia. \n• N fixation depends on effective inoculation, low soil N at planting and low salinity.\n• Fix approx. 35 kgN/ha when sown into low-nitrate conditions.\n• Very highly VAM dependent.\n• The main nutrients required are P, S, K and Zn. Foliar Zn and Mn may be needed on high pH soils.\n• N removed at harvest 33 kg/t\n• Sensitivite to B, Al and Mn toxicity.\n• Mb and Co required for nodulation.","• Highly susceptible to RKN (found only in light textured soils) \n• Resistant to RLN – varietal differences","• Well suited to no-till situations, and planting directly into standing stubble encourages the crop to grow taller, resulting in additional height to the lowest pods for ease of harvest.\n• Remove all obstacles from the soil surface to aid harvest low to the ground. Consider rolling at or after planting.\n• Standing stubble from previous crop can inhibit aphid flights.","• Check varietal resistance.\n• Susceptible to Ascochyta blight and Phytophthora root rot, botrytis and sclerotinia.\n• Check nematode status of soil. Chickpea is susceptible to nematoes that infect cereals.\n• Avoid sowing after another broadleaf crop due to disease risks such as sclerotinia. \n• Fungicide seed treatment is recommended.\n","• Main pest is helicoverpa. \n• Insect damage is a key contributor to grain quality downgrades.\n• Most susceptible to pest attack from budding onwards.\n• Monitor at least once per week during vegetative growth, and twice a week in the reproductive stage (budding onwards). ","• Select fields with low broadleaf weed burdens as herbicide options are limited.\n• Low tolerance of Group B residues (particularly SU).\n• Sensitive to spray drift and soil residues of Group I phenoxys.\n• Poor competitor with weeds but more competitive when early weed control is a priority.\n• Suited to croptopping for late weed control when pods are 75% mature.","• Harvest when pods are 90% of stems and pods turn to light golden yellow.","• Quick break down means stubble is not suitable for long fallow situations.","• Suitable for short term storage in aerated silos\n• Arrange market prior to sowing, consider hectare contracts.","• Requires high level of management\n• Experienced local advisor for crop monitoring and spray recommendations","• Specialised equipment needed for planting and harvesting\n• Contractors are present in the district"]
[{"$f":"B8&\"-\"&C8","v":"Chickpea-Pistol"},"Chickpea","Pistol",null,null,120,"• Fix atmospheric nitrogen, more biomass fixes more N\n• Improve soil health, reduces soil erosion \n• Improve soil friability.\n• Control grass weeds \n• Good returns for high quality peas.\n• Winter legume option\n• Stubble breaks down easily.","• Low (winter plant, dry harvest).\n• Price fluctuations, direct marketing recommended\n• Poor competitor against weeds - ensure weed-free establishment.","• Winter planting windows. Suited to double cropping situations.\n• Early May planting.\n• 120 to 150 days. Requires lengthening daylength for reproductive phase.","1-2 t/ha","• Suited to a wide range of soil types provided they are well drained. Avoid major changes in soil type or soil moisture storage capacity.\n• Loam to self-mulching clay.\n• Avoid sodicity levels (ESP) >1% in root zone (to 90 cm)\n•Sensitive to salinity. Yield reduction in soils with EC >1.5 dS/m.\n• Avoid hostile sub-soils, including compacted soils. \n• pH 6 to 8. pH <5.5 (measured in 1:5 soil–water) can induce nutrient imbalances. Sensitive to high exchangeable Al in acid soils, B toxicity. ","• Sow on raised beds to improve drainage.\n• Suited to rain-fed production in areas with >450 mm rainfall.\n• 1 to 2 ML/ha irrigation required.\n• Sensitive to moisture stress during through flowering and pod fill\n• Flood or spray irrigation. Ensure paddock is well drained and irrigation is applied pre-flowering.\n• Roots can extend to 90 cm depth in un-compacted soil.","• Can be successfully dry sown in weed-free paddocks.\n• Emergence occurs >7°C, but\nup to 30°C is ideal for crop growth.\n• Sensitive to waterlogging and compaction.\n• Sensitive to frost and heat stress at flowering and podding. \n• Requires temperatures over 15°C and below 35°C to sustain flowering and podding.\n","• Inoculate with Group N rhizobia. \n• N fixation depends on effective inoculation, low soil N at planting and low salinity.\n• Fix approx. 35 kgN/ha when sown into low-nitrate conditions.\n• Very highly VAM dependent.\n• The main nutrients required are P, S, K and Zn. Foliar Zn and Mn may be needed on high pH soils.\n• N removed at harvest 33 kg/t\n• Sensitivite to B, Al and Mn toxicity.\n• Mb and Co required for nodulation.","• Highly susceptible to RKN (found only in light textured soils) \n• Resistant to RLN – varietal differences","• Well suited to no-till situations, and planting directly into standing stubble encourages the crop to grow taller, resulting in additional height to the lowest pods for ease of harvest.\n• Remove all obstacles from the soil surface to aid harvest low to the ground. Consider rolling at or after planting.\n• Standing stubble from previous crop can inhibit aphid flights.","• Check varietal resistance.\n• Susceptible to Ascochyta blight and Phytophthora root rot, botrytis and sclerotinia.\n• Check nematode status of soil. Chickpea is susceptible to nematoes that infect cereals.\n• Avoid sowing after another broadleaf crop due to disease risks such as sclerotinia. \n• Fungicide seed treatment is recommended.\n","• Main pest is helicoverpa. \n• Insect damage is a key contributor to grain quality downgrades.\n• Most susceptible to pest attack from budding onwards.\n• Monitor at least once per week during vegetative growth, and twice a week in the reproductive stage (budding onwards). ","• Select fields with low broadleaf weed burdens as herbicide options are limited.\n• Low tolerance of Group B residues (particularly SU).\n• Sensitive to spray drift and soil residues of Group I phenoxys.\n• Poor competitor with weeds but more competitive when early weed control is a priority.\n• Suited to croptopping for late weed control when pods are 75% mature.","• Harvest when pods are 90% of stems and pods turn to light golden yellow.","• Quick break down means stubble is not suitable for long fallow situations.","• Suitable for short term storage in aerated silos\n• Arrange market prior to sowing, consider hectare contracts.","• Requires high level of management\n• Experienced local advisor for crop monitoring and spray recommendations","• Specialised equipment needed for planting and harvesting\n• Contractors are present in the district"]
[{"$f":"B9&\"-\"&C9","v":"Chickpea-Drummond"},"Chickpea","Drummond",null,null,120,"• Fix atmospheric nitrogen, more biomass fixes more N\n• Improve soil health, reduces soil erosion \n• Improve soil friability.\n• Control grass weeds \n• Good returns for high quality peas.\n• Winter legume option\n• Stubble breaks down easily.","• Low (winter plant, dry harvest).\n• Price fluctuations, direct marketing recommended\n• Poor competitor against weeds - ensure weed-free establishment.","• Winter planting windows. Suited to double cropping situations.\n• Early May planting.\n• 120 to 150 days. Requires lengthening daylength for reproductive phase.","1-2 t/ha","• Suited to a wide range of soil types provided they are well drained. Avoid major changes in soil type or soil moisture storage capacity.\n• Loam to self-mulching clay.\n• Avoid sodicity levels (ESP) >1% in root zone (to 90 cm)\n•Sensitive to salinity. Yield reduction in soils with EC >1.5 dS/m.\n• Avoid hostile sub-soils, including compacted soils. \n• pH 6 to 8. pH <5.5 (measured in 1:5 soil–water) can induce nutrient imbalances. Sensitive to high exchangeable Al in acid soils, B toxicity. ","• Sow on raised beds to improve drainage.\n• Suited to rain-fed production in areas with >450 mm rainfall.\n• 1 to 2 ML/ha irrigation required.\n• Sensitive to moisture stress during through flowering and pod fill\n• Flood or spray irrigation. Ensure paddock is well drained and irrigation is applied pre-flowering.\n• Roots can extend to 90 cm depth in un-compacted soil.","• Can be successfully dry sown in weed-free paddocks.\n• Emergence occurs >7°C, but\nup to 30°C is ideal for crop growth.\n• Sensitive to waterlogging and compaction.\n• Sensitive to frost and heat stress at flowering and podding. \n• Requires temperatures over 15°C and below 35°C to sustain flowering and podding.\n","• Inoculate with Group N rhizobia. \n• N fixation depends on effective inoculation, low soil N at planting and low salinity.\n• Fix approx. 35 kgN/ha when sown into low-nitrate conditions.\n• Very highly VAM dependent.\n• The main nutrients required are P, S, K and Zn. Foliar Zn and Mn may be needed on high pH soils.\n• N removed at harvest 33 kg/t\n• Sensitivite to B, Al and Mn toxicity.\n• Mb and Co required for nodulation.","• Highly susceptible to RKN (found only in light textured soils) \n• Resistant to RLN – varietal differences","• Well suited to no-till situations, and planting directly into standing stubble encourages the crop to grow taller, resulting in additional height to the lowest pods for ease of harvest.\n• Remove all obstacles from the soil surface to aid harvest low to the ground. Consider rolling at or after planting.\n• Standing stubble from previous crop can inhibit aphid flights.","• Check varietal resistance.\n• Susceptible to Ascochyta blight and Phytophthora root rot, botrytis and sclerotinia.\n• Check nematode status of soil. Chickpea is susceptible to nematoes that infect cereals.\n• Avoid sowing after another broadleaf crop due to disease risks such as sclerotinia. \n• Fungicide seed treatment is recommended.\n","• Main pest is helicoverpa. \n• Insect damage is a key contributor to grain quality downgrades.\n• Most susceptible to pest attack from budding onwards.\n• Monitor at least once per week during vegetative growth, and twice a week in the reproductive stage (budding onwards). ","• Select fields with low broadleaf weed burdens as herbicide options are limited.\n• Low tolerance of Group B residues (particularly SU).\n• Sensitive to spray drift and soil residues of Group I phenoxys.\n• Poor competitor with weeds but more competitive when early weed control is a priority.\n• Suited to croptopping for late weed control when pods are 75% mature.","• Harvest when pods are 90% of stems and pods turn to light golden yellow.","• Quick break down means stubble is not suitable for long fallow situations.","• Suitable for short term storage in aerated silos\n• Arrange market prior to sowing, consider hectare contracts.","• Requires high level of management\n• Experienced local advisor for crop monitoring and spray recommendations","• Specialised equipment needed for planting and harvesting\n• Contractors are present in the district"]
[{"$f":"B10&\"-\"&C10","v":"Chickpea-Boundary"},"Chickpea","Boundary",null,null,120,"• Fix atmospheric nitrogen, more biomass fixes more N\n• Improve soil health, reduces soil erosion \n• Improve soil friability.\n• Control grass weeds \n• Good returns for high quality peas.\n• Winter legume option\n• Stubble breaks down easily.","• Low (winter plant, dry harvest).\n• Price fluctuations, direct marketing recommended\n• Poor competitor against weeds - ensure weed-free establishment.","• Winter planting windows. Suited to double cropping situations.\n• Early May planting.\n• 120 to 150 days. Requires lengthening daylength for reproductive phase.","1-2 t/ha","• Suited to a wide range of soil types provided they are well drained. Avoid major changes in soil type or soil moisture storage capacity.\n• Loam to self-mulching clay.\n• Avoid sodicity levels (ESP) >1% in root zone (to 90 cm)\n•Sensitive to salinity. Yield reduction in soils with EC >1.5 dS/m.\n• Avoid hostile sub-soils, including compacted soils. \n• pH 6 to 8. pH <5.5 (measured in 1:5 soil–water) can induce nutrient imbalances. Sensitive to high exchangeable Al in acid soils, B toxicity. ","• Sow on raised beds to improve drainage.\n• Suited to rain-fed production in areas with >450 mm rainfall.\n• 1 to 2 ML/ha irrigation required.\n• Sensitive to moisture stress during through flowering and pod fill\n• Flood or spray irrigation. Ensure paddock is well drained and irrigation is applied pre-flowering.\n• Roots can extend to 90 cm depth in un-compacted soil.","• Can be successfully dry sown in weed-free paddocks.\n• Emergence occurs >7°C, but\nup to 30°C is ideal for crop growth.\n• Sensitive to waterlogging and compaction.\n• Sensitive to frost and heat stress at flowering and podding. \n• Requires temperatures over 15°C and below 35°C to sustain flowering and podding.\n","• Inoculate with Group N rhizobia. \n• N fixation depends on effective inoculation, low soil N at planting and low salinity.\n• Fix approx. 35 kgN/ha when sown into low-nitrate conditions.\n• Very highly VAM dependent.\n• The main nutrients required are P, S, K and Zn. Foliar Zn and Mn may be needed on high pH soils.\n• N removed at harvest 33 kg/t\n• Sensitivite to B, Al and Mn toxicity.\n• Mb and Co required for nodulation.","• Highly susceptible to RKN (found only in light textured soils) \n• Resistant to RLN – varietal differences","• Well suited to no-till situations, and planting directly into standing stubble encourages the crop to grow taller, resulting in additional height to the lowest pods for ease of harvest.\n• Remove all obstacles from the soil surface to aid harvest low to the ground. Consider rolling at or after planting.\n• Standing stubble from previous crop can inhibit aphid flights.","• Check varietal resistance.\n• Susceptible to Ascochyta blight and Phytophthora root rot, botrytis and sclerotinia.\n• Check nematode status of soil. Chickpea is susceptible to nematoes that infect cereals.\n• Avoid sowing after another broadleaf crop due to disease risks such as sclerotinia. \n• Fungicide seed treatment is recommended.\n","• Main pest is helicoverpa. \n• Insect damage is a key contributor to grain quality downgrades.\n• Most susceptible to pest attack from budding onwards.\n• Monitor at least once per week during vegetative growth, and twice a week in the reproductive stage (budding onwards). ","• Select fields with low broadleaf weed burdens as herbicide options are limited.\n• Low tolerance of Group B residues (particularly SU).\n• Sensitive to spray drift and soil residues of Group I phenoxys.\n• Poor competitor with weeds but more competitive when early weed control is a priority.\n• Suited to croptopping for late weed control when pods are 75% mature.","• Harvest when pods are 90% of stems and pods turn to light golden yellow.","• Quick break down means stubble is not suitable for long fallow situations.","• Suitable for short term storage in aerated silos\n• Arrange market prior to sowing, consider hectare contracts.","• Requires high level of management\n• Experienced local advisor for crop monitoring and spray recommendations","• Specialised equipment needed for planting and harvesting\n• Contractors are present in the district"]
[{"$f":"B11&\"-\"&C11","v":"Chickpea-Other"},"Chickpea","Other",null,null,120,"• Fix atmospheric nitrogen, more biomass fixes more N\n• Improve soil health, reduces soil erosion \n• Improve soil friability.\n• Control grass weeds \n• Good returns for high quality peas.\n• Winter legume option\n• Stubble breaks down easily.","• Low (winter plant, dry harvest).\n• Price fluctuations, direct marketing recommended\n• Poor competitor against weeds - ensure weed-free establishment.","• Winter planting windows. Suited to double cropping situations.\n• Early May planting.\n• 120 to 150 days. Requires lengthening daylength for reproductive phase.","1-2 t/ha","• Suited to a wide range of soil types provided they are well drained. Avoid major changes in soil type or soil moisture storage capacity.\n• Loam to self-mulching clay.\n• Avoid sodicity levels (ESP) >1% in root zone (to 90 cm)\n•Sensitive to salinity. Yield reduction in soils with EC >1.5 dS/m.\n• Avoid hostile sub-soils, including compacted soils. \n• pH 6 to 8. pH <5.5 (measured in 1:5 soil–water) can induce nutrient imbalances. Sensitive to high exchangeable Al in acid soils, B toxicity. ","• Sow on raised beds to improve drainage.\n• Suited to rain-fed production in areas with >450 mm rainfall.\n• 1 to 2 ML/ha irrigation required.\n• Sensitive to moisture stress during through flowering and pod fill\n• Flood or spray irrigation. Ensure paddock is well drained and irrigation is applied pre-flowering.\n• Roots can extend to 90 cm depth in un-compacted soil.","• Can be successfully dry sown in weed-free paddocks.\n• Emergence occurs >7°C, but\nup to 30°C is ideal for crop growth.\n• Sensitive to waterlogging and compaction.\n• Sensitive to frost and heat stress at flowering and podding. \n• Requires temperatures over 15°C and below 35°C to sustain flowering and podding.\n","• Inoculate with Group N rhizobia. \n• N fixation depends on effective inoculation, low soil N at planting and low salinity.\n• Fix approx. 35 kgN/ha when sown into low-nitrate conditions.\n• Very highly VAM dependent.\n• The main nutrients required are P, S, K and Zn. Foliar Zn and Mn may be needed on high pH soils.\n• N removed at harvest 33 kg/t\n• Sensitivite to B, Al and Mn toxicity.\n• Mb and Co required for nodulation.","• Highly susceptible to RKN (found only in light textured soils) \n• Resistant to RLN – varietal differences","• Well suited to no-till situations, and planting directly into standing stubble encourages the crop to grow taller, resulting in additional height to the lowest pods for ease of harvest.\n• Remove all obstacles from the soil surface to aid harvest low to the ground. Consider rolling at or after planting.\n• Standing stubble from previous crop can inhibit aphid flights.","• Check varietal resistance.\n• Susceptible to Ascochyta blight and Phytophthora root rot, botrytis and sclerotinia.\n• Check nematode status of soil. Chickpea is susceptible to nematoes that infect cereals.\n• Avoid sowing after another broadleaf crop due to disease risks such as sclerotinia. \n• Fungicide seed treatment is recommended.\n","• Main pest is helicoverpa. \n• Insect damage is a key contributor to grain quality downgrades.\n• Most susceptible to pest attack from budding onwards.\n• Monitor at least once per week during vegetative growth, and twice a week in the reproductive stage (budding onwards). ","• Select fields with low broadleaf weed burdens as herbicide options are limited.\n• Low tolerance of Group B residues (particularly SU).\n• Sensitive to spray drift and soil residues of Group I phenoxys.\n• Poor competitor with weeds but more competitive when early weed control is a priority.\n• Suited to croptopping for late weed control when pods are 75% mature.","• Harvest when pods are 90% of stems and pods turn to light golden yellow.","• Quick break down means stubble is not suitable for long fallow situations.","• Suitable for short term storage in aerated silos\n• Arrange market prior to sowing, consider hectare contracts.","• Requires high level of management\n• Experienced local advisor for crop monitoring and spray recommendations","• Specialised equipment needed for planting and harvesting\n• Contractors are present in the district"]
[{"$f":"B12&\"-\"&C12","v":"Field pea-Maki"},"Field pea","Maki",null,null,"110 to 130 days","• Fix atmospheric nitrogen, more biomass fixes more N\n• Improve soil health, reduces soil erosion \n• Soil conditioning effect on difficult soils.\n• Control grass weeds \n• Good returns for high quality peas.\n• Winter legume option\n• Stubble breaks down easily.","• Low (winter plant, dry harvest).\n• Price fluctuations, direct marketing recommended","• Winter planting windows. Suited to double cropping situations.\n• May planting.\n","1-2 t/ha ","• Sensitive to salinity.\n• Can tolerate subsoil sodicity (up to ESP 8).\n• Suited to a wide range of soil types provided they are well drained. Can tolerate short-term waterlogging after establishment.\n• Sandy loam to heavy clay.\n• Can tolerate hardsetting and sub-soil clay layer but productivity will be reduced. \n• pH 5.5 to 9. pH <5.5 (measured in 1:5 soil–water) can induce nutrient imbalances. Sensitive to high exchangeable Al in acid soils. ","• 1 to 3 ML/ha irrigation\n• Sensitive to moisture stress during germination and through flowering and pod fill\n• Flood or spray irrigation","• Sow on raised beds.\n• Can be successfully dry sown in weed-free paddocks.\n• Emergence occurs >7°C, but\nup to 25°C is ideal for crop growth\n• Can tolerate some soil compaction.\n• Sensitive to waterlogging.\n• Sensitive to frost and heat stress at harvest\n• Can flower and pod in cool temperatures, setting pods before spring heat.\n","• Inoculate with Group E rhizobia. Group F can also be used with only marginally less success. \n• N fixation depends on effective inoculation, low soil N at planting and low salinity.\n• Fix approx. 110 kgN/ha\n• The main nutrients required are P, S, K and Zn. \n• N removed at harvest 35–40 kg/t","Varietal differences\n• Highly susceptible to RKN (found only in light textured soils) \n• Resistant to RLN ","• Well suited to no-till situations, and planting directly into standing stubble encourages the crop to grow taller, resulting in additional height to the lowest pods for ease of harvest.\n• Remove all obstacles from the soil surface to aid harvest low to the ground. Consider rolling at or after planting.\n• Standing stubble from previous crop can inhibit aphid flights.","• Check varietal resistance.\n* Powdery mildew, bean leafroll and pea seed-borne mocaic virus are the main disease risks.\n• Avoid sowing after another broadleaf crop due to disease risks such as sclerotinia. \n• Fungicide seed treatment may be used.\n","• Supports strong populations of generalist insect predators.\n• Two main pests are helicoverpa and pea weevil. Other pests include earth mites, lucerne flea, cutworms, slugs and snails, aphids, thrips and etiella.\n• Host for bean fly, mirids, Helicoverpa spp. and green vegetable bug.\n• Insect damage is a key contributor to grain quality downgrades.\n• Most susceptible to pest attack from budding onwards.\n• Monitor at least once per week during vegetative growth, and twice a week in the reproductive stage (budding onwards). ","• Select fields with low broadleaf weed burdens as herbicide options are limited.\n• Low tolerance of Group B residues (particularly SU).\n• Sensitive to spray drift of Group I phenoxys.\n• Poor competitor with weeds but more competitive and have more broadleaf herbicide control options than chickpea.\n• Can be baled as hay as an effective weed control tactic.\n• Suited to croptopping for late weed control when pods are 75% mature.","• Desiccate crops at 75–90% mature pod stage (pods are brown and leathery, seeds are firm). Usually around 20 days after the end of flowering. Around 30% seed moisture.\n• Harvest when grain moisture is 14% to minimise splitting and grain loss due to pods shattering.\n• Prone to lodging. Headers with air assist fronts minimise losses.","• Quick break down means stubble is not suitable for long fallow situations.","• Suitable for short term storage in aerated silos\n• Arrange market prior to sowing, consider hectare contracts.","• Requires high level of management\n• Experienced local advisor for crop monitoring and spray recommendations","• Specialised equipment needed for planting and harvesting\n• Contractors are present in the district"]
[{"$f":"B13&\"-\"&C13","v":"Field pea-Other"},"Field pea","Other",null,null,"110 to 130 days","• Fix atmospheric nitrogen, more biomass fixes more N\n• Improve soil health, reduces soil erosion \n• Soil conditioning effect on difficult soils.\n• Control grass weeds \n• Good returns for high quality peas.\n• Winter legume option\n• Stubble breaks down easily.","• Low (winter plant, dry harvest).\n• Price fluctuations, direct marketing recommended","• Winter planting windows. Suited to double cropping situations.\n• May planting.\n","1-2 t/ha ","• Sensitive to salinity.\n• Can tolerate subsoil sodicity (up to ESP 8).\n• Suited to a wide range of soil types provided they are well drained. Can tolerate short-term waterlogging after establishment.\n• Sandy loam to heavy clay.\n• Can tolerate hardsetting and sub-soil clay layer but productivity will be reduced. \n• pH 5.5 to 9. pH <5.5 (measured in 1:5 soil–water) can induce nutrient imbalances. Sensitive to high exchangeable Al in acid soils. ","• 1 to 3 ML/ha irrigation\n• Sensitive to moisture stress during germination and through flowering and pod fill\n• Flood or spray irrigation","• Sow on raised beds.\n• Can be successfully dry sown in weed-free paddocks.\n• Emergence occurs >7°C, but\nup to 25°C is ideal for crop growth\n• Can tolerate some soil compaction.\n• Sensitive to waterlogging.\n• Sensitive to frost and heat stress at harvest\n• Can flower and pod in cool temperatures, setting pods before spring heat.\n","• Inoculate with Group E rhizobia. Group F can also be used with only marginally less success. \n• N fixation depends on effective inoculation, low soil N at planting and low salinity.\n• Fix approx. 110 kgN/ha\n• The main nutrients required are P, S, K and Zn. \n• N removed at harvest 35–40 kg/t","Varietal differences\n• Highly susceptible to RKN (found only in light textured soils) \n• Resistant to RLN ","• Well suited to no-till situations, and planting directly into standing stubble encourages the crop to grow taller, resulting in additional height to the lowest pods for ease of harvest.\n• Remove all obstacles from the soil surface to aid harvest low to the ground. Consider rolling at or after planting.\n• Standing stubble from previous crop can inhibit aphid flights.","• Check varietal resistance.\n* Powdery mildew, bean leafroll and pea seed-borne mocaic virus are the main disease risks.\n• Avoid sowing after another broadleaf crop due to disease risks such as sclerotinia. \n• Fungicide seed treatment may be used.\n","• Supports strong populations of generalist insect predators.\n• Two main pests are helicoverpa and pea weevil. Other pests include earth mites, lucerne flea, cutworms, slugs and snails, aphids, thrips and etiella.\n• Host for bean fly, mirids, Helicoverpa spp. and green vegetable bug.\n• Insect damage is a key contributor to grain quality downgrades.\n• Most susceptible to pest attack from budding onwards.\n• Monitor at least once per week during vegetative growth, and twice a week in the reproductive stage (budding onwards). ","• Select fields with low broadleaf weed burdens as herbicide options are limited.\n• Low tolerance of Group B residues (particularly SU).\n• Sensitive to spray drift of Group I phenoxys.\n• Poor competitor with weeds but more competitive and have more broadleaf herbicide control options than chickpea.\n• Can be baled as hay as an effective weed control tactic.\n• Suited to croptopping for late weed control when pods are 75% mature.","• Desiccate crops at 75–90% mature pod stage (pods are brown and leathery, seeds are firm). Usually around 20 days after the end of flowering. Around 30% seed moisture.\n• Harvest when grain moisture is 14% to minimise splitting and grain loss due to pods shattering.\n• Prone to lodging. Headers with air assist fronts minimise losses.","• Quick break down means stubble is not suitable for long fallow situations.","• Suitable for short term storage in aerated silos\n• Arrange market prior to sowing, consider hectare contracts.","• Requires high level of management\n• Experienced local advisor for crop monitoring and spray recommendations","• Specialised equipment needed for planting and harvesting\n• Contractors are present in the district"]
[{"$f":"B14&\"-\"&C14","v":"Manure / Fallow-Soybean"},"Manure / Fallow","Soybean",null,null,null,"• Fix atmospheric nitrogen\n• Improve soil health, reduces erosion \n• Control grass weeds \n• 20% yield improvement in cane if combined with reduced tillage practice\n• Fodder option, hay/silage\n• Preferred variety Leichhardt\n• More biomass and N than cowpeas or lablab\n","• Whiteflies?\n• Crop residue breaks down quickly, potential erosion risk","• Early summer planting window for best results.\n• Seed is short lived.\n• Germination and vigour are lost after only a few months in storage.\n","8 t/ha total dry matter","• Sands to heavy clays \n• pHCaCl2 in the range of 5.2 to 6.55. As pH levels drop below 5, aluminium and manganese toxicity can increase.\n• Intolerant of soil salinity. Yield reductions occur at soil salinities greater than 2.0 dS/m and irrigation waters greater than 1.5 dS/m. Nodulation is impaired and plant growth is affected.","• Plant into moist, well-drained soil\n• Avoid watering up for best inoculation results.","• Frost sensitive. Not an issue in the Burdekin.\n• Soil temperature does not influence the start of the planting window.\n• Sensitive to day length \n• base/max temperatures relative to day degree accumulation\n• Tolerates waterlogging after crop is established (to 4-leaf stage)","• Group H inoculant (strain CB 1809)\n• N fixation depends on effective inoculation, low soil N at planting and low salinity.\n• Correct any deficiencies in P, S, K and trace elements (in particular Zn on heavy clay soils)\n• Apply some starter N (20-30 kg/ha) if there is heavy load of crop residue eg cane trash\n• Highly VAM dependent.\n• 70–280 kgN/ha fixed","Varietal differences to RKN\n• Poor host of RLN, reducing populations by up to 80%","• Suited to direct drilling\n• Suited to cultivated seedbed, controlled traffic, zonal and zero tillage\n• Use raised beds if paddock is prone to waterlogging\n• Fresh cane trash contains chemicals that can reduce soybean germination. Either rake away the cane trash or delay planting for 4-6 weeks after cane harvest.",null,"• Treat seed with fipronil if stem borer is likely\n• Supports strong populations of generalist insect predators.\n• Host for Helicoverpa spp., mites, green vegetable bug and whiteflies.\n• Extremely susceptible to attack from whiteflies.","Varietal differences\n• Control weeds before planting\n• Opportunity to control grass weeds.\n• Once established, the crop competes well with weeds.\n• Consider how to control volunteers in fallow and subsequent crops.","• Terminate at flowering\n• Leave in-situ to preserve fixed N","• Can direct drill next crop into stubble\n• Stems may be ropey causing problems when slashing and with land preparation for next crop.\n• Quick break down means stubble is not suitable for long fallow situations.","• Relatively low establishment costs.\n• Options for hay production,\ngreen or brown manure\nmaximise N residual by reducing losses to leaching","• Requires low level of management\n• Aim for good establishment and weed control.","• Specialised equipment needed for planting \n• Contractors are present in the district"]
[{"$f":"B15&\"-\"&C15","v":"Manure / Fallow-Mixed species"},"Manure / Fallow","Mixed species",null,null,null,"• Fix atmospheric nitrogen\n• Improve soil health, reduces erosion \n• Control grass weeds ","• Crop residue breaks down quickly, potential erosion risk","Flexible\nSpring plant\nSummer plant\nDry season plant (winter)",null,null,"• Irrigation produces more biomass",null,null,null,null,null,null,null,"• Terminate at flowering\n• Leave in-situ to preserve fixed N","• Can direct drill next crop into stubble\n• Quick break down means stubble is not suitable for long fallow situations.","• Relatively low establishment costs.\n• Options for hay production,\ngreen or brown manure\nmaximise N residual by reducing losses to leaching","• Requires low level of management\n• Aim for good establishment and weed control.","• Specialised equipment needed for planting \n• Contractors are present in the district"]
[{"$f":"B16&\"-\"&C16","v":"Manure / Fallow-Tillage radish"},"Manure / Fallow","Tillage radish",null,null,null,"• Break deep compaction, control grass weeds, erosion control","• Crop residue breaks down quickly, potential erosion risk","Flexible\nSpring plant\nSummer plant\nDry season plant (winter)",null,null,"• Irrigation produces more biomass",null,null,null,null,null,null,null,"• Terminate at flowering\n• Leave in-situ to preserve soil benefits","• Can direct drill next crop into stubble\n• Quick break down means stubble is not suitable for long fallow situations.","• Relatively low establishment costs.\n• Options for hay production,\ngreen or brown manure\nmaximise N residual by reducing losses to leaching","• Requires low level of management\n• Aim for good establishment and weed control.","• Specialised equipment needed for planting \n• Contractors are present in the district"]
[{"$f":"B17&\"-\"&C17","v":"Manure / Fallow-Cow pea"},"Manure / Fallow","Cow pea",null,null,null,"• Fix atmospheric nitrogen\n• Improve soil health, reduces erosion \n• Control grass weeds \n• Fodder option, hay/silage","• Crop residue breaks down quickly, potential erosion risk","Flexible\nSpring plant\nSummer plant\nDry season plant (winter)",null,null,"• Irrigation produces more biomass",null,"• Inoculate with Group I rhizobia.","• Highly susceptible to RKN (found only in light textured soils) \n• Suppresses RLN",null,null,null,"Prone to waterlogging","• Terminate at flowering\n• Leave in-situ to preserve fixed N","• Can direct drill next crop into stubble\n• Quick break down means stubble is not suitable for long fallow situations.","• Relatively low establishment costs.\n• Options for hay production,\ngreen or brown manure\nmaximise N residual by reducing losses to leaching","• Requires low level of management\n• Aim for good establishment and weed control.","• Specialised equipment needed for planting \n• Contractors are present in the district"]
[{"$f":"B18&\"-\"&C18","v":"Manure / Fallow-Field pea"},"Manure / Fallow","Field pea",null,null,null,"• Fix atmospheric nitrogen\n• Improve soil health, reduces erosion \n• Control grass weeds \n• Fodder option, hay/silage\n• Winter legume option","• Crop residue breaks down quickly, potential erosion risk","• Winter planting windows. Suited to double cropping situations.\n• May planting.",null,"• Sensitive to salinity.\n• Can tolerate subsoil sodicity (up to ESP 8).\n• Suited to a wide range of soil types provided they are well drained. Can tolerate short-term waterlogging after establishment.\n• Sandy loam to heavy clay.\n• Can tolerate hardsetting and sub-soil clay layer but productivity will be reduced. \n• pH 5.5 to 9. pH <5.5 (measured in 1:5 soil–water) can induce nutrient imbalances. Sensitive to high exchangeable Al in acid soils. ","• 1 to 3 ML/ha irrigation\n• Sensitive to moisture stress during germination \n• Flood or spray irrigation","• Sow on raised beds.\n• Can be successfully dry sown in weed-free paddocks.\n• Emergence occurs >7°C, but\nup to 25°C is ideal for crop growth\n• Can tolerate some soil compaction.\n• Sensitive to waterlogging.\n• Sensitive to frost and heat stress at harvest\n• Can flower and pod in cool temperatures, setting pods before spring heat.\n","• Inoculate with Group E rhizobia. Group F can also be used with only marginally less success. \n• N fixation depends on effective inoculation, low soil N at planting and low salinity.\n• Fix approx. 110 kgN/ha\n• The main nutrients required are P, S, K and Zn. \n• N removed at harvest 35–40 kg/t","Varietal differences\n• Highly susceptible to RKN (found only in light textured soils) \n• Resistant to RLN ","• Well suited to no-till situations, and planting directly into standing stubble encourages the crop to grow taller, resulting in additional height to the lowest pods for ease of harvest.\n• Remove all obstacles from the soil surface to aid harvest low to the ground. Consider rolling at or after planting.\n• Standing stubble from previous crop can inhibit aphid flights.",null,"• Supports strong populations of generalist insect predators.\n• Two main pests are helicoverpa and pea weevil. Other pests include earth mites, lucerne flea, cutworms, slugs and snails, aphids, thrips and etiella.\n• Host for bean fly, mirids, Helicoverpa spp. and green vegetable bug.\n• Insect damage is a key contributor to grain quality downgrades.\n• Most susceptible to pest attack from budding onwards.\n• Monitor at least once per week during vegetative growth, and twice a week in the reproductive stage (budding onwards). ","• Select fields with low broadleaf weed burdens as herbicide options are limited.\n• Low tolerance of Group B residues (particularly SU).\n• Sensitive to spray drift of Group I phenoxys.\n• Poor competitor with weeds but more competitive and have more broadleaf herbicide control options than chickpea.\n• Can be baled as hay as an effective weed control tactic.\n• Suited to croptopping for late weed control when pods are 75% mature.","• Terminate at flowering\n• Leave in-situ to preserve fixed N","• Can direct drill next crop into stubble\n• Quick break down means stubble is not suitable for long fallow situations.","• Relatively low establishment costs.\n• Options for hay production,\ngreen or brown manure\nmaximise N residual by reducing losses to leaching","• Requires low level of management\n• Aim for good establishment and weed control.","• Specialised equipment needed for planting \n• Contractors are present in the district"]
[{"$f":"B19&\"-\"&C19","v":"Manure / Fallow-Lab lab"},"Manure / Fallow","Lab lab",null,null,null,"• Fix atmospheric nitrogen\n• Improve soil health, reduces erosion \n• Control grass weeds \n• Fodder option, hay/silage\n• Stubble breaks down easily.\n• Does not aggravate insect pests.\n• Moderate rooting depth.","• Crop residue breaks down quickly, potential erosion risk","Flexible\nSpring plant\nSummer plant\nDry season plant (winter)\n• Spring planting window maximises vegetative growth. Use a longer season variety to maximise the days to flowering.\n• Well suited to double cropping after wheat.",null,"• Moderately sensitive to salinity.\n• Sensitive to Sodicity (waterlogging).","• Irrigation produces more biomass and more N fixation","• Planting temperature 18oC on 3 consecutive days and rising.","• Very highly VAM dependent.\n• Inoculate with – Group J.\n• The main nutrients required are P and Zn. In low P soils apply 10 to 15 kg P/ha. In high pH soils apply Zn.\n• Fix 125–190 kgN/ha (none removed unless hay or silage is made)","• Highly susceptible to RKN (found only in light textured soils) \n• Suppresses RLN",null,null,"• Supports strong populations of generalist insect predators.\n• Host for cutworm, wireworm, cowpea aphid, mirids, green vegetable bug, thrips and Helicoverpa spp.","• Highly competitive once established.\n• Select fields with low weed burdens as herbicide options are very limited — trifluralin.","• Terminate at flowering\n• Leave in-situ to preserve fixed N","• Manure at least 4 weeks before planting next crop to minimise disease risks.\n• Stubble mulch in contact with the soil breaks down quickly.","• Hay production removes nutrients.\n• Green or brown manure\nmaximise N residual by reducing losses to leaching\n• Growing costs are strongly influenced by irrigation.\n• Costs are offset by; N fixation, increasing pools of plant available P, K and Zn, increasing the soil’s capacity to hold water and better\nroot development in the following crop.","• Requires low level of management\n• Aim for good establishment and weed control.","• Specialised equipment needed for planting \n• Contractors are present in the district"]
[{"$f":"B20&\"-\"&C20","v":"Manure / Fallow-Millet"},"Manure / Fallow","Millet",null,null,null,"• Provides excellent ground cover for promoting soil moisture conservation","• Stubble can be a problem.\n• Potential plant-back problems with atrazine.","• Spring and summer planting windows. (September to January plant)",null,null,"• Irrigation produces more biomass",null,null,"• Nematodes not suppressed","• Requires seedbed preparation",null,null,null,null,"• Moderate ground cover for long fallows.\n• Breaks down more quickly than cereals but difficult to incorporate\nfor quicker breakdown.\n","• Relatively low establishment costs.\n• Options for hay production,\ngreen or brown manure\n","• Some agronomic support required."]
[{"$f":"B21&\"-\"&C21","v":"Manure / Fallow-Forage sorghum"},"Manure / Fallow","Forage sorghum",null,null,null,"• Long planting window.\n• Has a role in IPM.\n","• Stubble can be a problem.\n• Potential plant-back problems with atrazine.","Flexible\nSpring plant\nSummer plant\nDry season plant (winter)",null,"• Rapid yield decline when soil salinity increases from 2–5 dS/m.","• Irrigation produces more biomass\n• Usually only watered once.\n• Reduces run-off and erosion.\n• Improves infiltration.","• 16–18oC for 3 to 4 days and the risk of frost has past.","• Highly VAM dependent.\n• May require high amounts of N (test soil)",null,"• Deep rooted.\n• Soil can be hard to till.",null,"• Supports strong populations of generalist insect predators.\n• Host for H. armigera. Late crops can increase risk of wireworms next spring","• Combination of herbicides and crop competition tends to reduce weed burdens.\n• Opportunity to use alternative Modes of Action (not Group M or Group A) for grass weed control.\n• Limit atrazine rates to avoid plant back problems.","• Terminate at flowering\n• Leave in-situ to preserve soil benefits","• Moderate ground cover for long fallows.\n• Breaks down more quickly than cereals but difficult to incorporate for quicker breakdown.\n• Late incorporation in conjunction with a dry winter is known to be allelopathic to some emerging crops.","• Relatively low establishment costs.\n• Options for hay production,\ngreen or brown manure","• Requires low level of management\n• Aim for good establishment and weed control.","• Specialised equipment needed for planting \n• Contractors are present in the district"]
[{"$f":"B22&\"-\"&C22","v":"Manure / Fallow-Wheat"},"Manure / Fallow","Wheat",null,null,null,"• Higher root density than grain legumes.\n• Improves soil structure.\n• Beneficial effects for 3 to 5 years.","• Will dry soil profile causing deep cracking.\n• Aggrevates thrips/wireworms.","Autumn plant\n• Plant May to June\n• Very wide planting windows can be achieved through variety selection.",null,"• Rapid yield decline when soil salinity increases","• Irrigation produces more biomass\n• Usually only watered once.\n• Reduces run-off and erosion.\n• Improves infiltration.\n","• 20oC and falling for early plant. Does not influence the start of the main season planting window.","• Encourages AMF.\n• Low VAM dependence.\n• Can utilise N leached to depth.\n• Requires N and P fertiliser.\n• Decaying stubble will tie up some N in double crop situations.\n","• Nematodes not suppressed","• Very well suited to no-till situations.",null,"• Supports strong populations of general insect predators.\n• Host for wireworms and thrips.\n• Provides overwintering shelter for green vegetable bugs.","• Wide range of herbicide options for broadleaf and grass weed control.\n• Consider carefully when using residual herbicides.","• Harvest when grain moisture content is 12.5%.\n• Growers should confirm receival standards with their local grain merchant prior to harvest.","• Breaks down slowly for slow release of carbon.\n• Relatively easy to plant into.\n• Bale to handle heavy stubble.\n• May tie up N .\n• Excessive trash at planting can cause variable plant stands.\n• Adaptable row configurations to allow inter - sowing of the next crop.","• Potential to double crop.\n• Seasonally dependant but fairly reliable.\n","• Some agronomic support required."]
[{"$f":"B23&\"-\"&C23","v":"Manure / Fallow-Barley"},"Manure / Fallow","Barley",null,null,null,"• Higher root density than grain legumes.\n• Improves soil structure.\n• Beneficial effects for 3 to 5 years.\n• Suitable for hay.\n• Competes strongly with weeds","• Will dry soil profile causing deep cracking.\n• Aggrevates thrips/wireworms.","Autumn plant\n• Plant May to June\n• Very wide planting windows can be achieved by growing a range of varieties.",null,null,"• Irrigation produces more biomass\n• Reduces run-off and erosion.\n• Improves infiltration.\n","• 20oC and falling for early plant. \nDoes not influence the start of the main season planting window.","• Encourages AMF.\n• Low VAM dependence.\n• Can utilise N leached to depth.\n• Requires N and P fertiliser.\n• Decaying stubble will tie up some N in double crop situations.\n","• Nematodes not suppressed","• Very well suited to no-till situations.",null,"• Supports strong populations of general insect predators.\n• Host for wireworms and thrips.\n• Provides overwintering shelter for green vegetable bugs.","• Wide range of herbicide options for broadleaf and grass weed control.\n• Consider carefully when using residual herbicides.","• Terminate at flowering\n• Leave in-situ to preserve soil benefits","• Breaks down slowly for slow release of carbon.\n• Relatively easy to plant into.\n• Bale to handle heavy stubble.\n• May tie up N .\n• Excessive trash at planting can cause variable plant stands.\n• Adaptable row configurations to allow inter - sowing of the next crop.","• Potential to double crop.\n• Seasonally dependant but fairly reliable.\n","• Requires low level of management\n• Aim for good establishment and weed control.","• Contractors are present in the district"]
[{"$f":"B24&\"-\"&C24","v":"Manure / Fallow-Triticale"},"Manure / Fallow","Triticale",null,null,null,"• Higher root density than grain legumes.\n• Improves soil structure.\n• Beneficial effects for 3 to 5 years.","• Will dry soil profile causing deep cracking.\n• Aggrevates thrips/wireworms.","Autumn plant\n• Plant May to June\n• Very wide planting windows can be achieved by growing a range of varieties.",null,"• Rapid yield decline when soil salinity increases","• Irrigation produces more biomass\n• Usually only watered once.\n• Reduces run-off and erosion.\n• Improves infiltration.\n","• 20oC and falling for early plant. Does not influence the start of the main season planting window.","• Encourages AMF.\n• Low VAM dependence.\n• Can utilise N leached to depth.\n• Requires N and P fertiliser.\n• Decaying stubble will tie up some N in double crop situations.\n","• Nematodes not suppressed","• Very well suited to no-till situations.",null,"• Supports strong populations of general insect predators.\n• Host for wireworms and thrips.\n• Provides overwintering shelter for green vegetable bugs.","• Wide range of herbicide options for broadleaf and grass weed control.\n• Consider carefully when using residual herbicides.","• Harvest when grain moisture content is 12.5%.\n• Growers should confirm receival standards with their local grain merchant prior to harvest.","• Breaks down slowly for slow release of carbon.\n• Relatively easy to plant into.\n• Bale to handle heavy stubble.\n• May tie up N .\n• Excessive trash at planting can cause variable plant stands.\n• Adaptable row configurations to allow inter - sowing of the next crop.","• Potential to double crop.\n• Seasonally dependant but fairly reliable.\n","• Some agronomic support required."]
[{"$f":"B25&\"-\"&C25","v":"Manure / Fallow-Oats"},"Manure / Fallow","Oats",null,null,null,"• Long planting window.\n• Has a role in IPM.\n• Suitable for hay.\n","• Stubble can be a problem.\n• Potential plant-back problems with atrazine.","Autumn plant\n• Plant May to June\n• Very wide planting windows can be achieved by growing a range of varieties.",null,"• Rapid yield decline when soil salinity increases from 2–5 dS/m.","• Irrigation produces more biomass\n• Usually only watered once.\n• Reduces run-off and erosion.\n• Improves infiltration.","• 16–18oC for 3 to 4 days and the risk of frost has past.","• Highly VAM dependent.\n• May require high amounts of N (test soil)",null,"• Deep rooted.\n• Soil can be hard to till.",null,"• Supports strong populations of generalist insect predators.\n• Host for H. armigera. Late crops can increase risk of wireworms next spring","• Combination of herbicides and crop competition tends to reduce weed burdens.\n• Opportunity to use alternative Modes of Action (not Group M or Group A) for grass weed control.\n• Limit atrazine rates to avoid plant back problems.","• Terminate at flowering\n• Leave in-situ to preserve soil benefits","• Moderate ground cover for long fallows.\n• Breaks down more quickly than cereals but difficult to incorporate for quicker breakdown.\n• Late incorporation in conjunction with a dry winter is known to be allelopathic to some emerging crops.","• Relatively low establishment costs.\n• Options for hay production,\ngreen or brown manure","• Requires low level of management\n• Aim for good establishment and weed control.","• Specialised equipment needed for planting \n• Contractors are present in the district"]
[{"$f":"B26&\"-\"&C26","v":"Manure / Fallow-Bare fallow"},"Manure / Fallow","Bare fallow",null,null,null,"• Can make crop management more timely and easier.\n• May assist in leaching salts.","• Weed control is critical.\n• Can reduce AMF levels.\n• Potential for erosion.\n• No improvement in soil structure (no wetting and drying, no plant root activity).\n• Loss of soil organic matter and leaching of nutrients","Flexible",null,null,null,null,"• Reduces VAM populations\n• Consider P and Zn nutrition in the following crop.\n• Mineralisation of N in the topsoil.\n• Leaching of salts, prevents their accumulation in the topsoil.\n• Nutrients may be leached beyond the crop root zone .\n• May cause Zn deficiency in next crop (VAM).",null,null,null,"• Stubble retention and no-till help to retain populations of ants foraging weed seeds, spiders and other soil dwelling beneficials.","• Planned long fallows may allow use of some residual herbicides.\n• Uncontrolled wheel traffic may cause compaction.\n• Must control weeds, particularly volunteers.\n",null,"• When standing, stubble offers high ground cover, it will protect the soil surface and maximise the efficiency of rainfall harvesting during harvest.\n• Where disease management is critical, stubble mulch will increase the rate of stubble breakdown.","• Cost of weed management must be attributed to the following crop.\n• No opportunity cropping, particularly where residual herbicides are used.","• Requires low level of management\n• Aim for good weed control.","Nil"]
[{"$f":"B27&\"-\"&C27","v":"Manure / Fallow-Other"},"Manure / Fallow","Other"]
[{"$f":"B28&\"-\"&C28","v":"Mungbean-Jade-AU"},"Mungbean","Jade-AU",90,90,90,"• Fix atmospheric nitrogen\n• Improve soil health, reduces soil erosion \n• Control grass weeds \n• Good returns for high quality beans.\n• Stubble breaks down easily.\n• Short season 90 days requires intensive management.","• Moderate (summer plant) to High (spring plant).\n• Prone to weathering and grain loss at harvest.\n• Price fluctuations, contracts recommended","\n\n","1.5-2.2 t/ha ","• Uniformity in soil type is very important \n• Prefer well-drained deep loam or sandy loam soils to soils with a medium to heavy texture. \n• pH <5.5 (measured in 1:5 soil–water) can induce nutrient imbalances","• Sensitive to salinity – yields decline when soil ECe is >2dS/m in the top 60 cm.\n• Sensitive to sodicity (ESP 3–14) in the top 60 cm\n• At least 100 mm of plant available water (PAW) is recommended\n• 1–2 ML/ha\n• Requires approx. 50 mm of water/week during flowering and pod fill\n• Time first irrigation ~7 days prior to flowering.\n• Avoid irrigation after mid pod fill to prevent late flowers.\n• Flood or spray irrigation","• Emergence occurs >10.5°C, but\n28–30°C is ideal for crop growth\n• Do not tolerate soil compaction or waterlogging\n• Sensitive to frost however this is not a concern in the Burdekin\n• Optimum seed germination and plant growth occurs at temperatures of 28–33°C\n• Flowering is delayed by long photoperiods and hastened by high temperatures\n• Very sensitive to waterlogging.","• Very highly AMF dependent.\n• Inoculate with – Group I, strain CB1015. \n• N fixation depends on effective inoculation, low soil N at planting and low salinity.\n• Fix 20–83 kgN/ha\n• The main nutrients required are P and Zn. In low P soils apply 5 to\n10 kg P/ha, higher for irrigation.\nResponsive to Zn when soil is <0.8 mg/kg.\n• N removed at harvest 35–40 kg/t\n• Ensure adequate N, P, K, S, Ca and Mg","• Highly susceptible to RKN (found only in light textured soils) \n• Suppresses RLN","• Well suited to no-till situations, and planting directly into standing stubble encourages the crop to grow taller, resulting in additional height to the lowest pods for ease of harvest.\n• Remove all obstacles from the soil surface to aid harvest low to the ground.","• Powdery mildew - check varietal resistance.\n• Other legume crops such as cowpeas, navy beans and soybeans are known hosts of the important bacterial pathogens of mungbean \n• crops such as sorghum, sunflowers and maize and many weeds are important hosts of charcoal rot.","• Supports strong populations of generalist insect predators.\n• Host for bean fly, mirids, Helicoverpa spp. and green vegetable bug.\n• Insect damage is a key contributor to grain quality downgrades.\n• Mungbean are most susceptible to pest attack from budding onwards.\n• Monitor at least once per week during vegetative growth, and twice a week in the reproductive stage (budding onwards). ","• Poor competitor with weeds.\n• Select fields with low broadleaf weed burdens as herbicide options are limited.\n• Low tolerance of Group B (SU), Group C (triazine) and Group I (clopyralid e.g. Lontrel™ and picloram + 2,4-D e.g. Tordon 75-D) herbicide residues. If applied in the last 12 months can either cause direct damage or favour the development of some diseases (particularly charcoal rot) in herbicide-weakened plants.\n• Mungbean seed lots containing weed seeds can be difficult to sell, incurring substantial discounts.","• Desiccate crops at 90% yellow–black pod stage. Maximise leaf dry-down to avoid dust sticking to seed when harvesting.\n• Harvest when grain moisture is 12% to minimise splitting, cracking and colour downgrades.\n• Headers with air assist fronts\nminimise losses.","• Quick break down means stubble is not suitable for long fallow situations.","Varietal differences\n• Suitable for short term storage in aerated silos\n• Multigrade hectare contracts.\n• Mung bean buyers focus on visual appearance. Price is usually determined after grading.\n• A consistent demand exists for mungbean, but freight costs to buying depots in Kingaroy and Biloela can be a limitation. \n• Global supplies and quality determine the price, and small areas in cane fallows are unlikely to give attractive returns.\n• Large, shiny green bean","• Requires high level of management\n• Experienced local advisor for crop monitoring and spray recommendations","• Specialised equipment needed for planting and harvesting\n• Contractors are present in the district"]
[{"$f":"B29&\"-\"&C29","v":"Mungbean-Opal-AU"},"Mungbean","Opal-AU",90,90,90,"• Fix atmospheric nitrogen\n• Improve soil health, reduces soil erosion \n• Control grass weeds \n• Good returns for high quality beans.\n• Stubble breaks down easily.\n• Short season 90 days requires intensive management.","• Moderate (summer plant) to High (spring plant).\n• Prone to weathering and grain loss at harvest.\n• Price fluctuations, contracts recommended","• Spring and summer planting windows. Suited to double\ncropping situations.\n• Fewer days to flowering with later plantings in warmer temperatures.","1.5-2.2 t/ha ","• Uniformity in soil type is very important \n• Prefer well-drained deep loam or sandy loam soils to soils with a medium to heavy texture. \n• pH <5.5 (measured in 1:5 soil–water) can induce nutrient imbalances","• Sensitive to salinity – yields decline when soil ECe is >2dS/m in the top 60 cm.\n• Sensitive to sodicity (ESP 3–14) in the top 60 cm\n• At least 100 mm of plant available water (PAW) is recommended\n• 1–2 ML/ha\n• Requires approx. 50 mm of water/week during flowering and pod fill\n• Time first irrigation ~7 days prior to flowering.\n• Avoid irrigation after mid pod fill to prevent late flowers.\n• Flood or spray irrigation","• Emergence occurs >10.5°C, but\n28–30°C is ideal for crop growth\n• Do not tolerate soil compaction or waterlogging\n• Sensitive to frost however this is not a concern in the Burdekin\n• Optimum seed germination and plant growth occurs at temperatures of 28–33°C\n• Flowering is delayed by long photoperiods and hastened by high temperatures\n• Very sensitive to waterlogging.","• Very highly AMF dependent.\n• Inoculate with – Group I, strain CB1015. \n• N fixation depends on effective inoculation, low soil N at planting and low salinity.\n• Fix 20–83 kgN/ha\n• The main nutrients required are P and Zn. In low P soils apply 5 to\n10 kg P/ha, higher for irrigation.\nResponsive to Zn when soil is <0.8 mg/kg.\n• N removed at harvest 35–40 kg/t\n• Ensure adequate N, P, K, S, Ca and Mg","• Highly susceptible to RKN (found only in light textured soils) \n• Suppresses RLN","• Well suited to no-till situations, and planting directly into standing stubble encourages the crop to grow taller, resulting in additional height to the lowest pods for ease of harvest.\n• Remove all obstacles from the soil surface to aid harvest low to the ground.","• Powdery mildew - check varietal resistance.\n• Other legume crops such as cowpeas, navy beans and soybeans are known hosts of the important bacterial pathogens of mungbean \n• crops such as sorghum, sunflowers and maize and many weeds are important hosts of charcoal rot.","• Supports strong populations of generalist insect predators.\n• Host for bean fly, mirids, Helicoverpa spp. and green vegetable bug.\n• Insect damage is a key contributor to grain quality downgrades.\n• Mungbean are most susceptible to pest attack from budding onwards.\n• Monitor at least once per week during vegetative growth, and twice a week in the reproductive stage (budding onwards). ","• Poor competitor with weeds.\n• Select fields with low broadleaf weed burdens as herbicide options are limited.\n• Low tolerance of Group B (SU), Group C (triazine) and Group I (clopyralid e.g. Lontrel™ and picloram + 2,4-D e.g. Tordon 75-D) herbicide residues. If applied in the last 12 months can either cause direct damage or favour the development of some diseases (particularly charcoal rot) in herbicide-weakened plants.\n• Mungbean seed lots containing weed seeds can be difficult to sell, incurring substantial discounts.","• Desiccate crops at 90% yellow–black pod stage. Maximise leaf dry-down to avoid dust sticking to seed when harvesting.\n• Harvest when grain moisture is 12% to minimise splitting, cracking and colour downgrades.\n• Headers with air assist fronts\nminimise losses.","• Quick break down means stubble is not suitable for long fallow situations.","Varietal differences\n• Suitable for short term storage in aerated silos\n• Multigrade hectare contracts.\n• Mung bean buyers focus on visual appearance. Price is usually determined after grading.\n• A consistent demand exists for mungbean, but freight costs to buying depots in Kingaroy and Biloela can be a limitation. \n• Global supplies and quality determine the price, and small areas in cane fallows are unlikely to give attractive returns.\n• Large, shiny green bean","• Requires high level of management\n• Experienced local advisor for crop monitoring and spray recommendations","• Specialised equipment needed for planting and harvesting\n• Contractors are present in the district"]
[{"$f":"B30&\"-\"&C30","v":"Mungbean-Crystal"},"Mungbean","Crystal",90,90,90,"• Fix atmospheric nitrogen\n• Improve soil health, reduces soil erosion \n• Control grass weeds \n• Good returns for high quality beans.\n• Stubble breaks down easily.\n• Short season 90 days requires intensive management.","• Moderate (summer plant) to High (spring plant).\n• Prone to weathering and grain loss at harvest.\n• Price fluctuations, contracts recommended","• Spring and summer planting windows. Suited to double\ncropping situations.\n• Fewer days to flowering with later plantings in warmer temperatures.","1.5-2.2 t/ha ","• Uniformity in soil type is very important \n• Prefer well-drained deep loam or sandy loam soils to soils with a medium to heavy texture. \n• pH <5.5 (measured in 1:5 soil–water) can induce nutrient imbalances","• Sensitive to salinity – yields decline when soil ECe is >2dS/m in the top 60 cm.\n• Sensitive to sodicity (ESP 3–14) in the top 60 cm\n• At least 100 mm of plant available water (PAW) is recommended\n• 1–2 ML/ha\n• Requires approx. 50 mm of water/week during flowering and pod fill\n• Time first irrigation ~7 days prior to flowering.\n• Avoid irrigation after mid pod fill to prevent late flowers.\n• Flood or spray irrigation","• Emergence occurs >10.5°C, but\n28–30°C is ideal for crop growth\n• Do not tolerate soil compaction or waterlogging\n• Sensitive to frost however this is not a concern in the Burdekin\n• Optimum seed germination and plant growth occurs at temperatures of 28–33°C\n• Flowering is delayed by long photoperiods and hastened by high temperatures\n• Very sensitive to waterlogging.","• Very highly AMF dependent.\n• Inoculate with – Group I, strain CB1015. \n• N fixation depends on effective inoculation, low soil N at planting and low salinity.\n• Fix 20–83 kgN/ha\n• The main nutrients required are P and Zn. In low P soils apply 5 to\n10 kg P/ha, higher for irrigation.\nResponsive to Zn when soil is <0.8 mg/kg.\n• N removed at harvest 35–40 kg/t\n• Ensure adequate N, P, K, S, Ca and Mg","• Highly susceptible to RKN (found only in light textured soils) \n• Suppresses RLN","• Well suited to no-till situations, and planting directly into standing stubble encourages the crop to grow taller, resulting in additional height to the lowest pods for ease of harvest.\n• Remove all obstacles from the soil surface to aid harvest low to the ground.","• Powdery mildew - check varietal resistance.\n• Other legume crops such as cowpeas, navy beans and soybeans are known hosts of the important bacterial pathogens of mungbean \n• crops such as sorghum, sunflowers and maize and many weeds are important hosts of charcoal rot.","• Supports strong populations of generalist insect predators.\n• Host for bean fly, mirids, Helicoverpa spp. and green vegetable bug.\n• Insect damage is a key contributor to grain quality downgrades.\n• Mungbean are most susceptible to pest attack from budding onwards.\n• Monitor at least once per week during vegetative growth, and twice a week in the reproductive stage (budding onwards). ","• Poor competitor with weeds.\n• Select fields with low broadleaf weed burdens as herbicide options are limited.\n• Low tolerance of Group B (SU), Group C (triazine) and Group I (clopyralid e.g. Lontrel™ and picloram + 2,4-D e.g. Tordon 75-D) herbicide residues. If applied in the last 12 months can either cause direct damage or favour the development of some diseases (particularly charcoal rot) in herbicide-weakened plants.\n• Mungbean seed lots containing weed seeds can be difficult to sell, incurring substantial discounts.","• Desiccate crops at 90% yellow–black pod stage. Maximise leaf dry-down to avoid dust sticking to seed when harvesting.\n• Harvest when grain moisture is 12% to minimise splitting, cracking and colour downgrades.\n• Headers with air assist fronts\nminimise losses.","• Quick break down means stubble is not suitable for long fallow situations.","Varietal differences\n• Suitable for short term storage in aerated silos\n• Multigrade hectare contracts.\n• Mung bean buyers focus on visual appearance. Price is usually determined after grading.\n• A consistent demand exists for mungbean, but freight costs to buying depots in Kingaroy and Biloela can be a limitation. \n• Global supplies and quality determine the price, and small areas in cane fallows are unlikely to give attractive returns.\n• Large, shiny green bean","• Requires high level of management\n• Experienced local advisor for crop monitoring and spray recommendations","• Specialised equipment needed for planting and harvesting\n• Contractors are present in the district"]
[{"$f":"B31&\"-\"&C31","v":"Mungbean-Satin II-AU"},"Mungbean","Satin II-AU",90,90,90,"• Fix atmospheric nitrogen\n• Improve soil health, reduces soil erosion \n• Control grass weeds \n• Good returns for high quality beans.\n• Stubble breaks down easily.\n• Short season 90 days requires intensive management.","• Moderate (summer plant) to High (spring plant).\n• Prone to weathering and grain loss at harvest.\n• Price fluctuations, contracts recommended","• Spring and summer planting windows. Suited to double\ncropping situations.\n• Fewer days to flowering with later plantings in warmer temperatures.","1.5-2.2 t/ha ","• Uniformity in soil type is very important \n• Prefer well-drained deep loam or sandy loam soils to soils with a medium to heavy texture. \n• pH <5.5 (measured in 1:5 soil–water) can induce nutrient imbalances","• Sensitive to salinity – yields decline when soil ECe is >2dS/m in the top 60 cm.\n• Sensitive to sodicity (ESP 3–14) in the top 60 cm\n• At least 100 mm of plant available water (PAW) is recommended\n• 1–2 ML/ha\n• Requires approx. 50 mm of water/week during flowering and pod fill\n• Time first irrigation ~7 days prior to flowering.\n• Avoid irrigation after mid pod fill to prevent late flowers.\n• Flood or spray irrigation","• Emergence occurs >10.5°C, but\n28–30°C is ideal for crop growth\n• Do not tolerate soil compaction or waterlogging\n• Sensitive to frost however this is not a concern in the Burdekin\n• Optimum seed germination and plant growth occurs at temperatures of 28–33°C\n• Flowering is delayed by long photoperiods and hastened by high temperatures\n• Very sensitive to waterlogging.","• Very highly AMF dependent.\n• Inoculate with – Group I, strain CB1015. \n• N fixation depends on effective inoculation, low soil N at planting and low salinity.\n• Fix 20–83 kgN/ha\n• The main nutrients required are P and Zn. In low P soils apply 5 to\n10 kg P/ha, higher for irrigation.\nResponsive to Zn when soil is <0.8 mg/kg.\n• N removed at harvest 35–40 kg/t\n• Ensure adequate N, P, K, S, Ca and Mg","• Highly susceptible to RKN (found only in light textured soils) \n• Suppresses RLN","• Well suited to no-till situations, and planting directly into standing stubble encourages the crop to grow taller, resulting in additional height to the lowest pods for ease of harvest.\n• Remove all obstacles from the soil surface to aid harvest low to the ground.","• Powdery mildew - check varietal resistance.\n• Other legume crops such as cowpeas, navy beans and soybeans are known hosts of the important bacterial pathogens of mungbean \n• crops such as sorghum, sunflowers and maize and many weeds are important hosts of charcoal rot.","• Supports strong populations of generalist insect predators.\n• Host for bean fly, mirids, Helicoverpa spp. and green vegetable bug.\n• Insect damage is a key contributor to grain quality downgrades.\n• Mungbean are most susceptible to pest attack from budding onwards.\n• Monitor at least once per week during vegetative growth, and twice a week in the reproductive stage (budding onwards). ","• Poor competitor with weeds.\n• Select fields with low broadleaf weed burdens as herbicide options are limited.\n• Low tolerance of Group B (SU), Group C (triazine) and Group I (clopyralid e.g. Lontrel™ and picloram + 2,4-D e.g. Tordon 75-D) herbicide residues. If applied in the last 12 months can either cause direct damage or favour the development of some diseases (particularly charcoal rot) in herbicide-weakened plants.\n• Mungbean seed lots containing weed seeds can be difficult to sell, incurring substantial discounts.","• Desiccate crops at 90% yellow–black pod stage. Maximise leaf dry-down to avoid dust sticking to seed when harvesting.\n• Harvest when grain moisture is 12% to minimise splitting, cracking and colour downgrades.\n• Headers with air assist fronts\nminimise losses.","• Quick break down means stubble is not suitable for long fallow situations.","Varietal differences\n• Suitable for short term storage in aerated silos\n• Multigrade hectare contracts.\n• Mung bean buyers focus on visual appearance. Price is usually determined after grading.\n• A consistent demand exists for mungbean, but freight costs to buying depots in Kingaroy and Biloela can be a limitation. \n• Global supplies and quality determine the price, and small areas in cane fallows are unlikely to give attractive returns.\n• Dull green bean, suited to sprouting market.\n","• Requires high level of management\n• Experienced local advisor for crop monitoring and spray recommendations","• Specialised equipment needed for planting and harvesting\n• Contractors are present in the district"]
[{"$f":"B32&\"-\"&C32","v":"Mungbean-Onyx-AU"},"Mungbean","Onyx-AU",90,90,90,"• Fix atmospheric nitrogen\n• Improve soil health, reduces soil erosion \n• Control grass weeds \n• Good returns for high quality beans.\n• Stubble breaks down easily.\n• Short season 90 days requires intensive management.","• Moderate (summer plant) to High (spring plant).\n• Prone to weathering and grain loss at harvest.\n• Price fluctuations, contracts recommended","• Spring and summer planting windows. Suited to double\ncropping situations.\n• Fewer days to flowering with later plantings in warmer temperatures.","1.5-2.2 t/ha ","• Uniformity in soil type is very important \n• Prefer well-drained deep loam or sandy loam soils to soils with a medium to heavy texture. \n• pH <5.5 (measured in 1:5 soil–water) can induce nutrient imbalances","• Sensitive to salinity – yields decline when soil ECe is >2dS/m in the top 60 cm.\n• Sensitive to sodicity (ESP 3–14) in the top 60 cm\n• At least 100 mm of plant available water (PAW) is recommended\n• 1–2 ML/ha\n• Requires approx. 50 mm of water/week during flowering and pod fill\n• Time first irrigation ~7 days prior to flowering.\n• Avoid irrigation after mid pod fill to prevent late flowers.\n• Flood or spray irrigation","• Emergence occurs >10.5°C, but\n28–30°C is ideal for crop growth\n• Do not tolerate soil compaction or waterlogging\n• Sensitive to frost however this is not a concern in the Burdekin\n• Optimum seed germination and plant growth occurs at temperatures of 28–33°C\n• Flowering is delayed by long photoperiods and hastened by high temperatures\n• Very sensitive to waterlogging.","• Very highly AMF dependent.\n• Inoculate with – Group I, strain CB1015. \n• N fixation depends on effective inoculation, low soil N at planting and low salinity.\n• Fix 20–83 kgN/ha\n• The main nutrients required are P and Zn. In low P soils apply 5 to\n10 kg P/ha, higher for irrigation.\nResponsive to Zn when soil is <0.8 mg/kg.\n• N removed at harvest 35–40 kg/t\n• Ensure adequate N, P, K, S, Ca and Mg","• Highly susceptible to RKN (found only in light textured soils) \n• Suppresses RLN","• Well suited to no-till situations, and planting directly into standing stubble encourages the crop to grow taller, resulting in additional height to the lowest pods for ease of harvest.\n• Remove all obstacles from the soil surface to aid harvest low to the ground.","• Powdery mildew - check varietal resistance.\n• Other legume crops such as cowpeas, navy beans and soybeans are known hosts of the important bacterial pathogens of mungbean \n• crops such as sorghum, sunflowers and maize and many weeds are important hosts of charcoal rot.","• Supports strong populations of generalist insect predators.\n• Host for bean fly, mirids, Helicoverpa spp. and green vegetable bug.\n• Insect damage is a key contributor to grain quality downgrades.\n• Mungbean are most susceptible to pest attack from budding onwards.\n• Monitor at least once per week during vegetative growth, and twice a week in the reproductive stage (budding onwards). ","• Poor competitor with weeds.\n• Select fields with low broadleaf weed burdens as herbicide options are limited.\n• Low tolerance of Group B (SU), Group C (triazine) and Group I (clopyralid e.g. Lontrel™ and picloram + 2,4-D e.g. Tordon 75-D) herbicide residues. If applied in the last 12 months can either cause direct damage or favour the development of some diseases (particularly charcoal rot) in herbicide-weakened plants.\n• Mungbean seed lots containing weed seeds can be difficult to sell, incurring substantial discounts.","• Desiccate crops at 90% yellow–black pod stage. Maximise leaf dry-down to avoid dust sticking to seed when harvesting.\n• Harvest when grain moisture is 12% to minimise splitting, cracking and colour downgrades.\n• Headers with air assist fronts\nminimise losses.","• Quick break down means stubble is not suitable for long fallow situations.","Varietal differences\n• Suitable for short term storage in aerated silos\n• Multigrade hectare contracts.\n• Mung bean buyers focus on visual appearance. Price is usually determined after grading.\n• A consistent demand exists for mungbean, but freight costs to buying depots in Kingaroy and Biloela can be a limitation. \n• Global supplies and quality determine the price, and small areas in cane fallows are unlikely to give attractive returns.\n• Black gram niche market, talk to marketer before planting","• Requires high level of management\n• Experienced local advisor for crop monitoring and spray recommendations","• Specialised equipment needed for planting and harvesting\n• Contractors are present in the district"]
[{"$f":"B33&\"-\"&C33","v":"Mungbean-Other"},"Mungbean","Other",90,90,90,"• Fix atmospheric nitrogen\n• Improve soil health, reduces soil erosion \n• Control grass weeds \n• Good returns for high quality beans.\n• Stubble breaks down easily.\n• Short season 90 days requires intensive management.","• Moderate (summer plant) to High (spring plant).\n• Prone to weathering and grain loss at harvest.\n• Price fluctuations, contracts recommended","• Spring and summer planting windows. Suited to double\ncropping situations.\n• Fewer days to flowering with later plantings in warmer temperatures.","1.5-2.2 t/ha ","• Uniformity in soil type is very important \n• Prefer well-drained deep loam or sandy loam soils to soils with a medium to heavy texture. \n• pH <5.5 (measured in 1:5 soil–water) can induce nutrient imbalances","• Sensitive to salinity – yields decline when soil ECe is >2dS/m in the top 60 cm.\n• Sensitive to sodicity (ESP 3–14) in the top 60 cm\n• At least 100 mm of plant available water (PAW) is recommended\n• 1–2 ML/ha\n• Requires approx. 50 mm of water/week during flowering and pod fill\n• Time first irrigation ~7 days prior to flowering.\n• Avoid irrigation after mid pod fill to prevent late flowers.\n• Flood or spray irrigation","• Emergence occurs >10.5°C, but\n28–30°C is ideal for crop growth\n• Do not tolerate soil compaction or waterlogging\n• Sensitive to frost however this is not a concern in the Burdekin\n• Optimum seed germination and plant growth occurs at temperatures of 28–33°C\n• Flowering is delayed by long photoperiods and hastened by high temperatures\n• Very sensitive to waterlogging.","• Very highly AMF dependent.\n• Inoculate with – Group I, strain CB1015. \n• N fixation depends on effective inoculation, low soil N at planting and low salinity.\n• Fix 20–83 kgN/ha\n• The main nutrients required are P and Zn. In low P soils apply 5 to\n10 kg P/ha, higher for irrigation.\nResponsive to Zn when soil is <0.8 mg/kg.\n• N removed at harvest 35–40 kg/t\n• Ensure adequate N, P, K, S, Ca and Mg","• Highly susceptible to RKN (found only in light textured soils) \n• Suppresses RLN","• Well suited to no-till situations, and planting directly into standing stubble encourages the crop to grow taller, resulting in additional height to the lowest pods for ease of harvest.\n• Remove all obstacles from the soil surface to aid harvest low to the ground.","• Powdery mildew - check varietal resistance.\n• Other legume crops such as cowpeas, navy beans and soybeans are known hosts of the important bacterial pathogens of mungbean \n• crops such as sorghum, sunflowers and maize and many weeds are important hosts of charcoal rot.","• Supports strong populations of generalist insect predators.\n• Host for bean fly, mirids, Helicoverpa spp. and green vegetable bug.\n• Insect damage is a key contributor to grain quality downgrades.\n• Mungbean are most susceptible to pest attack from budding onwards.\n• Monitor at least once per week during vegetative growth, and twice a week in the reproductive stage (budding onwards). ","• Poor competitor with weeds.\n• Select fields with low broadleaf weed burdens as herbicide options are limited.\n• Low tolerance of Group B (SU), Group C (triazine) and Group I (clopyralid e.g. Lontrel™ and picloram + 2,4-D e.g. Tordon 75-D) herbicide residues. If applied in the last 12 months can either cause direct damage or favour the development of some diseases (particularly charcoal rot) in herbicide-weakened plants.\n• Mungbean seed lots containing weed seeds can be difficult to sell, incurring substantial discounts.","• Desiccate crops at 90% yellow–black pod stage. Maximise leaf dry-down to avoid dust sticking to seed when harvesting.\n• Harvest when grain moisture is 12% to minimise splitting, cracking and colour downgrades.\n• Headers with air assist fronts\nminimise losses.","• Quick break down means stubble is not suitable for long fallow situations.","Varietal differences\n• Suitable for short term storage in aerated silos\n• Multigrade hectare contracts.\n• Mung bean buyers focus on visual appearance. Price is usually determined after grading.\n• A consistent demand exists for mungbean, but freight costs to buying depots in Kingaroy and Biloela can be a limitation. \n• Global supplies and quality determine the price, and small areas in cane fallows are unlikely to give attractive returns.\n• Large, shiny green bean","• Requires high level of management\n• Experienced local advisor for crop monitoring and spray recommendations","• Specialised equipment needed for planting and harvesting\n• Contractors are present in the district"]
[{"$f":"B34&\"-\"&C34","v":"Other-Cotton"},"Other","Cotton"]
[{"$f":"B35&\"-\"&C35","v":"Other-Leasing"},"Other","Leasing"]
[{"$f":"B36&\"-\"&C36","v":"Other grains-Maize"},"Other grains","Maize",150,150,null,"• Deep rooted.\n• Can increase soil organic matter.\n• Good stubble cover.\n","• Potential plant-back problem with atrazine.\n• Erosion risk at planting","• Spring and summer planting windows. (September to January plant)\n","8 to 12 t/ha ","• Yields decline when soil salinity is >2.5 dS/m or water salinity is >1.1 dS/m.","• 5 to 8 ML/ha irrigation\n• Key growth stages for scheduling irrigations are; mid to late tillering, flowering and 10–14 days later in early grain fill.","• Soil temperature at planting 12oC and rising. Allow for a 3–4oC drop if watering up.\n","• Highly AMF dependent.\n• May require high amounts of N (test soil)\n• N removed at harvest 16 kg /tonne.","• Nematodes not suppressed","• Requires seedbed preparation","• Nematodes not suppressed","• Supports strong populations of generalist insect predators.\n• Host for H. armigera and spider mites. Early crops can increase risk of cutworms. Late crops can increase risk of wireworms next spring.","• Combination of herbicides and crop competition tends to reduce weed burdens.\n• Opportunity to use alternative Modes of Action (not Group M or Group A) for grass weed control.\n• Limit atrazine rates to avoid plant back problems.","• Desiccation stops crop water use and may allow more timely harvest.\n• Harvest when grain moisture is 13.5%.\n• Can tolerate weathering.","• Good ground cover for short fallows.\n• Breaks down more easily than sorghum.\n• High in nutrients; 11 kg N, 14 kg P, 166 kg K /tonne.\n• Bulk residue may need to be cultivated prior to planting next crop\n• Option to bale residue ","• Use of grain storage assists with grain marketing.\n• Relatively high break even yield due to low value /tonne.","• Some agronomic support required.\n","• Need corn front to harvest.\n• Precision planter required"]
[{"$f":"B37&\"-\"&C37","v":"Other grains-Popcorn"},"Other grains","Popcorn",90,90,null,"• Deep rooted.\n• Can increase soil organic matter.\n• Good stubble cover.","• Potential plant-back problem with atrazine.\n• Erosion risk at planting","• Spring and summer planting windows. (September to January plant)","8 to 12 t/ha ","• Yields decline when soil salinity is >2.5 dS/m or water salinity is >1.1 dS/m.","• 5 to 8 ML/ha irrigation",null,"• Highly AMF dependent.\n• May require high amounts of N (test soil)\n• N removed at harvest 16 kg /tonne.","• Nematodes not suppressed","• Requires seedbed preparation","• Nematodes not suppressed",null,null,null,"• Good ground cover for short fallows.\n• Breaks down more easily than sorghum.\n• High in nutrients; 11 kg N, 14 kg P, 166 kg K /tonne.\n• Bulk residue may need to be cultivated prior to planting next crop\n• Option to bale residue",null,"• Some agronomic support required.","• Precision planter required\n• Need corn front to harvest."]
[{"$f":"B38&\"-\"&C38","v":"Other grains-Grain sorghum"},"Other grains","Grain sorghum",120,120,null,"• Long planting window.\n• Has a role in IPM.\n","• Stubble can be a problem.\n• Potential plant-back problems with atrazine.\n• Erosion risk at planting","• Spring and summer planting windows. (September to January plant)\n• Days to flowering depend on hybrid maturity but will be less with later plantings in warmer temperatures.","8 to 10 t/ha ","• Rapid yield decline when soil salinity increases from 2–5 dS/m.","• 5 to 8 ML/ha irrigation\n• Key growth stages for scheduling irrigations are; mid to late tillering, flowering and 10–14 days later in early grain fill.","• 16–18oC for 3 to 4 days and the risk of frost has past.","• Highly AMF dependent.\n• May require high amounts of N (test soil)\n• N removed at harvest 16 kg/t.","• Nematodes not suppressed","• Deep rooted.\n• Soil can be hard to till.\n• Requires seedbed preparation","• Nematodes not suppressed","• Supports strong populations of generalist insect predators.\n• Host for H. armigera. Late crops can increase risk of wireworms next spring","• Combination of herbicides and crop competition tends to reduce weed burdens.\n• Opportunity to use alternative Modes of Action (not Group M or Group A) for grass weed control.\n• Limit atrazine rates to avoid plant back problems.","• Harvest when grain moisture is 13.5%.\n• Can tolerate weathering.\n• Desiccation stops crop water use and may allow more timely harvest.","• Moderate ground cover for long fallows.\n• Breaks down more quickly than cereals but difficult to incorporate\nfor quicker breakdown.\n• Late incorporation in conjunction with a dry winter is known to be allelopathic to some emerging crops.","• Use of grain storage assists with grain marketing.\n• Relatively high break even yield due to low value /tonne.","• Some agronomic support required.","• Precision planter required\n• Sorghum fingers on harvester"]
[{"$f":"B39&\"-\"&C39","v":"Other grains-Millet"},"Other grains","Millet",90,90,null,"• Provides excellent ground cover for promoting soil moisture conservation","• Stubble can be a problem.\n• Potential plant-back problems with atrazine.\n• Erosion risk at planting","• Spring and summer planting windows. (September to January plant)","8 to 10 t/ha ",null,"• 5 to 8 ML/ha irrigation",null,null,"• Nematodes not suppressed","• Requires seedbed preparation","• Nematodes not suppressed",null,null,null,"• Moderate ground cover for long fallows.\n• Breaks down more quickly than cereals but difficult to incorporate\nfor quicker breakdown.\n",null,"• Some agronomic support required.","• Sorghum fingers on harvester"]
[{"$f":"B40&\"-\"&C40","v":"Other grains-Sunflower"},"Other grains","Sunflower",90,90,null,"• Good cash crop.\n• Very deep rooted, can make use of nutrients at depth.\n• Has a ‘conditioning’ effect.\n• Can bust compacted layers if grown without irrigation.","• When selecting fields consider bird risks.\n• Poor stubble cover.\n• Can aggrevate insect pests.\n• Can aggravate weed management.\n• Erosion risk at planting","• Spring and summer planting windows. (September to January plant)\n• Late plantings are preferred for polyunsaturated hybrids.","2.5 to 3 t/ha ","Yields decline when soil salinity exceeds 4–5 dS/m.","• 5 to 8 ML/ha irrigation\n• Schedule on 75–90 mm deficits in self mulching soils, targeting budding and flowering or petal drop.\n• Spring planted crops require more water.\n• Sensitive to waterlogging.\n• Spray irrigation may favour disease.","• 10–12oC and rising when heavy frosts have past.","• Highly AMF dependent.\n• Relatively low N requirement compared to some other crops.\n• Removes more K than N /tonne of seed.\n• Efficiency of N use depends on S availability.\n• 38–42 kgN removed /t.",null,null,"• Sclerotinia risk in stubble","• Supports strong populations of general insect predators.\n• Host for Helicoverpa spp., mirids, whiteflies, Rutherglen bug.","• Select fields with low incidence of summer broadleaf weeds.\n• Residual herbicide available at planting but limited options in crop.\n• Consider how to control volunteers in fallow and subsequent crops.","• Harvest when grain moisture is 9% to minimise admixture.","• Poor ground cover & residual organic matter.\n• Stalks require flattening or busting to aid break down — beware of compaction risks when undertaking these operations.\n• When left standing or as stumps damage to equipment such as tyres can occur.\n• Stubble may harbour disease.","• Good cash crop, relatively low establishment and growing costs.\n• Usually grown under contract.\n• Seasonal conditions can strongly influence oil yields.","• Some agronomic support required.","• Specialised harvest equipment.\n• ‘Head snatchers’, sullivan reels and sunflower trays assist with harvest."]
[{"$f":"B41&\"-\"&C41","v":"Other grains-Wheat "},"Other grains","Wheat ",null,null,140,"• Higher root density than grain legumes.\n• Improves soil structure.\n• Beneficial effects for 3 to 5 years.\n• Easy to grow crop.\n• Stubble protects soil","• Will dry soil profile causing deep cracking.\n• Aggrevates thrips/wireworms.","Autumn plant\n• Plant May to June\n• Very wide planting windows can be achieved through variety selection.\n","5 to 6 t/ha ","• Bread wheat yield declines when soil chloride is >700 mg/kg and durum wheat at >600 mg/kg.","• 3 to 4 ML/ha irrigation\n• Usually only watered once.\n• Reduces run-off and erosion.\n• Improves infiltration.\n• Can compete for water and labour (depending on winter rains).","• 20oC and falling for early plant. Does not influence the start of the main season planting window.","• Encourages AMF.\n• Low VAM dependence.\n• Can utilise N leached to depth.\n• Requires N and P fertiliser.\n• Decaying stubble will tie up some N in double crop situations.\n• Removes 21 kg /t at harvest.","• Nematodes not suppressed","• Very well suited to no-till situations.",null,"• Supports strong populations of general insect predators.\n• Host for wireworms and thrips.\n• Provides overwintering shelter for green vegetable bugs.","• Wide range of herbicide options for broadleaf and grass weed control.\n• Consider carefully when using residual herbicides.","• Harvest when grain moisture content is 12.5%.\n• Growers should confirm receival standards with their local grain merchant prior to harvest.","• Breaks down slowly for slow release of carbon.\n• Relatively easy to plant into.\n• Bale to handle heavy stubble.\n• May tie up N .\n• Excessive trash at planting can cause variable plant stands.\n• Adaptable row configurations to allow inter - sowing of the next crop.","• Potential to double crop.\n• Seasonally dependant but fairly reliable.\n• Normally higher gross margins than winter legumes.\n• High fertiliser input for maximum yields and quality.","• Some agronomic support required.","• Requires grain harvester"]
[{"$f":"B42&\"-\"&C42","v":"Other grains-Barley"},"Other grains","Barley",null,null,140,"• Higher root density than grain legumes.\n• Improves soil structure.\n• Beneficial effects for 3 to 5 years.\n• Easy to grow crop.\n• Competes strongly with weeds\n• Stubble protects soil","• Will dry soil profile causing deep cracking.\n• Aggrevates thrips/wireworms.","Autumn plant\n• Plant May to June\n• Very wide planting windows can be achieved by growing a range of varieties.","5 to 6 t/ha ",null,"• 3 to 4 ML/ha irrigation\n• Usually only watered once.\n• Reduces run-off and erosion.\n• Improves infiltration.\n• Can compete for water and labour (depending on winter rains).","• 20oC and falling for early plant. \nDoes not influence the start of the main season planting window.","• Encourages AMF.\n• Low VAM dependence.\n• Can utilise N leached to depth.\n• Requires N and P fertiliser.\n• Decaying stubble will tie up some N in double crop situations.\n• Removes 21 kg /t at harvest","• Nematodes not suppressed","• Very well suited to no-till situations.",null,"• Supports strong populations of general insect predators.\n• Host for wireworms and thrips.\n• Provides overwintering shelter for green vegetable bugs.","• Wide range of herbicide options for broadleaf and grass weed control.\n• Consider carefully when using residual herbicides.","• Harvest when grain moisture content is 12.5%.\n• Growers should confirm receival standards with their local grain merchant prior to harvest.","• Breaks down slowly for slow release of carbon.\n• Relatively easy to plant into.\n• Bale to handle heavy stubble.\n• May tie up N .\n• Excessive trash at planting can cause variable plant stands.\n• Adaptable row configurations to allow inter - sowing of the next crop.","• Potential to double crop.\n• Seasonally dependant but fairly reliable.\n• Normally higher gross margins than winter legumes.\n• High fertiliser input for maximum yields and quality.","• Some agronomic support required.","• Requires grain harvester"]
[{"$f":"B43&\"-\"&C43","v":"Other grains-Oats"},"Other grains","Oats",null,null,140,"• Higher root density than grain legumes.\n• Improves soil structure.\n• Beneficial effects for 3 to 5 years.\n• Easy to grow crop.\n• Competes strongly with weeds\n• Stubble protects soil","• Will dry soil profile causing deep cracking.\n• Aggrevates thrips/wireworms.","Autumn plant\n• Plant May to June\n• Very wide planting windows can be achieved by growing a range of varieties.","5 to 6 t/ha ",null,"• 3 to 4 ML/ha irrigation\n• Usually only watered once.\n• Reduces run-off and erosion.\n• Improves infiltration.\n• Can compete for water and labour (depending on winter rains).","• 20oC and falling for early plant (oats, grazing varieties). Does not influence the start of the main season planting window.","• Encourages AMF.\n• Low VAM dependence.\n• Can utilise N leached to depth.\n• Requires N and P fertiliser.\n• Decaying stubble will tie up some N in double crop situations.\n• Removes 21 kg /t at harvest","• Nematodes not suppressed","• Very well suited to no-till situations.",null,"• Supports strong populations of general insect predators.\n• Host for wireworms and thrips.\n• Provides overwintering shelter for green vegetable bugs.","• Wide range of herbicide options for broadleaf and grass weed control.\n• Consider carefully when using residual herbicides.","• Harvest when grain moisture content is 12.5%.\n• Growers should confirm receival standards with their local grain merchant prior to harvest.","• Breaks down slowly for slow release of carbon.\n• Relatively easy to plant into.\n• Bale to handle heavy stubble.\n• May tie up N .\n• Excessive trash at planting can cause variable plant stands.\n• Adaptable row configurations to allow inter - sowing of the next crop.","• Potential to double crop.\n• Seasonally dependant but fairly reliable.\n• Normally higher gross margins than winter legumes.\n• High fertiliser input for maximum yields and quality.","• Some agronomic support required.","• Requires grain harvester"]
[{"$f":"B44&\"-\"&C44","v":"Other grains-Canola"},"Other grains","Canola",null,null,110,"• Tap root system can improve soil structure but will not penetrate compacted hard pan\n• Many weed control options with herbicide tolerant varieties","• Difficult to remove seed of weed Brassica spp that can contaminate the grain.\n• Stubble can host large numbers of rutherglen bug that then move to summer crops","Autumn  and winter planting windows\nSowing in May to July","3 to 4 t/ha ","• soil pH above 5\n• wide range of soil types, prefer light textured soils\n• avoid hard pan, surface crusting, acidity and sodicity","• 3 to 4 ML/ha irrigation\n• Avoid drought stress during stem elongation and flowering.\n• Moist soil essential for germination.","• Plan sowing to avoid frosting risk at flowering.\n• Susceptible to waterlogging; yield reduction after only 3 days","• 40 kgN/ha removed per 1 t grain\n• High demand for N.\n• Deep soil testing for N, S and P\n• AMF declines under canola and can affect following crops such as sorghum","• Canola has hosting ability of root-lesion nematodes of low–medium for Pratylenchus thornei and medium–high for P. neglectus.","• Very well suited to no-till situations.","• Blackleg is the major disease of canola. Most blackleg spores originate from the previous year's canola stubble.\n• Sclerotinia stem rot is also a common disease and has a wide host range of broadleaf crops and weeds. ","• Imidacloprid products (for protection against redlegged earth mite, blue oat mite and aphids) and fipronil are registered for use in canola.\n• Insect pests in canola  include blue oat mites (Penthaleus spp.), redlegged earth mites (Halotydeus destructor), cutworms, diamondback moth, Helicoverpa, aphids Rutherglen bugs, slugs, European earwigs, Lucerne flea and wire worms.","• Round Up Ready (RR), Imi tolerant (Clearfield) and triazine tolerant (TT) varieties offer other herbicide use patterns for weed control.\n• Grass weeds can be controlled in canola using trifluralin or post-emergent herbicides (Group A).\n• Group B and triazine herbicide residues can affect conventional canola varieties","• Desiccation and windrowing are used to manage harvest and potentially stop seed set in weeds\n• Windrow when 50–70% of seeds have changed colour to red, brown or black\n• Direct harvest when almost all pods are dry and rattle when shaken, pods are pale brown, and the seeds are dark brown to black and have <8% moisture content ","• Leave stubble standing\n• Off-set direct drill an option for following crop","• Suitable for storage","• Some agronomic support required.","• Specialised equipment for windrowing or direct harvest."]
[{"$f":"B45&\"-\"&C45","v":"Other grains-Other"},"Other grains","Other"]
[{"$f":"B46&\"-\"&C46","v":"Peanut-Holt"},"Peanut","Holt",null,null,null,"• Fix atmospheric nitrogen\n• Improve soil health, reduces soil erosion \n• Control grass weeds and broadleaf weeds\n• Good returns for high quality beans.\n• Stubble breaks down easily.","• Rarely grown crop in the Burdekin. Management risk high untill agronomic practice is established.\n","September to December (depending upon district). \n","4 to 8 t/ha","• Well-drained, friable soils. Sandy loam, silty loams, friable clay loam. \n• avoid hardsetting, cloddy soil\n","• 2 to 6 ML/ha water required, 600 to 700 mm of water over the season for a high yielding crop.\n• Suited to overhead, flood and trickle systems\n• Avoid drought stress during the last four to six weeks of the growing season to reduce aflatoxin contamination. \n• Ensure adequate soil moisture at establishment, peg initiation and peg formation and filling\n","• Minimum soil temperature of 18°C at planting depth\n• Do not tolerate long periods of waterlogging\n• Growth is favoured by temperatures in excess of 25°C.\n• Higher soil temperatures (29 to 35°C) during the maturation process  encourages Aflatoxin contamination.\n","• Inoculate with – Group P rhizobia. \n• N fixation depends on effective inoculation, low soil N at planting and low salinity.\n• Soil test and supply P, N, K, Ca as required. \n• Boron and trace elements often are applied as foliar sprays\n• deep tap-root that is capable of exploiting moisture and nutrient reserves deep in the profile\n","• Poor host of RLN, reducing populations by up to 80%\n• All cultivars highly resistant to RKN\n","• Deep, well prepared seedbed on preferably 75, 90 or 100 cm row spacings. High rainfall areas may plant on hills / beds.\n• Peanut Company of Australia requires all new paddocks to be tested for pesticide residues prior to planting peanuts.\n","• PKS can reduce yields.\n• Fungicidal seed dressing protects young seedlings from seedling diseases\n• Rust, leafspot and sclerotinia\n• Protective fungicides are available to keep most foliar diseases at bay.\n• Susceptible to several soil-borne diseases, especially sclerotinia, white mould and CBR (Cylindrocladium Black Rot). \n• Good rotational practices, crop management and hygiene are the best defences against these diseases. \n• The ideal rotations with peanuts include cereal crops like wheat, barley, oats, maize and sorghum. Sugar cane or a grass pasture phase is also a recommended rotation, provided volunteer peanuts are adequately controlled.\n• Crops like potatoes, navy beans or soybeans are not ideal long term sustainable rotations with peanuts because they tend to host many of the same disease problems.\n• Susceptible to leaf diseases\n• Some resistance to CBR\n• Tolerance to Sclerotinia, White Mould","• Monitor crops for Heliothis and jassids.\n• Check crops carefully during the main flowering and pegging period.\n• Growers should budget on at least one spray for Heliothis caterpillars.\n• Crops like potatoes, navy beans or soybeans are not ideal long term sustainable rotations with peanuts because they tend to host many of the same pests.\n• Monitor for Heliothis and Cluster Caterpillar, Redshouldered leaf beetle, Vegetable Jassid and the Lucerne Leafhopper; Thrips, Mirids and Mites, Whitegrubs and Canegrubs.","• Peanuts do not compete very well with weeds.\n• Herbicides are available to control both grass and broadleaf weeds. Avoid spraying broadleaf herbicides during the main flowering period.\n","• A peanut digger inverts the bushes so the peanuts are exposed to the air and not lying in the dirt. \n• The crop is threshed 3 to 7 days later and the peanuts are pre-cleaned prior to delivery to PCA Kingaroy or Tolga depots for drying and receival.\n• Optimum threshing occurs at a pod moisture content of approximately 12 to 16%.\n• Scrape test is used to assess maturity.\n• Seek advice on timing of digging.\n","\n","• Contract arrangements include price, payment date and hectares planted.\n• Supply declaration is required showing all chemicals applied to the peanut crop at the conclusion of each season\n• Payment is made on the basis of kernel weight and quality\n","• Best returns are obtained under reliable rainfall or irrigation with intensive management.\n• Requires high level of management.\n• Experienced local advisor for crop monitoring and spray recommendations.","• Specialised equipment needed for planting and harvesting (digger, thresher)\n• Contractors are present in the district??\n• Peanuts cannot be augered; belt elevators are used to move peanuts from storage bins to transport."]
[{"$f":"B47&\"-\"&C47","v":"Peanut-Kairi"},"Peanut","Kairi",null,null,null,"• Fix atmospheric nitrogen\n• Improve soil health, reduces soil erosion \n• Control grass weeds and broadleaf weeds\n• Good returns for high quality beans.\n• Stubble breaks down easily.","• Rarely grown crop in the Burdekin. Management risk high untill agronomic practice is established.\n","September to December (depending upon district). \n","4 to 8 t/ha","• Well-drained, friable soils. Sandy loam, silty loams, friable clay loam. \n• avoid hardsetting, cloddy soil\n","• 2 to 6 ML/ha water required, 600 to 700 mm of water over the season for a high yielding crop.\n• Suited to overhead, flood and trickle systems\n• Avoid drought stress during the last four to six weeks of the growing season to reduce aflatoxin contamination. \n• Ensure adequate soil moisture at establishment, peg initiation and peg formation and filling\n","• Minimum soil temperature of 18°C at planting depth\n• Do not tolerate long periods of waterlogging\n• Growth is favoured by temperatures in excess of 25°C.\n• Higher soil temperatures (29 to 35°C) during the maturation process  encourages Aflatoxin contamination.\n","• Inoculate with – Group P rhizobia. \n• N fixation depends on effective inoculation, low soil N at planting and low salinity.\n• Soil test and supply P, N, K, Ca as required. \n• Boron and trace elements often are applied as foliar sprays\n• deep tap-root that is capable of exploiting moisture and nutrient reserves deep in the profile\n","• Poor host of RLN, reducing populations by up to 80%\n• All cultivars highly resistant to RKN\n","• Deep, well prepared seedbed on preferably 75, 90 or 100 cm row spacings. High rainfall areas may plant on hills / beds.\n• Peanut Company of Australia requires all new paddocks to be tested for pesticide residues prior to planting peanuts.\n","• PKS can reduce yields.\n• Fungicidal seed dressing protects young seedlings from seedling diseases\n• Rust, leafspot and sclerotinia\n• Protective fungicides are available to keep most foliar diseases at bay.\n• Susceptible to several soil-borne diseases, especially sclerotinia, white mould and CBR (Cylindrocladium Black Rot). \n• Good rotational practices, crop management and hygiene are the best defences against these diseases. \n• The ideal rotations with peanuts include cereal crops like wheat, barley, oats, maize and sorghum. Sugar cane or a grass pasture phase is also a recommended rotation, provided volunteer peanuts are adequately controlled.\n• Crops like potatoes, navy beans or soybeans are not ideal long term sustainable rotations with peanuts because they tend to host many of the same disease problems.\n• Tolerant to rust, leafspot and net blotch\n• Some resistance to CBR","• Monitor crops for Heliothis and jassids.\n• Check crops carefully during the main flowering and pegging period.\n• Growers should budget on at least one spray for Heliothis caterpillars.\n• Crops like potatoes, navy beans or soybeans are not ideal long term sustainable rotations with peanuts because they tend to host many of the same pests.\n• Monitor for Heliothis and Cluster Caterpillar, Redshouldered leaf beetle, Vegetable Jassid and the Lucerne Leafhopper; Thrips, Mirids and Mites, Whitegrubs and Canegrubs.","• Peanuts do not compete very well with weeds.\n• Herbicides are available to control both grass and broadleaf weeds. Avoid spraying broadleaf herbicides during the main flowering period.\n","• A peanut digger inverts the bushes so the peanuts are exposed to the air and not lying in the dirt. \n• The crop is threshed 3 to 7 days later and the peanuts are pre-cleaned prior to delivery to PCA Kingaroy or Tolga depots for drying and receival.\n• Optimum threshing occurs at a pod moisture content of approximately 12 to 16%.\n• Scrape test is used to assess maturity.\n• Seek advice on timing of digging.\n","\n","• Contract arrangements include price, payment date and hectares planted.\n• Supply declaration is required showing all chemicals applied to the peanut crop at the conclusion of each season\n• Payment is made on the basis of kernel weight and quality\n","• Best returns are obtained under reliable rainfall or irrigation with intensive management.\n• Requires high level of management.\n• Experienced local advisor for crop monitoring and spray recommendations.","• Specialised equipment needed for planting and harvesting (digger, thresher)\n• Contractors are present in the district??\n• Peanuts cannot be augered; belt elevators are used to move peanuts from storage bins to transport."]
[{"$f":"B48&\"-\"&C48","v":"Peanut-Alloway"},"Peanut","Alloway",null,null,null,"• Fix atmospheric nitrogen\n• Improve soil health, reduces soil erosion \n• Control grass weeds and broadleaf weeds\n• Good returns for high quality beans.\n• Stubble breaks down easily.\n• Resistant to PKS","• Rarely grown crop in the Burdekin. Management risk high untill agronomic practice is established.\n","September to December (depending upon district). \n","4 to 8 t/ha","• Well-drained, friable soils. Sandy loam, silty loams, friable clay loam. \n• avoid hardsetting, cloddy soil\n","• 2 to 6 ML/ha water required, 600 to 700 mm of water over the season for a high yielding crop.\n• Suited to overhead, flood and trickle systems\n• Avoid drought stress during the last four to six weeks of the growing season to reduce aflatoxin contamination. \n• Ensure adequate soil moisture at establishment, peg initiation and peg formation and filling\n","• Minimum soil temperature of 18°C at planting depth\n• Do not tolerate long periods of waterlogging\n• Growth is favoured by temperatures in excess of 25°C.\n• Higher soil temperatures (29 to 35°C) during the maturation process  encourages Aflatoxin contamination.\n","• Inoculate with – Group P rhizobia. \n• N fixation depends on effective inoculation, low soil N at planting and low salinity.\n• Soil test and supply P, N, K, Ca as required. \n• Boron and trace elements often are applied as foliar sprays\n• deep tap-root that is capable of exploiting moisture and nutrient reserves deep in the profile\n","• Poor host of RLN, reducing populations by up to 80%\n• All cultivars highly resistant to RKN\n","• Deep, well prepared seedbed on preferably 75, 90 or 100 cm row spacings. High rainfall areas may plant on hills / beds.\n• Peanut Company of Australia requires all new paddocks to be tested for pesticide residues prior to planting peanuts.\n","• PKS can reduce yields.\n• Fungicidal seed dressing protects young seedlings from seedling diseases\n• Rust, leafspot and sclerotinia\n• Protective fungicides are available to keep most foliar diseases at bay.\n• Susceptible to several soil-borne diseases, especially sclerotinia, white mould and CBR (Cylindrocladium Black Rot). \n• Good rotational practices, crop management and hygiene are the best defences against these diseases. \n• The ideal rotations with peanuts include cereal crops like wheat, barley, oats, maize and sorghum. Sugar cane or a grass pasture phase is also a recommended rotation, provided volunteer peanuts are adequately controlled.\n• Crops like potatoes, navy beans or soybeans are not ideal long term sustainable rotations with peanuts because they tend to host many of the same disease problems.\n• Resistant to PKS","• Monitor crops for Heliothis and jassids.\n• Check crops carefully during the main flowering and pegging period.\n• Growers should budget on at least one spray for Heliothis caterpillars.\n• Crops like potatoes, navy beans or soybeans are not ideal long term sustainable rotations with peanuts because they tend to host many of the same pests.\n• Monitor for Heliothis and Cluster Caterpillar, Redshouldered leaf beetle, Vegetable Jassid and the Lucerne Leafhopper; Thrips, Mirids and Mites, Whitegrubs and Canegrubs.","• Peanuts do not compete very well with weeds.\n• Herbicides are available to control both grass and broadleaf weeds. Avoid spraying broadleaf herbicides during the main flowering period.\n","• A peanut digger inverts the bushes so the peanuts are exposed to the air and not lying in the dirt. \n• The crop is threshed 3 to 7 days later and the peanuts are pre-cleaned prior to delivery to PCA Kingaroy or Tolga depots for drying and receival.\n• Optimum threshing occurs at a pod moisture content of approximately 12 to 16%.\n• Scrape test is used to assess maturity.\n• Seek advice on timing of digging.\n","\n","• Contract arrangements include price, payment date and hectares planted.\n• Supply declaration is required showing all chemicals applied to the peanut crop at the conclusion of each season\n• Payment is made on the basis of kernel weight and quality\n","• Best returns are obtained under reliable rainfall or irrigation with intensive management.\n• Requires high level of management.\n• Experienced local advisor for crop monitoring and spray recommendations.","• Specialised equipment needed for planting and harvesting (digger, thresher)\n• Contractors are present in the district??\n• Peanuts cannot be augered; belt elevators are used to move peanuts from storage bins to transport."]
[{"$f":"B49&\"-\"&C49","v":"Peanut-Other"},"Peanut","Other",null,null,null,"• Fix atmospheric nitrogen\n• Improve soil health, reduces soil erosion \n• Control grass weeds and broadleaf weeds\n• Good returns for high quality beans.\n• Stubble breaks down easily.","• Rarely grown crop in the Burdekin. Management risk high untill agronomic practice is established.\n","September to December (depending upon district). \n","4 to 8 t/ha","• Well-drained, friable soils. Sandy loam, silty loams, friable clay loam. \n• avoid hardsetting, cloddy soil\n","• 2 to 6 ML/ha water required, 600 to 700 mm of water over the season for a high yielding crop.\n• Suited to overhead, flood and trickle systems\n• Avoid drought stress during the last four to six weeks of the growing season to reduce aflatoxin contamination. \n• Ensure adequate soil moisture at establishment, peg initiation and peg formation and filling\n","• Minimum soil temperature of 18°C at planting depth\n• Do not tolerate long periods of waterlogging\n• Growth is favoured by temperatures in excess of 25°C.\n• Higher soil temperatures (29 to 35°C) during the maturation process  encourages Aflatoxin contamination.\n","• Inoculate with – Group P rhizobia. \n• N fixation depends on effective inoculation, low soil N at planting and low salinity.\n• Soil test and supply P, N, K, Ca as required. \n• Boron and trace elements often are applied as foliar sprays\n• deep tap-root that is capable of exploiting moisture and nutrient reserves deep in the profile\n","• Poor host of RLN, reducing populations by up to 80%\n• All cultivars highly resistant to RKN\n","• Deep, well prepared seedbed on preferably 75, 90 or 100 cm row spacings. High rainfall areas may plant on hills / beds.\n• Peanut Company of Australia requires all new paddocks to be tested for pesticide residues prior to planting peanuts.\n","• PKS can reduce yields.\n• Fungicidal seed dressing protects young seedlings from seedling diseases\n• Rust, leafspot and sclerotinia\n• Protective fungicides are available to keep most foliar diseases at bay.\n• Susceptible to several soil-borne diseases, especially sclerotinia, white mould and CBR (Cylindrocladium Black Rot). \n• Good rotational practices, crop management and hygiene are the best defences against these diseases. \n• The ideal rotations with peanuts include cereal crops like wheat, barley, oats, maize and sorghum. Sugar cane or a grass pasture phase is also a recommended rotation, provided volunteer peanuts are adequately controlled.\n• Crops like potatoes, navy beans or soybeans are not ideal long term sustainable rotations with peanuts because they tend to host many of the same disease problems.\n• Susceptible to leaf diseases\n• Some resistance to CBR\n• Tolerance to Sclerotinia, White Mould & Fusarium","• Monitor crops for Heliothis and jassids.\n• Check crops carefully during the main flowering and pegging period.\n• Growers should budget on at least one spray for Heliothis caterpillars.\n• Crops like potatoes, navy beans or soybeans are not ideal long term sustainable rotations with peanuts because they tend to host many of the same pests.\n• Monitor for Heliothis and Cluster Caterpillar, Redshouldered leaf beetle, Vegetable Jassid and the Lucerne Leafhopper; Thrips, Mirids and Mites, Whitegrubs and Canegrubs.","• Peanuts do not compete very well with weeds.\n• Herbicides are available to control both grass and broadleaf weeds. Avoid spraying broadleaf herbicides during the main flowering period.\n","• A peanut digger inverts the bushes so the peanuts are exposed to the air and not lying in the dirt. \n• The crop is threshed 3 to 7 days later and the peanuts are pre-cleaned prior to delivery to PCA Kingaroy or Tolga depots for drying and receival.\n• Optimum threshing occurs at a pod moisture content of approximately 12 to 16%.\n• Scrape test is used to assess maturity.\n• Seek advice on timing of digging.\n","\n","• Contract arrangements include price, payment date and hectares planted.\n• Supply declaration is required showing all chemicals applied to the peanut crop at the conclusion of each season\n• Payment is made on the basis of kernel weight and quality\n","• Best returns are obtained under reliable rainfall or irrigation with intensive management.\n• Requires high level of management.\n• Experienced local advisor for crop monitoring and spray recommendations.","• Specialised equipment needed for planting and harvesting (digger, thresher)\n• Contractors are present in the district??\n• Peanuts cannot be augered; belt elevators are used to move peanuts from storage bins to transport."]
[{"$f":"B50&\"-\"&C50","v":"Small crops-Sweet corn"},"Small crops","Sweet corn",null,null,null,"• Cash crop\n• Bulky crop residue to protect soil from erosion and conserve moisture","• Host for helicoverpa"]
[{"$f":"B51&\"-\"&C51","v":"Small crops-Sweet potato"},"Small crops","Sweet potato",null,null,null,"• Cash crop\n• Sharefarming option\n• Crop protects soil surface from erosion","• Price variability\n• Wet harvest will degrade fruit"]
[{"$f":"B52&\"-\"&C52","v":"Small crops-Melons "},"Small crops","Melons ",null,null,null,"• Cash crop\n• Fast growing\n• Autumn sowing window","• Price variability\n• Wet harvest will degrade fruit"]
[{"$f":"B53&\"-\"&C53","v":"Small crops-Potato"},"Small crops","Potato",null,null,null,"• Cash crop\n• Sharefarming option\n• Crop protects soil surface from erosion","• Price variability\n• Wet harvest will degrade fruit"]
[{"$f":"B54&\"-\"&C54","v":"Small crops-Tomato"},"Small crops","Tomato",null,null,null,"• Cash crop\n• Sharefarming option\n","• Price variability\n"]
[{"$f":"B55&\"-\"&C55","v":"Small crops-Snow peas"},"Small crops","Snow peas",null,null,null,"• Fix atmospheric nitrogen\n• Improve soil health, reduces erosion \n• Control grass weeds \n• Winter legume option","• Price variability\n• Wet harvest will degrade fruit"]
[{"$f":"B56&\"-\"&C56","v":"Small crops-Pineapple"},"Small crops","Pineapple",null,null,null,"• Longer crop cycle (1 to 2 yrs)"]
[{"$f":"B57&\"-\"&C57","v":"Small crops-Ginger"},"Small crops","Ginger",null,null,null,"• Cash crop","• Susceptible to soil pathogens"]
[{"$f":"B58&\"-\"&C58","v":"Small crops-Capsicum"},"Small crops","Capsicum",null,null,null,"• Cash crop\n• Fast growing\n• Autumn sowing window\n• Sharefarming option","• Price variability\n• Wet harvest will degrade fruit"]
[{"$f":"B59&\"-\"&C59","v":"Small crops-Zucchini"},"Small crops","Zucchini",null,null,null,"• Cash crop\n• Fast growing\n• Autumn sowing window\n• Sharefarming option","• Price variability\n• Wet harvest will degrade fruit"]
[{"$f":"B60&\"-\"&C60","v":"Small crops-Other"},"Small crops","Other"]
[{"$f":"B61&\"-\"&C61","v":"Soybean-Kuranda"},"Soybean","Kuranda",120,120,120,"• Fix atmospheric nitrogen\n• Improve soil health, reduces erosion \n• Control grass weeds \n• 20% yield improvement in cane if combined with reduced tillage practice\n• Good returns for human consumption grade beans.\n","• Wet weather at harvest can affect grain quality\n• Price can fluctuate, consider an area contract","Varietal differences\n• Early summer planting window for best results.\n• Seed is short lived.\n• Germination and vigour are lost after only a few months in storage.","2 to 4 t/ha ","• Sands to heavy clays \n• pHCaCl2 in the range of 5.2 to 6.55. As pH levels drop below 5, aluminium and manganese toxicity can increase.\n• Intolerant of soil salinity. Yield reductions occur at soil salinities greater than 2.0 dS/m and irrigation waters greater than 1.5 dS/m. Nodulation is impaired and plant growth is affected.","• Plant into moist, well-drained soil\n• Avoid watering up for best inoculation results.\n• Irrigation requirements 4 ML/ha\n• Avoid moisture stress from flowering to physiological maturity\n• Peak water demand starts at flowering.\n• Stretching irrigations can reduce grain yield and protein.\n• Suited to flood, overhead and trickle irrigation","• Frost sensitive. \n• Soil temperature does not influence the start of the planting window.\n• Sensitive to day length \n• Base/max temperatures relative to day degree accumulation\n• Tolerates waterlogging after crop is established (to 4-leaf stage)","• Group H inoculant (strain CB 1809)\n• N fixation depends on effective inoculation, low soil N at planting and low salinity.\n• Correct any deficiencies in P, S, K and trace elements (in particular Zn on heavy clay soils)\n• Apply some starter N (20-30 kg/ha) if there is heavy load of crop residue eg cane trash\n• Highly VAM dependent.\n• 70–280 kgN/ha fixed\n• N removed at harvest 67 kg /t grain","Varietal differences to RKN\n• Poor host of RLN, reducing populations by up to 80%\n• Highly susceptible to RKN (found only in light textured soils) ","• Suited to direct drilling\n• Suited to cultivated seedbed, controlled traffic, zonal and zero tillage\n• Use raised beds if paddock is prone to waterlogging\n• Remove all obstacles (clods, rocks, sticks) from the soil surface to aid harvest low to the ground.\n• Fresh cane trash contains chemicals that can reduce soybean germination. Either rake away the cane trash or delay planting for 4-6 weeks after cane harvest.","Varietal differences\n• Reduce the risk of phytophthora root and stem rot by using resistant varieties and selecting paddocks with good drainage and a disease-free history\n• Host for sclerotinia and fusarium wilt","• Treat seed with fipronil if stem borer is likely\n• Inspect crops for insect pests and beneficials at least once a week in the vegetative stage and then twice a week from flowering to maturity.\n• Supports strong populations of generalist insect predators.\n• Host for Helicoverpa spp., mites, green vegetable bug and\nwhiteflies.\n• Extremely susceptible to attack from whiteflies.","• Control weeds before planting\n• Opportunity to control grass weeds.\n• Once established, the crop competes well with weeds.\n• Consider how to control volunteers in fallow and subsequent crops.\n• Can be sown into paddocks with IMI herbicide residues in the soil\n","• Desiccation may assist with harvest\n• Harvest as soon as possible to maximise grain quality by reducing the risk of weather damage or harvest losses from over-dry grain\n• Harvest when grain moisture is 15% and dry grain to 12%.\n• Thin seedcoat makes seed susceptible to damage.","• Can direct drill next crop into stubble\n• Stems may be ropey causing problems at harvest and with land preparation for next crop.\n• Quick break down means stubble is not suitable for long fallow situations.","• Good cash crop, relatively low establishment costs.\n• Usually grown under contract.\n• Suitable for short term storage in aerated silos\n• Investigate marketing options and freight before planting.","• Requires high level of management\n• Experienced local advisor for crop monitoring and spray recommendations","• Specialised equipment needed for planting and harvesting\n• Contractors are present in the district"]
[{"$f":"B62&\"-\"&C62","v":"Soybean-A6785"},"Soybean","A6785",120,120,120,"• Fix atmospheric nitrogen\n• Improve soil health, reduces erosion \n• Control grass weeds \n• 20% yield improvement in cane if combined with reduced tillage practice\n• Good returns for human consumption grade beans.\n","• Wet weather at harvest can affect grain quality\n• Price can fluctuate, consider an area contract","Varietal differences\n• Early summer planting window for best results.\n• Seed is short lived.\n• Germination and vigour are lost after only a few months in storage.","2 to 4 t/ha ","• Sands to heavy clays \n• pHCaCl2 in the range of 5.2 to 6.55. As pH levels drop below 5, aluminium and manganese toxicity can increase.\n• Intolerant of soil salinity. Yield reductions occur at soil salinities greater than 2.0 dS/m and irrigation waters greater than 1.5 dS/m. Nodulation is impaired and plant growth is affected.","• Plant into moist, well-drained soil\n• Avoid watering up for best inoculation results.\n• Irrigation requirements 4 ML/ha\n• Avoid moisture stress from flowering to physiological maturity\n• Peak water demand starts at flowering.\n• Stretching irrigations can reduce grain yield and protein.\n• Suited to flood, overhead and trickle irrigation","• Frost sensitive. \n• Soil temperature does not influence the start of the planting window.\n• Sensitive to day length \n• Base/max temperatures relative to day degree accumulation\n• Tolerates waterlogging after crop is established (to 4-leaf stage)","• Group H inoculant (strain CB 1809)\n• N fixation depends on effective inoculation, low soil N at planting and low salinity.\n• Correct any deficiencies in P, S, K and trace elements (in particular Zn on heavy clay soils)\n• Apply some starter N (20-30 kg/ha) if there is heavy load of crop residue eg cane trash\n• Highly VAM dependent.\n• 70–280 kgN/ha fixed\n• N removed at harvest 67 kg /t grain","Varietal differences to RKN\n• Poor host of RLN, reducing populations by up to 80%\n• Resistant to RKN (found only in sandy soil)","• Suited to direct drilling\n• Suited to cultivated seedbed, controlled traffic, zonal and zero tillage\n• Use raised beds if paddock is prone to waterlogging\n• Remove all obstacles (clods, rocks, sticks) from the soil surface to aid harvest low to the ground.\n• Fresh cane trash contains chemicals that can reduce soybean germination. Either rake away the cane trash or delay planting for 4-6 weeks after cane harvest.","Varietal differences\n• Reduce the risk of phytophthora root and stem rot by using resistant varieties and selecting paddocks with good drainage and a disease-free history\n• Host for sclerotinia and fusarium wilt","• Treat seed with fipronil if stem borer is likely\n• Inspect crops for insect pests and beneficials at least once a week in the vegetative stage and then twice a week from flowering to maturity.\n• Supports strong populations of generalist insect predators.\n• Host for Helicoverpa spp., mites, green vegetable bug and\nwhiteflies.\n• Extremely susceptible to attack from whiteflies.","• Control weeds before planting\n• Opportunity to control grass weeds.\n• Once established, the crop competes well with weeds.\n• Consider how to control volunteers in fallow and subsequent crops.","• Desiccation may assist with harvest\n• Harvest as soon as possible to maximise grain quality by reducing the risk of weather damage or harvest losses from over-dry grain\n• Harvest when grain moisture is 15% and dry grain to 12%.\n• Thin seedcoat makes seed susceptible to damage.","• Can direct drill next crop into stubble\n• Stems may be ropey causing problems at harvest and with land preparation for next crop.\n• Quick break down means stubble is not suitable for long fallow situations.","• Good cash crop, relatively low establishment costs.\n• Usually grown under contract.\n• Suitable for short term storage in aerated silos\n• Investigate marketing options and freight before planting.","• Requires high level of management\n• Experienced local advisor for crop monitoring and spray recommendations","• Specialised equipment needed for planting and harvesting\n• Contractors are present in the district"]
[{"$f":"B63&\"-\"&C63","v":"Soybean-Mossman"},"Soybean","Mossman",120,120,120,"• Fix atmospheric nitrogen\n• Improve soil health, reduces erosion \n• Control grass weeds \n• 20% yield improvement in cane if combined with reduced tillage practice\n• Good returns for human consumption grade beans.\n","• Wet weather at harvest can affect grain quality\n• Price can fluctuate, consider an area contract","Varietal differences\n• Early summer planting window for best results.\n• Seed is short lived.\n• Germination and vigour are lost after only a few months in storage.","2 to 4 t/ha ","• Sands to heavy clays \n• pHCaCl2 in the range of 5.2 to 6.55. As pH levels drop below 5, aluminium and manganese toxicity can increase.\n• Intolerant of soil salinity. Yield reductions occur at soil salinities greater than 2.0 dS/m and irrigation waters greater than 1.5 dS/m. Nodulation is impaired and plant growth is affected.","• Plant into moist, well-drained soil\n• Avoid watering up for best inoculation results.\n• Irrigation requirements 4 ML/ha\n• Avoid moisture stress from flowering to physiological maturity\n• Peak water demand starts at flowering.\n• Stretching irrigations can reduce grain yield and protein.\n• Suited to flood, overhead and trickle irrigation","• Frost sensitive. \n• Soil temperature does not influence the start of the planting window.\n• Sensitive to day length \n• Base/max temperatures relative to day degree accumulation\n• Tolerates waterlogging after crop is established (to 4-leaf stage)","• Group H inoculant (strain CB 1809)\n• N fixation depends on effective inoculation, low soil N at planting and low salinity.\n• Correct any deficiencies in P, S, K and trace elements (in particular Zn on heavy clay soils)\n• Apply some starter N (20-30 kg/ha) if there is heavy load of crop residue eg cane trash\n• Highly VAM dependent.\n• 70–280 kgN/ha fixed\n• N removed at harvest 67 kg /t grain","Varietal differences to RKN\n• Poor host of RLN, reducing populations by up to 80%\n• Highly susceptible to RKN (found only in light textured soils) ","• Suited to direct drilling\n• Suited to cultivated seedbed, controlled traffic, zonal and zero tillage\n• Use raised beds if paddock is prone to waterlogging\n• Remove all obstacles (clods, rocks, sticks) from the soil surface to aid harvest low to the ground.\n• Fresh cane trash contains chemicals that can reduce soybean germination. Either rake away the cane trash or delay planting for 4-6 weeks after cane harvest.","Varietal differences\n• Reduce the risk of phytophthora root and stem rot by using resistant varieties and selecting paddocks with good drainage and a disease-free history\n• Host for sclerotinia and fusarium wilt","• Treat seed with fipronil if stem borer is likely\n• Inspect crops for insect pests and beneficials at least once a week in the vegetative stage and then twice a week from flowering to maturity.\n• Supports strong populations of generalist insect predators.\n• Host for Helicoverpa spp., mites, green vegetable bug and\nwhiteflies.\n• Extremely susceptible to attack from whiteflies.","• Control weeds before planting\n• Opportunity to control grass weeds.\n• Once established, the crop competes well with weeds.\n• Consider how to control volunteers in fallow and subsequent crops.\n• Can be sown into paddocks with IMI herbicide residues in the soil\n","• Desiccation may assist with harvest\n• Harvest as soon as possible to maximise grain quality by reducing the risk of weather damage or harvest losses from over-dry grain\n• Harvest when grain moisture is 15% and dry grain to 12%.\n• Thin seedcoat makes seed susceptible to damage.","• Can direct drill next crop into stubble\n• Stems may be ropey causing problems at harvest and with land preparation for next crop.\n• Quick break down means stubble is not suitable for long fallow situations.","• Good cash crop, relatively low establishment costs.\n• Usually grown under contract.\n• Suitable for short term storage in aerated silos\n• Investigate marketing options and freight before planting.","• Requires high level of management\n• Experienced local advisor for crop monitoring and spray recommendations","• Specialised equipment needed for planting and harvesting\n• Contractors are present in the district"]
[{"$f":"B64&\"-\"&C64","v":"Soybean-New Bunya"},"Soybean","New Bunya",120,120,120,"• Fix atmospheric nitrogen\n• Improve soil health, reduces erosion \n• Control grass weeds \n• 20% yield improvement in cane if combined with reduced tillage practice\n• Good returns for human consumption grade beans.\n","• Wet weather at harvest can affect grain quality\n• Price can fluctuate, consider an area contract","Varietal differences\n• Early summer planting window for best results.\n• Seed is short lived.\n• Germination and vigour are lost after only a few months in storage.","2 to 4 t/ha ","• Sands to heavy clays \n• pHCaCl2 in the range of 5.2 to 6.55. As pH levels drop below 5, aluminium and manganese toxicity can increase.\n• Intolerant of soil salinity. Yield reductions occur at soil salinities greater than 2.0 dS/m and irrigation waters greater than 1.5 dS/m. Nodulation is impaired and plant growth is affected.","• Plant into moist, well-drained soil\n• Avoid watering up for best inoculation results.\n• Irrigation requirements 4 ML/ha\n• Avoid moisture stress from flowering to physiological maturity\n• Peak water demand starts at flowering.\n• Stretching irrigations can reduce grain yield and protein.\n• Suited to flood, overhead and trickle irrigation","• Frost sensitive. \n• Soil temperature does not influence the start of the planting window.\n• Sensitive to day length \n• Base/max temperatures relative to day degree accumulation\n• Tolerates waterlogging after crop is established (to 4-leaf stage)","• Group H inoculant (strain CB 1809)\n• N fixation depends on effective inoculation, low soil N at planting and low salinity.\n• Correct any deficiencies in P, S, K and trace elements (in particular Zn on heavy clay soils)\n• Apply some starter N (20-30 kg/ha) if there is heavy load of crop residue eg cane trash\n• Highly VAM dependent.\n• 70–280 kgN/ha fixed\n• N removed at harvest 67 kg /t grain","Varietal differences to RKN\n• Poor host of RLN, reducing populations by up to 80%\n• Highly susceptible to RKN (found only in light textured soils) ","• Suited to direct drilling\n• Suited to cultivated seedbed, controlled traffic, zonal and zero tillage\n• Use raised beds if paddock is prone to waterlogging\n• Remove all obstacles (clods, rocks, sticks) from the soil surface to aid harvest low to the ground.\n• Fresh cane trash contains chemicals that can reduce soybean germination. Either rake away the cane trash or delay planting for 4-6 weeks after cane harvest.","Varietal differences\n• Reduce the risk of phytophthora root and stem rot by using resistant varieties and selecting paddocks with good drainage and a disease-free history\n• Host for sclerotinia and fusarium wilt","• Treat seed with fipronil if stem borer is likely\n• Inspect crops for insect pests and beneficials at least once a week in the vegetative stage and then twice a week from flowering to maturity.\n• Supports strong populations of generalist insect predators.\n• Host for Helicoverpa spp., mites, green vegetable bug and\nwhiteflies.\n• Extremely susceptible to attack from whiteflies.","• Control weeds before planting\n• Opportunity to control grass weeds.\n• Once established, the crop competes well with weeds.\n• Consider how to control volunteers in fallow and subsequent crops.\n• Can be sown into paddocks with IMI herbicide residues in the soil\n","• Desiccation may assist with harvest\n• Harvest as soon as possible to maximise grain quality by reducing the risk of weather damage or harvest losses from over-dry grain\n• Harvest when grain moisture is 15% and dry grain to 12%.\n• Thin seedcoat makes seed susceptible to damage.","• Can direct drill next crop into stubble\n• Stems may be ropey causing problems at harvest and with land preparation for next crop.\n• Quick break down means stubble is not suitable for long fallow situations.","• Good cash crop, relatively low establishment costs.\n• Usually grown under contract.\n• Suitable for short term storage in aerated silos\n• Investigate marketing options and freight before planting.","• Requires high level of management\n• Experienced local advisor for crop monitoring and spray recommendations","• Specialised equipment needed for planting and harvesting\n• Contractors are present in the district"]
[{"$f":"B65&\"-\"&C65","v":"Soybean-Hayman "},"Soybean","Hayman ",120,120,120,"• Fix atmospheric nitrogen\n• Improve soil health, reduces erosion \n• Control grass weeds \n• 20% yield improvement in cane if combined with reduced tillage practice\n• Good returns for human consumption grade beans.\n","• Wet weather at harvest can affect grain quality\n• Price can fluctuate, consider an area contract","Varietal differences\n• Early summer planting window for best results.\n• Seed is short lived.\n• Germination and vigour are lost after only a few months in storage.","2 to 4 t/ha ","• Sands to heavy clays \n• pHCaCl2 in the range of 5.2 to 6.55. As pH levels drop below 5, aluminium and manganese toxicity can increase.\n• Intolerant of soil salinity. Yield reductions occur at soil salinities greater than 2.0 dS/m and irrigation waters greater than 1.5 dS/m. Nodulation is impaired and plant growth is affected.","• Plant into moist, well-drained soil\n• Avoid watering up for best inoculation results.\n• Irrigation requirements 4 ML/ha\n• Avoid moisture stress from flowering to physiological maturity\n• Peak water demand starts at flowering.\n• Stretching irrigations can reduce grain yield and protein.\n• Suited to flood, overhead and trickle irrigation","• Frost sensitive. \n• Soil temperature does not influence the start of the planting window.\n• Sensitive to day length \n• Base/max temperatures relative to day degree accumulation\n• Tolerates waterlogging after crop is established (to 4-leaf stage)","• Group H inoculant (strain CB 1809)\n• N fixation depends on effective inoculation, low soil N at planting and low salinity.\n• Correct any deficiencies in P, S, K and trace elements (in particular Zn on heavy clay soils)\n• Apply some starter N (20-30 kg/ha) if there is heavy load of crop residue eg cane trash\n• Highly VAM dependent.\n• 70–280 kgN/ha fixed\n• N removed at harvest 67 kg /t grain","Varietal differences to RKN\n• Poor host of RLN, reducing populations by up to 80%\n• Highly susceptible to RKN (found only in light textured soils) ","• Suited to direct drilling\n• Suited to cultivated seedbed, controlled traffic, zonal and zero tillage\n• Use raised beds if paddock is prone to waterlogging\n• Remove all obstacles (clods, rocks, sticks) from the soil surface to aid harvest low to the ground.\n• Fresh cane trash contains chemicals that can reduce soybean germination. Either rake away the cane trash or delay planting for 4-6 weeks after cane harvest.","Varietal differences\n• Reduce the risk of phytophthora root and stem rot by using resistant varieties and selecting paddocks with good drainage and a disease-free history\n• Host for sclerotinia and fusarium wilt","• Treat seed with fipronil if stem borer is likely\n• Inspect crops for insect pests and beneficials at least once a week in the vegetative stage and then twice a week from flowering to maturity.\n• Supports strong populations of generalist insect predators.\n• Host for Helicoverpa spp., mites, green vegetable bug and\nwhiteflies.\n• Extremely susceptible to attack from whiteflies.","• Control weeds before planting\n• Opportunity to control grass weeds.\n• Once established, the crop competes well with weeds.\n• Consider how to control volunteers in fallow and subsequent crops.","• Desiccation may assist with harvest\n• Harvest as soon as possible to maximise grain quality by reducing the risk of weather damage or harvest losses from over-dry grain\n• Harvest when grain moisture is 15% and dry grain to 12%.\n• Thin seedcoat makes seed susceptible to damage.","• Can direct drill next crop into stubble\n• Stems may be ropey causing problems at harvest and with land preparation for next crop.\n• Quick break down means stubble is not suitable for long fallow situations.","• Good cash crop, relatively low establishment costs.\n• Usually grown under contract.\n• Suitable for short term storage in aerated silos\n• Investigate marketing options and freight before planting.","• Requires high level of management\n• Experienced local advisor for crop monitoring and spray recommendations","• Specialised equipment needed for planting and harvesting\n• Contractors are present in the district"]
[{"$f":"B66&\"-\"&C66","v":"Soybean-Leichhardt"},"Soybean","Leichhardt",120,120,120,"• Fix atmospheric nitrogen\n• Improve soil health, reduces erosion \n• Control grass weeds \n• 20% yield improvement in cane if combined with reduced tillage practice\n• Good returns for human consumption grade beans.\n","• Wet weather at harvest can affect grain quality\n• Price can fluctuate, consider an area contract","Varietal differences\n• Early summer planting window for best results.\n• Seed is short lived.\n• Germination and vigour are lost after only a few months in storage.","2 to 4 t/ha ","• Sands to heavy clays \n• pHCaCl2 in the range of 5.2 to 6.55. As pH levels drop below 5, aluminium and manganese toxicity can increase.\n• Intolerant of soil salinity. Yield reductions occur at soil salinities greater than 2.0 dS/m and irrigation waters greater than 1.5 dS/m. Nodulation is impaired and plant growth is affected.","• Plant into moist, well-drained soil\n• Avoid watering up for best inoculation results.\n• Irrigation requirements 4 ML/ha\n• Avoid moisture stress from flowering to physiological maturity\n• Peak water demand starts at flowering.\n• Stretching irrigations can reduce grain yield and protein.\n• Suited to flood, overhead and trickle irrigation","• Frost sensitive. \n• Soil temperature does not influence the start of the planting window.\n• Sensitive to day length \n• Base/max temperatures relative to day degree accumulation\n• Tolerates waterlogging after crop is established (to 4-leaf stage)","• Group H inoculant (strain CB 1809)\n• N fixation depends on effective inoculation, low soil N at planting and low salinity.\n• Correct any deficiencies in P, S, K and trace elements (in particular Zn on heavy clay soils)\n• Apply some starter N (20-30 kg/ha) if there is heavy load of crop residue eg cane trash\n• Highly VAM dependent.\n• 70–280 kgN/ha fixed\n• N removed at harvest 67 kg /t grain","Varietal differences to RKN\n• Poor host of RLN, reducing populations by up to 80%\n• Highly susceptible to RKN (found only in light textured soils) ","• Suited to direct drilling\n• Suited to cultivated seedbed, controlled traffic, zonal and zero tillage\n• Use raised beds if paddock is prone to waterlogging\n• Remove all obstacles (clods, rocks, sticks) from the soil surface to aid harvest low to the ground.\n• Fresh cane trash contains chemicals that can reduce soybean germination. Either rake away the cane trash or delay planting for 4-6 weeks after cane harvest.","Varietal differences\n• Reduce the risk of phytophthora root and stem rot by using resistant varieties and selecting paddocks with good drainage and a disease-free history\n• Host for sclerotinia and fusarium wilt","• Treat seed with fipronil if stem borer is likely\n• Inspect crops for insect pests and beneficials at least once a week in the vegetative stage and then twice a week from flowering to maturity.\n• Supports strong populations of generalist insect predators.\n• Host for Helicoverpa spp., mites, green vegetable bug and\nwhiteflies.\n• Extremely susceptible to attack from whiteflies.","• Control weeds before planting\n• Opportunity to control grass weeds.\n• Once established, the crop competes well with weeds.\n• Consider how to control volunteers in fallow and subsequent crops.","• Desiccation may assist with harvest\n• Harvest as soon as possible to maximise grain quality by reducing the risk of weather damage or harvest losses from over-dry grain\n• Harvest when grain moisture is 15% and dry grain to 12%.\n• Thin seedcoat makes seed susceptible to damage.","• Can direct drill next crop into stubble\n• Stems may be ropey causing problems at harvest and with land preparation for next crop.\n• Quick break down means stubble is not suitable for long fallow situations.","• Good cash crop, relatively low establishment costs.\n• Usually grown under contract.\n• Suitable for short term storage in aerated silos\n• Investigate marketing options and freight before planting.","• Requires high level of management\n• Experienced local advisor for crop monitoring and spray recommendations","• Specialised equipment needed for planting and harvesting\n• Contractors are present in the district"]
[{"$f":"B67&\"-\"&C67","v":"Soybean-Fernside"},"Soybean","Fernside",120,120,120,"• Fix atmospheric nitrogen\n• Improve soil health, reduces erosion \n• Control grass weeds \n• 20% yield improvement in cane if combined with reduced tillage practice\n• Good returns for human consumption grade beans.\n","• Wet weather at harvest can affect grain quality\n• Price can fluctuate, consider an area contract","Varietal differences\n• Early summer planting window for best results.\n• Seed is short lived.\n• Germination and vigour are lost after only a few months in storage.","2 to 4 t/ha ","• Sands to heavy clays \n• pHCaCl2 in the range of 5.2 to 6.55. As pH levels drop below 5, aluminium and manganese toxicity can increase.\n• Intolerant of soil salinity. Yield reductions occur at soil salinities greater than 2.0 dS/m and irrigation waters greater than 1.5 dS/m. Nodulation is impaired and plant growth is affected.","• Plant into moist, well-drained soil\n• Avoid watering up for best inoculation results.\n• Irrigation requirements 4 ML/ha\n• Avoid moisture stress from flowering to physiological maturity\n• Peak water demand starts at flowering.\n• Stretching irrigations can reduce grain yield and protein.\n• Suited to flood, overhead and trickle irrigation","• Frost sensitive. \n• Soil temperature does not influence the start of the planting window.\n• Sensitive to day length \n• Base/max temperatures relative to day degree accumulation\n• Tolerates waterlogging after crop is established (to 4-leaf stage)","• Group H inoculant (strain CB 1809)\n• N fixation depends on effective inoculation, low soil N at planting and low salinity.\n• Correct any deficiencies in P, S, K and trace elements (in particular Zn on heavy clay soils)\n• Apply some starter N (20-30 kg/ha) if there is heavy load of crop residue eg cane trash\n• Highly VAM dependent.\n• 70–280 kgN/ha fixed\n• N removed at harvest 67 kg /t grain","Varietal differences to RKN\n• Poor host of RLN, reducing populations by up to 80%\n• Highly susceptible to RKN (found only in light textured soils) ","• Suited to direct drilling\n• Suited to cultivated seedbed, controlled traffic, zonal and zero tillage\n• Use raised beds if paddock is prone to waterlogging\n• Remove all obstacles (clods, rocks, sticks) from the soil surface to aid harvest low to the ground.\n• Fresh cane trash contains chemicals that can reduce soybean germination. Either rake away the cane trash or delay planting for 4-6 weeks after cane harvest.","Varietal differences\n• Reduce the risk of phytophthora root and stem rot by using resistant varieties and selecting paddocks with good drainage and a disease-free history\n• Host for sclerotinia and fusarium wilt","• Treat seed with fipronil if stem borer is likely\n• Inspect crops for insect pests and beneficials at least once a week in the vegetative stage and then twice a week from flowering to maturity.\n• Supports strong populations of generalist insect predators.\n• Host for Helicoverpa spp., mites, green vegetable bug and\nwhiteflies.\n• Extremely susceptible to attack from whiteflies.","• Control weeds before planting\n• Opportunity to control grass weeds.\n• Once established, the crop competes well with weeds.\n• Consider how to control volunteers in fallow and subsequent crops.","• Desiccation may assist with harvest\n• Harvest as soon as possible to maximise grain quality by reducing the risk of weather damage or harvest losses from over-dry grain\n• Harvest when grain moisture is 15% and dry grain to 12%.\n• Thin seedcoat makes seed susceptible to damage.","• Can direct drill next crop into stubble\n• Stems may be ropey causing problems at harvest and with land preparation for next crop.\n• Quick break down means stubble is not suitable for long fallow situations.","• Good cash crop, relatively low establishment costs.\n• Usually grown under contract.\n• Suitable for short term storage in aerated silos\n• Investigate marketing options and freight before planting.","• Requires high level of management\n• Experienced local advisor for crop monitoring and spray recommendations","• Specialised equipment needed for planting and harvesting\n• Contractors are present in the district"]
[{"$f":"B68&\"-\"&C68","v":"Soybean-Other"},"Soybean","Other",120,120,120,"• Fix atmospheric nitrogen\n• Improve soil health, reduces erosion \n• Control grass weeds \n• 20% yield improvement in cane if combined with reduced tillage practice\n• Good returns for human consumption grade beans.\n","• Wet weather at harvest can affect grain quality\n• Price can fluctuate, consider an area contract","Varietal differences\n• Early summer planting window for best results.\n• Seed is short lived.\n• Germination and vigour are lost after only a few months in storage.","2 to 4 t/ha ","• Sands to heavy clays \n• pHCaCl2 in the range of 5.2 to 6.55. As pH levels drop below 5, aluminium and manganese toxicity can increase.\n• Intolerant of soil salinity. Yield reductions occur at soil salinities greater than 2.0 dS/m and irrigation waters greater than 1.5 dS/m. Nodulation is impaired and plant growth is affected.","• Plant into moist, well-drained soil\n• Avoid watering up for best inoculation results.\n• Irrigation requirements 4 ML/ha\n• Avoid moisture stress from flowering to physiological maturity\n• Peak water demand starts at flowering.\n• Stretching irrigations can reduce grain yield and protein.\n• Suited to flood, overhead and trickle irrigation","• Frost sensitive. \n• Soil temperature does not influence the start of the planting window.\n• Sensitive to day length \n• Base/max temperatures relative to day degree accumulation\n• Tolerates waterlogging after crop is established (to 4-leaf stage)","• Group H inoculant (strain CB 1809)\n• N fixation depends on effective inoculation, low soil N at planting and low salinity.\n• Correct any deficiencies in P, S, K and trace elements (in particular Zn on heavy clay soils)\n• Apply some starter N (20-30 kg/ha) if there is heavy load of crop residue eg cane trash\n• Highly VAM dependent.\n• 70–280 kgN/ha fixed\n• N removed at harvest 67 kg /t grain","Varietal differences to RKN\n• Poor host of RLN, reducing populations by up to 80%\n• Highly susceptible to RKN (found only in light textured soils) ","• Suited to direct drilling\n• Suited to cultivated seedbed, controlled traffic, zonal and zero tillage\n• Use raised beds if paddock is prone to waterlogging\n• Remove all obstacles (clods, rocks, sticks) from the soil surface to aid harvest low to the ground.\n• Fresh cane trash contains chemicals that can reduce soybean germination. Either rake away the cane trash or delay planting for 4-6 weeks after cane harvest.","Varietal differences\n• Reduce the risk of phytophthora root and stem rot by using resistant varieties and selecting paddocks with good drainage and a disease-free history\n• Host for sclerotinia and fusarium wilt","• Treat seed with fipronil if stem borer is likely\n• Inspect crops for insect pests and beneficials at least once a week in the vegetative stage and then twice a week from flowering to maturity.\n• Supports strong populations of generalist insect predators.\n• Host for Helicoverpa spp., mites, green vegetable bug and\nwhiteflies.\n• Extremely susceptible to attack from whiteflies.","• Control weeds before planting\n• Opportunity to control grass weeds.\n• Once established, the crop competes well with weeds.\n• Consider how to control volunteers in fallow and subsequent crops.","• Desiccation may assist with harvest\n• Harvest as soon as possible to maximise grain quality by reducing the risk of weather damage or harvest losses from over-dry grain\n• Harvest when grain moisture is 15% and dry grain to 12%.\n• Thin seedcoat makes seed susceptible to damage.","• Can direct drill next crop into stubble\n• Stems may be ropey causing problems at harvest and with land preparation for next crop.\n• Quick break down means stubble is not suitable for long fallow situations.","• Good cash crop, relatively low establishment costs.\n• Usually grown under contract.\n• Suitable for short term storage in aerated silos\n• Investigate marketing options and freight before planting.","• Requires high level of management\n• Experienced local advisor for crop monitoring and spray recommendations","• Specialised equipment needed for planting and harvesting\n• Contractors are present in the district"]

{"sheet":"Report","index":4,"n_rows":100,"n_cols":14,"rows_kept":100,"cut":false,"hidden":false,"merged":[[97,1,97,12],[92,1,92,12],[93,1,93,12],[94,1,94,12],[95,1,95,12],[96,1,96,12],[87,1,87,12],[88,1,88,12],[89,1,89,12],[90,1,90,12],[91,1,91,12],[63,1,63,12],[64,1,64,12],[65,1,65,12],[67,1,67,2],[86,1,86,12],[58,1,58,12],[59,1,59,12],[60,1,60,12],[61,1,61,12],[62,1,62,12],[35,1,35,2],[54,1,54,12],[55,1,55,12],[56,1,56,12],[57,1,57,12],[22,1,22,12],[1,1,1,2],[3,1,3,2],[33,1,33,12],[32,1,32,12],[31,1,31,12],[30,1,30,12],[29,1,29,12],[28,1,28,12],[27,1,27,12],[26,1,26,12],[25,1,25,12],[24,1,24,12],[23,1,23,12]]}
[]
[null,"Print All Blocks",null,"<-- Double click here to print all blocks.  OR double click on a yellow cell to print a single block."]
[]
[{"$f":"'Block 1-'!cShtDesc","v":"Block 1:"},{"$f":"'Block 1-'!$B$7","v":0}]
[]
[{"$f":"'Block 1-'!$B$9","v":"Size (ha):"},{"$f":"'Block 1-'!$B$10","v":0},{"$f":"'Block 1-'!$B$12","v":"Total min est. GM:"},{"$f":"'Block 1-'!$B$13","v":0},null,null,{"$f":"'Block 1-'!$Y$5","v":"Crops:"},{"$f":"'Block 1-'!$Y$6","v":"Last Harvest Date:"},{"$f":"'Block 1-'!dtLHCane","v":"2020-01-01"},{"$f":"'Block 1-'!$Y$9","v":"Next Planting Date:"},{"$f":"'Block 1-'!dtNPCane","v":"2022-12-31"}]
[]
["Crop#:",{"$f":"'Block 1-'!$B$24","v":"Crop Type"},{"$f":"'Block 1-'!$B$25","v":"Variety"},{"$f":"'Block 1-'!$B$27","v":"Planting date"},{"$f":"'Block 1-'!$B$28","v":"Growing period (days)"},"Season",{"$f":"'Block 1-'!$B$29","v":"Approx. Harvest date"},{"$f":"'Block 1-'!$B$31","v":"Min yield t/ha"},{"$f":"'Block 1-'!$B$32","v":"Min price $/t"},{"$f":"'Block 1-'!$B$33","v":"Expected costs $/ha"},{"$f":"'Block 1-'!$C$34","v":"OR  Leasing income $/ha"},{"$f":"'Block 1-'!$B$35","v":"Min estimated GM/ha"},{"$f":"'Block 1-'!$B$36","v":"Total min est. GM"}]
[{"$f":"'Block 1-'!$F$23","v":"Crop 1"},{"$f":"'Block 1-'!$F$24","v":0},{"$f":"'Block 1-'!$F$25","v":0},{"$f":"'Block 1-'!dtCrop1","v":"00:00:00"},{"$f":"'Block 1-'!$F$28","v":0},{"$f":"IF(B9=0,\"\",'Block 1-'!$G$28)","v":""},{"$f":"'Block 1-'!dtCrop1H","v":""},{"$f":"'Block 1-'!$F$31","v":0},{"$f":"'Block 1-'!$F$32","v":0},{"$f":"'Block 1-'!$F$33","v":0},{"$f":"'Block 1-'!$F$34","v":0},{"$f":"'Block 1-'!$F$35","v":0},{"$f":"'Block 1-'!$F$36","v":0}]
[{"$f":"'Block 1-'!$L$23","v":"Crop 2"},{"$f":"'Block 1-'!$L$24","v":0},{"$f":"'Block 1-'!$L$25","v":0},{"$f":"'Block 1-'!dtCrop2","v":"00:00:00"},{"$f":"'Block 1-'!$L$28","v":0},{"$f":"IF(B10=0,\"\",'Block 1-'!$M$28)","v":""},{"$f":"'Block 1-'!dtCrop2H","v":""},{"$f":"'Block 1-'!$L$31","v":0},{"$f":"'Block 1-'!$L$32","v":0},{"$f":"'Block 1-'!$L$33","v":0},{"$f":"'Block 1-'!$L$34","v":0},{"$f":"'Block 1-'!$L$35","v":0},{"$f":"'Block 1-'!$L$36","v":0}]
[{"$f":"'Block 1-'!$R$23","v":"Crop 3"},{"$f":"'Block 1-'!$R$24","v":0},{"$f":"'Block 1-'!$R$25","v":0},{"$f":"'Block 1-'!dtCrop3","v":"00:00:00"},{"$f":"'Block 1-'!$R$28","v":0},{"$f":"IF(B11=0,\"\",'Block 1-'!$S$28)","v":""},{"$f":"'Block 1-'!dtCrop3H","v":""},{"$f":"'Block 1-'!$R$31","v":0},{"$f":"'Block 1-'!$R$32","v":0},{"$f":"'Block 1-'!$R$33","v":0},{"$f":"'Block 1-'!$R$34","v":0},{"$f":"'Block 1-'!$R$35","v":0},{"$f":"'Block 1-'!$R$36","v":0}]
[{"$f":"'Block 1-'!$X$23","v":"Crop 4"},{"$f":"'Block 1-'!$X$24","v":0},{"$f":"'Block 1-'!$X$25","v":0},{"$f":"'Block 1-'!dtCrop4","v":"00:00:00"},{"$f":"'Block 1-'!$X$28","v":0},{"$f":"IF(B12=0,\"\",'Block 1-'!$Y$28)","v":""},{"$f":"'Block 1-'!dtCrop4H","v":""},{"$f":"'Block 1-'!$X$31","v":0},{"$f":"'Block 1-'!$X$32","v":0},{"$f":"'Block 1-'!$X$33","v":0},{"$f":"'Block 1-'!$X$34","v":0},{"$f":"'Block 1-'!$X$35","v":0},{"$f":"'Block 1-'!$X$36","v":0}]
[{"$f":"'Block 1-'!$F$82","v":"Crop 5"},{"$f":"'Block 1-'!$F$83","v":0},{"$f":"'Block 1-'!$F$84","v":0},{"$f":"'Block 1-'!dtCrop5","v":"00:00:00"},{"$f":"'Block 1-'!$F$87","v":0},{"$f":"IF(B13=0,\"\",'Block 1-'!$G$87)","v":""},{"$f":"'Block 1-'!dtCrop5H","v":""},{"$f":"'Block 1-'!$F$90","v":0},{"$f":"'Block 1-'!$F$91","v":0},{"$f":"'Block 1-'!$F$92","v":0},{"$f":"'Block 1-'!$F$93","v":0},{"$f":"'Block 1-'!$F$94","v":0},{"$f":"'Block 1-'!$F$95","v":0}]
[{"$f":"'Block 1-'!$L$82","v":"Crop 6"},{"$f":"'Block 1-'!$L$83","v":0},{"$f":"'Block 1-'!$L$84","v":0},{"$f":"'Block 1-'!dtCrop6","v":"00:00:00"},{"$f":"'Block 1-'!$L$87","v":0},{"$f":"IF(B14=0,\"\",'Block 1-'!$M$87)","v":""},{"$f":"'Block 1-'!dtCrop6H","v":""},{"$f":"'Block 1-'!$L$90","v":0},{"$f":"'Block 1-'!$L$91","v":0},{"$f":"'Block 1-'!$L$92","v":0},{"$f":"'Block 1-'!$L$93","v":0},{"$f":"'Block 1-'!$L$94","v":0},{"$f":"'Block 1-'!$L$95","v":0}]
[{"$f":"'Block 1-'!$R$82","v":"Crop 7"},{"$f":"'Block 1-'!$R$83","v":0},{"$f":"'Block 1-'!$R$84","v":0},{"$f":"'Block 1-'!dtCrop7","v":"00:00:00"},{"$f":"'Block 1-'!$R$87","v":0},{"$f":"IF(B15=0,\"\",'Block 1-'!$S$87)","v":""},{"$f":"'Block 1-'!dtCrop7H","v":""},{"$f":"'Block 1-'!$R$90","v":0},{"$f":"'Block 1-'!$R$91","v":0},{"$f":"'Block 1-'!$R$92","v":0},{"$f":"'Block 1-'!$R$93","v":0},{"$f":"'Block 1-'!$R$94","v":0},{"$f":"'Block 1-'!$R$95","v":0}]
[{"$f":"'Block 1-'!$X$82","v":"Crop 8"},{"$f":"'Block 1-'!$X$83","v":0},{"$f":"'Block 1-'!$X$84","v":0},{"$f":"'Block 1-'!dtCrop8","v":"00:00:00"},{"$f":"'Block 1-'!$X$87","v":0},{"$f":"IF(B16=0,\"\",'Block 1-'!$Y$87)","v":""},{"$f":"'Block 1-'!dtCrop8H","v":""},{"$f":"'Block 1-'!$X$90","v":0},{"$f":"'Block 1-'!$X$91","v":0},{"$f":"'Block 1-'!$X$92","v":0},{"$f":"'Block 1-'!$X$93","v":0},{"$f":"'Block 1-'!$X$94","v":0},{"$f":"'Block 1-'!$X$95","v":0}]
[{"$f":"'Block 1-'!$F$141","v":"Crop 9"},{"$f":"'Block 1-'!$F$142","v":0},{"$f":"'Block 1-'!$F$143","v":0},{"$f":"'Block 1-'!dtCrop9","v":"00:00:00"},{"$f":"'Block 1-'!$F$146","v":0},{"$f":"IF(B17=0,\"\",'Block 1-'!$G$146)","v":""},{"$f":"'Block 1-'!dtCrop9H","v":""},{"$f":"'Block 1-'!$F$149","v":0},{"$f":"'Block 1-'!$F$150","v":0},{"$f":"'Block 1-'!$F$151","v":0},{"$f":"'Block 1-'!$F$152","v":0},{"$f":"'Block 1-'!$F$153","v":0},{"$f":"'Block 1-'!$F$154","v":0}]
[{"$f":"'Block 1-'!$L$141","v":"Crop 10"},{"$f":"'Block 1-'!$L$142","v":0},{"$f":"'Block 1-'!$L$143","v":0},{"$f":"'Block 1-'!dtCrop10","v":"00:00:00"},{"$f":"'Block 1-'!$L$146","v":0},{"$f":"IF(B18=0,\"\",'Block 1-'!$M$146)","v":""},{"$f":"'Block 1-'!dtCrop10H","v":""},{"$f":"'Block 1-'!$L$149","v":0},{"$f":"'Block 1-'!$L$150","v":0},{"$f":"'Block 1-'!$L$151","v":0},{"$f":"'Block 1-'!$L$152","v":0},{"$f":"'Block 1-'!$L$153","v":0},{"$f":"'Block 1-'!$L$154","v":0}]
[{"$f":"'Block 1-'!$R$141","v":"Crop 11"},{"$f":"'Block 1-'!$R$142","v":0},{"$f":"'Block 1-'!$R$143","v":0},{"$f":"'Block 1-'!dtCrop11","v":"00:00:00"},{"$f":"'Block 1-'!$R$146","v":0},{"$f":"IF(B19=0,\"\",'Block 1-'!$S$146)","v":""},{"$f":"'Block 1-'!dtCrop11H","v":""},{"$f":"'Block 1-'!$R$149","v":0},{"$f":"'Block 1-'!$R$150","v":0},{"$f":"'Block 1-'!$R$151","v":0},{"$f":"'Block 1-'!$R$152","v":0},{"$f":"'Block 1-'!$R$153","v":0},{"$f":"'Block 1-'!$R$154","v":0}]
[{"$f":"'Block 1-'!$X$141","v":"Crop 12"},{"$f":"'Block 1-'!$X$142","v":0},{"$f":"'Block 1-'!$X$143","v":0},{"$f":"'Block 1-'!dtCrop12","v":"00:00:00"},{"$f":"'Block 1-'!$X$146","v":0},{"$f":"IF(B20=0,\"\",'Block 1-'!$Y$146)","v":""},{"$f":"'Block 1-'!dtCrop12H","v":""},{"$f":"'Block 1-'!$X$149","v":0},{"$f":"'Block 1-'!$X$150","v":0},{"$f":"'Block 1-'!$X$151","v":0},{"$f":"'Block 1-'!$X$152","v":0},{"$f":"'Block 1-'!$X$153","v":0},{"$f":"'Block 1-'!$X$154","v":0}]
[null,null,null,null,null,null,null,null,null,null,null,{"$f":"C6","v":"Total min est. GM:"},{"$f":"SUM(M9:M20)","v":0}]
["NOTES:"]
[{"$f":"A9","v":"Crop 1"},{"$f":"'Block 1-'!$E$77","v":0},null,null,null,null,null,null,null,null,null,null,null,{"$f":"B23","v":0}]
[{"$f":"A10","v":"Crop 2"},{"$f":"'Block 1-'!$K$77","v":0},null,null,null,null,null,null,null,null,null,null,null,0]
["Crop 3",{"$f":"'Block 1-'!$Q$77","v":0},null,null,null,null,null,null,null,null,null,null,null,0]
["Crop 4",{"$f":"'Block 1-'!$W$77","v":0},null,null,null,null,null,null,null,null,null,null,null,0]
["Crop 5",{"$f":"'Block 1-'!$E$136","v":0},null,null,null,null,null,null,null,null,null,null,null,{"$f":"B27","v":0}]
["Crop 6",{"$f":"'Block 1-'!$K$136","v":0},null,null,null,null,null,null,null,null,null,null,null,{"$f":"B28","v":0}]
["Crop 7",{"$f":"'Block 1-'!$Q$136","v":0},null,null,null,null,null,null,null,null,null,null,null,0]
["Crop 8",{"$f":"'Block 1-'!$W$136","v":0},null,null,null,null,null,null,null,null,null,null,null,0]
["Crop 9",{"$f":"'Block 1-'!$E$195","v":0},null,null,null,null,null,null,null,null,null,null,null,0]
["Crop 10",{"$f":"'Block 1-'!$K$195","v":0},null,null,null,null,null,null,null,null,null,null,null,0]
["Crop 11",{"$f":"'Block 1-'!$Q$195","v":0},null,null,null,null,null,null,null,null,null,null,null,0]
["Crop 12",{"$f":"'Block 1-'!$W$195","v":0},null,null,null,null,null,null,null,null,null,null,null,0]
[]
[{"$f":"[0]!cShtDesc","v":{"$error":"#REF!"}},{"$f":"#REF!","v":{"$error":"#REF!"}}]
[]
[{"$f":"#REF!","v":{"$error":"#REF!"}},{"$f":"#REF!","v":{"$error":"#REF!"}},{"$f":"#REF!","v":{"$error":"#REF!"}},{"$f":"#REF!","v":{"$error":"#REF!"}},null,null,{"$f":"#REF!","v":{"$error":"#REF!"}},{"$f":"#REF!","v":{"$error":"#REF!"}},{"$f":"[0]!dtLHCane","v":{"$error":"#REF!"}},{"$f":"#REF!","v":{"$error":"#REF!"}},{"$f":"[0]!dtNPCane","v":{"$error":"#REF!"}}]
[]
["Crop#:",{"$f":"#REF!","v":{"$error":"#REF!"}},{"$f":"#REF!","v":{"$error":"#REF!"}},{"$f":"#REF!","v":{"$error":"#REF!"}},{"$f":"#REF!","v":{"$error":"#REF!"}},"Season",{"$f":"#REF!","v":{"$error":"#REF!"}},{"$f":"#REF!","v":{"$error":"#REF!"}},{"$f":"#REF!","v":{"$error":"#REF!"}},{"$f":"#REF!","v":{"$error":"#REF!"}},{"$f":"#REF!","v":{"$error":"#REF!"}},{"$f":"#REF!","v":{"$error":"#REF!"}},{"$f":"#REF!","v":{"$error":"#REF!"}}]
[{"$f":"#REF!","v":{"$error":"#REF!"}},{"$f":"#REF!","v":{"$error":"#REF!"}},{"$f":"#REF!","v":{"$error":"#REF!"}},{"$f":"[0]!dtCrop1","v":{"$error":"#REF!"}},{"$f":"#REF!","v":{"$error":"#REF!"}},{"$f":"IF(B41=0,\"\",#REF!)","v":{"$error":"#REF!"}},{"$f":"[0]!dtCrop1H","v":{"$error":"#REF!"}},{"$f":"#REF!","v":{"$error":"#REF!"}},{"$f":"#REF!","v":{"$error":"#REF!"}},{"$f":"#REF!","v":{"$error":"#REF!"}},{"$f":"#REF!","v":{"$error":"#REF!"}},{"$f":"#REF!","v":{"$error":"#REF!"}},{"$f":"#REF!","v":{"$error":"#REF!"}}]
[{"$f":"#REF!","v":{"$error":"#REF!"}},{"$f":"#REF!","v":{"$error":"#REF!"}},{"$f":"#REF!","v":{"$error":"#REF!"}},{"$f":"[0]!dtCrop2","v":{"$error":"#REF!"}},{"$f":"#REF!","v":{"$error":"#REF!"}},{"$f":"IF(B42=0,\"\",#REF!)","v":{"$error":"#REF!"}},{"$f":"[0]!dtCrop2H","v":{"$error":"#REF!"}},{"$f":"#REF!","v":{"$error":"#REF!"}},{"$f":"#REF!","v":{"$error":"#REF!"}},{"$f":"#REF!","v":{"$error":"#REF!"}},{"$f":"#REF!","v":{"$error":"#REF!"}},{"$f":"#REF!","v":{"$error":"#REF!"}},{"$f":"#REF!","v":{"$error":"#REF!"}}]
[{"$f":"#REF!","v":{"$error":"#REF!"}},{"$f":"#REF!","v":{"$error":"#REF!"}},{"$f":"#REF!","v":{"$error":"#REF!"}},{"$f":"[0]!dtCrop3","v":{"$error":"#REF!"}},{"$f":"#REF!","v":{"$error":"#REF!"}},{"$f":"IF(B43=0,\"\",#REF!)","v":{"$error":"#REF!"}},{"$f":"[0]!dtCrop3H","v":{"$error":"#REF!"}},{"$f":"#REF!","v":{"$error":"#REF!"}},{"$f":"#REF!","v":{"$error":"#REF!"}},{"$f":"#REF!","v":{"$error":"#REF!"}},{"$f":"#REF!","v":{"$error":"#REF!"}},{"$f":"#REF!","v":{"$error":"#REF!"}},{"$f":"#REF!","v":{"$error":"#REF!"}}]
[{"$f":"#REF!","v":{"$error":"#REF!"}},{"$f":"#REF!","v":{"$error":"#REF!"}},{"$f":"#REF!","v":{"$error":"#REF!"}},{"$f":"[0]!dtCrop4","v":{"$error":"#REF!"}},{"$f":"#REF!","v":{"$error":"#REF!"}},{"$f":"IF(B44=0,\"\",#REF!)","v":{"$error":"#REF!"}},{"$f":"[0]!dtCrop4H","v":{"$error":"#REF!"}},{"$f":"#REF!","v":{"$error":"#REF!"}},{"$f":"#REF!","v":{"$error":"#REF!"}},{"$f":"#REF!","v":{"$error":"#REF!"}},{"$f":"#REF!","v":{"$error":"#REF!"}},{"$f":"#REF!","v":{"$error":"#REF!"}},{"$f":"#REF!","v":{"$error":"#REF!"}}]
[{"$f":"#REF!","v":{"$error":"#REF!"}},{"$f":"#REF!","v":{"$error":"#REF!"}},{"$f":"#REF!","v":{"$error":"#REF!"}},{"$f":"[0]!dtCrop5","v":{"$error":"#REF!"}},{"$f":"#REF!","v":{"$error":"#REF!"}},{"$f":"IF(B45=0,\"\",#REF!)","v":{"$error":"#REF!"}},{"$f":"[0]!dtCrop5H","v":{"$error":"#REF!"}},{"$f":"#REF!","v":{"$error":"#REF!"}},{"$f":"#REF!","v":{"$error":"#REF!"}},{"$f":"#REF!","v":{"$error":"#REF!"}},{"$f":"#REF!","v":{"$error":"#REF!"}},{"$f":"#REF!","v":{"$error":"#REF!"}},{"$f":"#REF!","v":{"$error":"#REF!"}}]
[{"$f":"#REF!","v":{"$error":"#REF!"}},{"$f":"#REF!","v":{"$error":"#REF!"}},{"$f":"#REF!","v":{"$error":"#REF!"}},{"$f":"[0]!dtCrop6","v":{"$error":"#REF!"}},{"$f":"#REF!","v":{"$error":"#REF!"}},{"$f":"IF(B46=0,\"\",#REF!)","v":{"$error":"#REF!"}},{"$f":"[0]!dtCrop6H","v":{"$error":"#REF!"}},{"$f":"#REF!","v":{"$error":"#REF!"}},{"$f":"#REF!","v":{"$error":"#REF!"}},{"$f":"#REF!","v":{"$error":"#REF!"}},{"$f":"#REF!","v":{"$error":"#REF!"}},{"$f":"#REF!","v":{"$error":"#REF!"}},{"$f":"#REF!","v":{"$error":"#REF!"}}]
[{"$f":"#REF!","v":{"$error":"#REF!"}},{"$f":"#REF!","v":{"$error":"#REF!"}},{"$f":"#REF!","v":{"$error":"#REF!"}},{"$f":"[0]!dtCrop7","v":{"$error":"#REF!"}},{"$f":"#REF!","v":{"$error":"#REF!"}},{"$f":"IF(B47=0,\"\",#REF!)","v":{"$error":"#REF!"}},{"$f":"[0]!dtCrop7H","v":{"$error":"#REF!"}},{"$f":"#REF!","v":{"$error":"#REF!"}},{"$f":"#REF!","v":{"$error":"#REF!"}},{"$f":"#REF!","v":{"$error":"#REF!"}},{"$f":"#REF!","v":{"$error":"#REF!"}},{"$f":"#REF!","v":{"$error":"#REF!"}},{"$f":"#REF!","v":{"$error":"#REF!"}}]
[{"$f":"#REF!","v":{"$error":"#REF!"}},{"$f":"#REF!","v":{"$error":"#REF!"}},{"$f":"#REF!","v":{"$error":"#REF!"}},{"$f":"[0]!dtCrop8","v":{"$error":"#REF!"}},{"$f":"#REF!","v":{"$error":"#REF!"}},{"$f":"IF(B48=0,\"\",#REF!)","v":{"$error":"#REF!"}},{"$f":"[0]!dtCrop8H","v":{"$error":"#REF!"}},{"$f":"#REF!","v":{"$error":"#REF!"}},{"$f":"#REF!","v":{"$error":"#REF!"}},{"$f":"#REF!","v":{"$error":"#REF!"}},{"$f":"#REF!","v":{"$error":"#REF!"}},{"$f":"#REF!","v":{"$error":"#REF!"}},{"$f":"#REF!","v":{"$error":"#REF!"}}]
[{"$f":"#REF!","v":{"$error":"#REF!"}},{"$f":"#REF!","v":{"$error":"#REF!"}},{"$f":"#REF!","v":{"$error":"#REF!"}},{"$f":"[0]!dtCrop9","v":{"$error":"#REF!"}},{"$f":"#REF!","v":{"$error":"#REF!"}},{"$f":"IF(B49=0,\"\",#REF!)","v":{"$error":"#REF!"}},{"$f":"[0]!dtCrop9H","v":{"$error":"#REF!"}},{"$f":"#REF!","v":{"$error":"#REF!"}},{"$f":"#REF!","v":{"$error":"#REF!"}},{"$f":"#REF!","v":{"$error":"#REF!"}},{"$f":"#REF!","v":{"$error":"#REF!"}},{"$f":"#REF!","v":{"$error":"#REF!"}},{"$f":"#REF!","v":{"$error":"#REF!"}}]
[{"$f":"#REF!","v":{"$error":"#REF!"}},{"$f":"#REF!","v":{"$error":"#REF!"}},{"$f":"#REF!","v":{"$error":"#REF!"}},{"$f":"[0]!dtCrop10","v":{"$error":"#REF!"}},{"$f":"#REF!","v":{"$error":"#REF!"}},{"$f":"IF(B50=0,\"\",#REF!)","v":{"$error":"#REF!"}},{"$f":"[0]!dtCrop10H","v":{"$error":"#REF!"}},{"$f":"#REF!","v":{"$error":"#REF!"}},{"$f":"#REF!","v":{"$error":"#REF!"}},{"$f":"#REF!","v":{"$error":"#REF!"}},{"$f":"#REF!","v":{"$error":"#REF!"}},{"$f":"#REF!","v":{"$error":"#REF!"}},{"$f":"#REF!","v":{"$error":"#REF!"}}]
[{"$f":"#REF!","v":{"$error":"#REF!"}},{"$f":"#REF!","v":{"$error":"#REF!"}},{"$f":"#REF!","v":{"$error":"#REF!"}},{"$f":"[0]!dtCrop11","v":{"$error":"#REF!"}},{"$f":"#REF!","v":{"$error":"#REF!"}},{"$f":"IF(B51=0,\"\",#REF!)","v":{"$error":"#REF!"}},{"$f":"[0]!dtCrop11H","v":{"$error":"#REF!"}},{"$f":"#REF!","v":{"$error":"#REF!"}},{"$f":"#REF!","v":{"$error":"#REF!"}},{"$f":"#REF!","v":{"$error":"#REF!"}},{"$f":"#REF!","v":{"$error":"#REF!"}},{"$f":"#REF!","v":{"$error":"#REF!"}},{"$f":"#REF!","v":{"$error":"#REF!"}}]
[{"$f":"#REF!","v":{"$error":"#REF!"}},{"$f":"#REF!","v":{"$error":"#REF!"}},{"$f":"#REF!","v":{"$error":"#REF!"}},{"$f":"[0]!dtCrop12","v":{"$error":"#REF!"}},{"$f":"#REF!","v":{"$error":"#REF!"}},{"$f":"IF(B52=0,\"\",#REF!)","v":{"$error":"#REF!"}},{"$f":"[0]!dtCrop12H","v":{"$error":"#REF!"}},{"$f":"#REF!","v":{"$error":"#REF!"}},{"$f":"#REF!","v":{"$error":"#REF!"}},{"$f":"#REF!","v":{"$error":"#REF!"}},{"$f":"#REF!","v":{"$error":"#REF!"}},{"$f":"#REF!","v":{"$error":"#REF!"}},{"$f":"#REF!","v":{"$error":"#REF!"}}]
[null,null,null,null,null,null,null,null,null,null,null,{"$f":"C38","v":{"$error":"#REF!"}},{"$f":"SUM(M41:M52)","v":{"$error":"#REF!"}}]
["NOTES:"]
[{"$f":"A41","v":{"$error":"#REF!"}},{"$f":"#REF!","v":{"$error":"#REF!"}},null,null,null,null,null,null,null,null,null,null,null,{"$f":"B55","v":{"$error":"#REF!"}}]
[{"$f":"A42","v":{"$error":"#REF!"}},{"$f":"#REF!","v":{"$error":"#REF!"}},null,null,null,null,null,null,null,null,null,null,null,{"$error":"#REF!"}]
[{"$error":"#REF!"},{"$f":"#REF!","v":{"$error":"#REF!"}},null,null,null,null,null,null,null,null,null,null,null,{"$error":"#REF!"}]
[{"$error":"#REF!"},{"$f":"#REF!","v":{"$error":"#REF!"}},null,null,null,null,null,null,null,null,null,null,null,{"$error":"#REF!"}]
[{"$error":"#REF!"},{"$f":"#REF!","v":{"$error":"#REF!"}},null,null,null,null,null,null,null,null,null,null,null,{"$f":"B59","v":{"$error":"#REF!"}}]
[{"$error":"#REF!"},{"$f":"#REF!","v":{"$error":"#REF!"}},null,null,null,null,null,null,null,null,null,null,null,{"$f":"B60","v":{"$error":"#REF!"}}]
[{"$error":"#REF!"},{"$f":"#REF!","v":{"$error":"#REF!"}},null,null,null,null,null,null,null,null,null,null,null,{"$error":"#REF!"}]
[{"$error":"#REF!"},{"$f":"#REF!","v":{"$error":"#REF!"}},null,null,null,null,null,null,null,null,null,null,null,{"$error":"#REF!"}]
[{"$error":"#REF!"},{"$f":"#REF!","v":{"$error":"#REF!"}},null,null,null,null,null,null,null,null,null,null,null,{"$error":"#REF!"}]
[{"$error":"#REF!"},{"$f":"#REF!","v":{"$error":"#REF!"}},null,null,null,null,null,null,null,null,null,null,null,{"$error":"#REF!"}]
[{"$error":"#REF!"},{"$f":"#REF!","v":{"$error":"#REF!"}},null,null,null,null,null,null,null,null,null,null,null,{"$error":"#REF!"}]
[{"$error":"#REF!"},{"$f":"#REF!","v":{"$error":"#REF!"}},null,null,null,null,null,null,null,null,null,null,null,{"$error":"#REF!"}]
[]
[{"$f":"[0]!cShtDesc","v":{"$error":"#REF!"}},{"$f":"#REF!","v":{"$error":"#REF!"}}]
[]
[{"$f":"#REF!","v":{"$error":"#REF!"}},{"$f":"#REF!","v":{"$error":"#REF!"}},{"$f":"#REF!","v":{"$error":"#REF!"}},{"$f":"#REF!","v":{"$error":"#REF!"}},null,null,{"$f":"#REF!","v":{"$error":"#REF!"}},{"$f":"#REF!","v":{"$error":"#REF!"}},{"$f":"[0]!dtLHCane","v":{"$error":"#REF!"}},{"$f":"#REF!","v":{"$error":"#REF!"}},{"$f":"[0]!dtNPCane","v":{"$error":"#REF!"}}]
[]
["Crop#:",{"$f":"#REF!","v":{"$error":"#REF!"}},{"$f":"#REF!","v":{"$error":"#REF!"}},{"$f":"#REF!","v":{"$error":"#REF!"}},{"$f":"#REF!","v":{"$error":"#REF!"}},"Season",{"$f":"#REF!","v":{"$error":"#REF!"}},{"$f":"#REF!","v":{"$error":"#REF!"}},{"$f":"#REF!","v":{"$error":"#REF!"}},{"$f":"#REF!","v":{"$error":"#REF!"}},{"$f":"#REF!","v":{"$error":"#REF!"}},{"$f":"#REF!","v":{"$error":"#REF!"}},{"$f":"#REF!","v":{"$error":"#REF!"}}]
[{"$f":"#REF!","v":{"$error":"#REF!"}},{"$f":"#REF!","v":{"$error":"#REF!"}},{"$f":"#REF!","v":{"$error":"#REF!"}},{"$f":"[0]!dtCrop1","v":{"$error":"#REF!"}},{"$f":"#REF!","v":{"$error":"#REF!"}},{"$f":"IF(B73=0,\"\",#REF!)","v":{"$error":"#REF!"}},{"$f":"[0]!dtCrop1H","v":{"$error":"#REF!"}},{"$f":"#REF!","v":{"$error":"#REF!"}},{"$f":"#REF!","v":{"$error":"#REF!"}},{"$f":"#REF!","v":{"$error":"#REF!"}},{"$f":"#REF!","v":{"$error":"#REF!"}},{"$f":"#REF!","v":{"$error":"#REF!"}},{"$f":"#REF!","v":{"$error":"#REF!"}}]
[{"$f":"#REF!","v":{"$error":"#REF!"}},{"$f":"#REF!","v":{"$error":"#REF!"}},{"$f":"#REF!","v":{"$error":"#REF!"}},{"$f":"[0]!dtCrop2","v":{"$error":"#REF!"}},{"$f":"#REF!","v":{"$error":"#REF!"}},{"$f":"IF(B74=0,\"\",#REF!)","v":{"$error":"#REF!"}},{"$f":"[0]!dtCrop2H","v":{"$error":"#REF!"}},{"$f":"#REF!","v":{"$error":"#REF!"}},{"$f":"#REF!","v":{"$error":"#REF!"}},{"$f":"#REF!","v":{"$error":"#REF!"}},{"$f":"#REF!","v":{"$error":"#REF!"}},{"$f":"#REF!","v":{"$error":"#REF!"}},{"$f":"#REF!","v":{"$error":"#REF!"}}]
[{"$f":"#REF!","v":{"$error":"#REF!"}},{"$f":"#REF!","v":{"$error":"#REF!"}},{"$f":"#REF!","v":{"$error":"#REF!"}},{"$f":"[0]!dtCrop3","v":{"$error":"#REF!"}},{"$f":"#REF!","v":{"$error":"#REF!"}},{"$f":"IF(B75=0,\"\",#REF!)","v":{"$error":"#REF!"}},{"$f":"[0]!dtCrop3H","v":{"$error":"#REF!"}},{"$f":"#REF!","v":{"$error":"#REF!"}},{"$f":"#REF!","v":{"$error":"#REF!"}},{"$f":"#REF!","v":{"$error":"#REF!"}},{"$f":"#REF!","v":{"$error":"#REF!"}},{"$f":"#REF!","v":{"$error":"#REF!"}},{"$f":"#REF!","v":{"$error":"#REF!"}}]
[{"$f":"#REF!","v":{"$error":"#REF!"}},{"$f":"#REF!","v":{"$error":"#REF!"}},{"$f":"#REF!","v":{"$error":"#REF!"}},{"$f":"[0]!dtCrop4","v":{"$error":"#REF!"}},{"$f":"#REF!","v":{"$error":"#REF!"}},{"$f":"IF(B76=0,\"\",#REF!)","v":{"$error":"#REF!"}},{"$f":"[0]!dtCrop4H","v":{"$error":"#REF!"}},{"$f":"#REF!","v":{"$error":"#REF!"}},{"$f":"#REF!","v":{"$error":"#REF!"}},{"$f":"#REF!","v":{"$error":"#REF!"}},{"$f":"#REF!","v":{"$error":"#REF!"}},{"$f":"#REF!","v":{"$error":"#REF!"}},{"$f":"#REF!","v":{"$error":"#REF!"}}]
[{"$f":"#REF!","v":{"$error":"#REF!"}},{"$f":"#REF!","v":{"$error":"#REF!"}},{"$f":"#REF!","v":{"$error":"#REF!"}},{"$f":"[0]!dtCrop5","v":{"$error":"#REF!"}},{"$f":"#REF!","v":{"$error":"#REF!"}},{"$f":"IF(B77=0,\"\",#REF!)","v":{"$error":"#REF!"}},{"$f":"[0]!dtCrop5H","v":{"$error":"#REF!"}},{"$f":"#REF!","v":{"$error":"#REF!"}},{"$f":"#REF!","v":{"$error":"#REF!"}},{"$f":"#REF!","v":{"$error":"#REF!"}},{"$f":"#REF!","v":{"$error":"#REF!"}},{"$f":"#REF!","v":{"$error":"#REF!"}},{"$f":"#REF!","v":{"$error":"#REF!"}}]
[{"$f":"#REF!","v":{"$error":"#REF!"}},{"$f":"#REF!","v":{"$error":"#REF!"}},{"$f":"#REF!","v":{"$error":"#REF!"}},{"$f":"[0]!dtCrop6","v":{"$error":"#REF!"}},{"$f":"#REF!","v":{"$error":"#REF!"}},{"$f":"IF(B78=0,\"\",#REF!)","v":{"$error":"#REF!"}},{"$f":"[0]!dtCrop6H","v":{"$error":"#REF!"}},{"$f":"#REF!","v":{"$error":"#REF!"}},{"$f":"#REF!","v":{"$error":"#REF!"}},{"$f":"#REF!","v":{"$error":"#REF!"}},{"$f":"#REF!","v":{"$error":"#REF!"}},{"$f":"#REF!","v":{"$error":"#REF!"}},{"$f":"#REF!","v":{"$error":"#REF!"}}]
[{"$f":"#REF!","v":{"$error":"#REF!"}},{"$f":"#REF!","v":{"$error":"#REF!"}},{"$f":"#REF!","v":{"$error":"#REF!"}},{"$f":"[0]!dtCrop7","v":{"$error":"#REF!"}},{"$f":"#REF!","v":{"$error":"#REF!"}},{"$f":"IF(B79=0,\"\",#REF!)","v":{"$error":"#REF!"}},{"$f":"[0]!dtCrop7H","v":{"$error":"#REF!"}},{"$f":"#REF!","v":{"$error":"#REF!"}},{"$f":"#REF!","v":{"$error":"#REF!"}},{"$f":"#REF!","v":{"$error":"#REF!"}},{"$f":"#REF!","v":{"$error":"#REF!"}},{"$f":"#REF!","v":{"$error":"#REF!"}},{"$f":"#REF!","v":{"$error":"#REF!"}}]
[{"$f":"#REF!","v":{"$error":"#REF!"}},{"$f":"#REF!","v":{"$error":"#REF!"}},{"$f":"#REF!","v":{"$error":"#REF!"}},{"$f":"[0]!dtCrop8","v":{"$error":"#REF!"}},{"$f":"#REF!","v":{"$error":"#REF!"}},{"$f":"IF(B80=0,\"\",#REF!)","v":{"$error":"#REF!"}},{"$f":"[0]!dtCrop8H","v":{"$error":"#REF!"}},{"$f":"#REF!","v":{"$error":"#REF!"}},{"$f":"#REF!","v":{"$error":"#REF!"}},{"$f":"#REF!","v":{"$error":"#REF!"}},{"$f":"#REF!","v":{"$error":"#REF!"}},{"$f":"#REF!","v":{"$error":"#REF!"}},{"$f":"#REF!","v":{"$error":"#REF!"}}]
[{"$f":"#REF!","v":{"$error":"#REF!"}},{"$f":"#REF!","v":{"$error":"#REF!"}},{"$f":"#REF!","v":{"$error":"#REF!"}},{"$f":"[0]!dtCrop9","v":{"$error":"#REF!"}},{"$f":"#REF!","v":{"$error":"#REF!"}},{"$f":"IF(B81=0,\"\",#REF!)","v":{"$error":"#REF!"}},{"$f":"[0]!dtCrop9H","v":{"$error":"#REF!"}},{"$f":"#REF!","v":{"$error":"#REF!"}},{"$f":"#REF!","v":{"$error":"#REF!"}},{"$f":"#REF!","v":{"$error":"#REF!"}},{"$f":"#REF!","v":{"$error":"#REF!"}},{"$f":"#REF!","v":{"$error":"#REF!"}},{"$f":"#REF!","v":{"$error":"#REF!"}}]
[{"$f":"#REF!","v":{"$error":"#REF!"}},{"$f":"#REF!","v":{"$error":"#REF!"}},{"$f":"#REF!","v":{"$error":"#REF!"}},{"$f":"[0]!dtCrop10","v":{"$error":"#REF!"}},{"$f":"#REF!","v":{"$error":"#REF!"}},{"$f":"IF(B82=0,\"\",#REF!)","v":{"$error":"#REF!"}},{"$f":"[0]!dtCrop10H","v":{"$error":"#REF!"}},{"$f":"#REF!","v":{"$error":"#REF!"}},{"$f":"#REF!","v":{"$error":"#REF!"}},{"$f":"#REF!","v":{"$error":"#REF!"}},{"$f":"#REF!","v":{"$error":"#REF!"}},{"$f":"#REF!","v":{"$error":"#REF!"}},{"$f":"#REF!","v":{"$error":"#REF!"}}]
[{"$f":"#REF!","v":{"$error":"#REF!"}},{"$f":"#REF!","v":{"$error":"#REF!"}},{"$f":"#REF!","v":{"$error":"#REF!"}},{"$f":"[0]!dtCrop11","v":{"$error":"#REF!"}},{"$f":"#REF!","v":{"$error":"#REF!"}},{"$f":"IF(B83=0,\"\",#REF!)","v":{"$error":"#REF!"}},{"$f":"[0]!dtCrop11H","v":{"$error":"#REF!"}},{"$f":"#REF!","v":{"$error":"#REF!"}},{"$f":"#REF!","v":{"$error":"#REF!"}},{"$f":"#REF!","v":{"$error":"#REF!"}},{"$f":"#REF!","v":{"$error":"#REF!"}},{"$f":"#REF!","v":{"$error":"#REF!"}},{"$f":"#REF!","v":{"$error":"#REF!"}}]
[{"$f":"#REF!","v":{"$error":"#REF!"}},{"$f":"#REF!","v":{"$error":"#REF!"}},{"$f":"#REF!","v":{"$error":"#REF!"}},{"$f":"[0]!dtCrop12","v":{"$error":"#REF!"}},{"$f":"#REF!","v":{"$error":"#REF!"}},{"$f":"IF(B84=0,\"\",#REF!)","v":{"$error":"#REF!"}},{"$f":"[0]!dtCrop12H","v":{"$error":"#REF!"}},{"$f":"#REF!","v":{"$error":"#REF!"}},{"$f":"#REF!","v":{"$error":"#REF!"}},{"$f":"#REF!","v":{"$error":"#REF!"}},{"$f":"#REF!","v":{"$error":"#REF!"}},{"$f":"#REF!","v":{"$error":"#REF!"}},{"$f":"#REF!","v":{"$error":"#REF!"}}]
[null,null,null,null,null,null,null,null,null,null,null,{"$f":"C70","v":{"$error":"#REF!"}},{"$f":"SUM(M73:M84)","v":{"$error":"#REF!"}}]
["NOTES:"]
[{"$f":"A73","v":{"$error":"#REF!"}},{"$f":"#REF!","v":{"$error":"#REF!"}},null,null,null,null,null,null,null,null,null,null,null,{"$f":"B87","v":{"$error":"#REF!"}}]
[{"$f":"A74","v":{"$error":"#REF!"}},{"$f":"#REF!","v":{"$error":"#REF!"}},null,null,null,null,null,null,null,null,null,null,null,{"$error":"#REF!"}]
[{"$error":"#REF!"},{"$f":"#REF!","v":{"$error":"#REF!"}},null,null,null,null,null,null,null,null,null,null,null,{"$error":"#REF!"}]
[{"$error":"#REF!"},{"$f":"#REF!","v":{"$error":"#REF!"}},null,null,null,null,null,null,null,null,null,null,null,{"$error":"#REF!"}]
[{"$error":"#REF!"},{"$f":"#REF!","v":{"$error":"#REF!"}},null,null,null,null,null,null,null,null,null,null,null,{"$f":"B91","v":{"$error":"#REF!"}}]
[{"$error":"#REF!"},{"$f":"#REF!","v":{"$error":"#REF!"}},null,null,null,null,null,null,null,null,null,null,null,{"$f":"B92","v":{"$error":"#REF!"}}]
[{"$error":"#REF!"},{"$f":"#REF!","v":{"$error":"#REF!"}},null,null,null,null,null,null,null,null,null,null,null,{"$error":"#REF!"}]
[{"$error":"#REF!"},{"$f":"#REF!","v":{"$error":"#REF!"}},null,null,null,null,null,null,null,null,null,null,null,{"$error":"#REF!"}]
[{"$error":"#REF!"},{"$f":"#REF!","v":{"$error":"#REF!"}},null,null,null,null,null,null,null,null,null,null,null,{"$error":"#REF!"}]
[{"$error":"#REF!"},{"$f":"#REF!","v":{"$error":"#REF!"}},null,null,null,null,null,null,null,null,null,null,null,{"$error":"#REF!"}]
[{"$error":"#REF!"},{"$f":"#REF!","v":{"$error":"#REF!"}},null,null,null,null,null,null,null,null,null,null,null,{"$error":"#REF!"}]
[{"$error":"#REF!"},{"$f":"#REF!","v":{"$error":"#REF!"}},null,null,null,null,null,null,null,null,null,null,null,{"$error":"#REF!"}]
[]
[null,"NOTHING TO PRINT - Enter some crop details and try again."]

{"sheet":"CONTROL","index":5,"n_rows":45,"n_cols":10,"rows_kept":45,"cut":false,"hidden":true,"merged":[[2,0,2,4],[0,0,1,4]]}
["Before attempting to update the Crop Table - set the full path and file name for the Mater Crop Table in the cell below.",null,null,null,null,"Regional Data","Region 1","Region 2","Region 3","Region 4"]
[null,null,null,null,null,"Wide Bay","Burdekin","Wide Bay","Inland Burnett","NSW North Coast"]
["/Users/cindybenjamin/Documents/1clients/9one-off jobs /PulseCheck2/break crop tool/PC-decision support-rotation planner-Master Crop Table.xlsm",null,null,null,null,{"$f":"HLOOKUP(MRegion,tblMasterRD[],ROW()-1,FALSE)","v":"Break crop sequence planner"},"Break crop sequence planner","Break crop sequence planner","Break crop sequence planner","Break crop sequence planner"]
["Months","Years","Growing Period","Show/Hide","Sheet Names",{"$f":"HLOOKUP(MRegion,tblMasterRD[],ROW()-1,FALSE)","v":"For the period between major crops (12, 24 or 36 months)"},"For the period between Cane crops (12, 24 or 36 months)","For the period between major crops (12, 24 or 36 months)","For the period between major crops (12, 24 or 36 months)","For the period between major crops (12, 24 or 36 months)"]
["Jan",2010,"Summer","Show","Block 1-",{"$f":"HLOOKUP(MRegion,tblMasterRD[],ROW()-1,FALSE)","v":"Crop"},"Cane Crop","Crop","Crop","Cane Crop"]
["Feb ",{"$f":"B5+1","v":2011},"Spring","Hide",null,{"$f":"HLOOKUP(MRegion,tblMasterRD[],ROW()-1,FALSE)","v":"Colour 1"},"Colour 1","Colour 1","Colour 1","Colour 1"]
["Mar",2012,"Dry",null,null,{"$f":"HLOOKUP(MRegion,tblMasterRD[],ROW()-1,FALSE)","v":"Colour 2"},"Colour 2","Colour 2","Colour 2","Colour 2"]
["Apr",2013]
["May",2014,null,"Next Sheet #",null,"Crop Type","Crop Type R1","Crop Type R2","Crop Type R3","Crop Type R4"]
["Jun",2015,null,2,null,{"$f":"INDEX(G10:J10,,MATCH(MRegion,$G$2:$J$2,0))","v":"Chickpea"},"Manure / Fallow","Chickpea","Chickpea","Manure / Fallow"]
["Jul",2016,null,null,null,{"$f":"INDEX(G11:J11,,MATCH(MRegion,$G$2:$J$2,0))","v":"Field pea"},"Mungbean","Field pea","Field pea","Other"]
["Aug",2017,null,"Current Region",null,{"$f":"INDEX(G12:J12,,MATCH(MRegion,$G$2:$J$2,0))","v":"Manure / Fallow"},"Other","Manure / Fallow","Manure / Fallow","Other grains"]
["Sep",2018,null,"Wide Bay",null,{"$f":"INDEX(G13:J13,,MATCH(MRegion,$G$2:$J$2,0))","v":"Mungbean"},"Other grains","Mungbean","Mungbean","Small crops"]
["Oct",2019,null,"Current Crop Table",null,{"$f":"INDEX(G14:J14,,MATCH(MRegion,$G$2:$J$2,0))","v":"Other"},"Peanut","Other","Other","Soybean"]
["Nov",2020,null,"Wide Bay",null,{"$f":"INDEX(G15:J15,,MATCH(MRegion,$G$2:$J$2,0))","v":"Other grains"},"Small crops","Other grains","Other grains"]
["Dec",2021,null,null,null,{"$f":"INDEX(G16:J16,,MATCH(MRegion,$G$2:$J$2,0))","v":"Peanut"},"Soybean","Peanut","Peanut"]
[null,{"$f":"B16+1","v":2022},null,null,null,{"$f":"INDEX(G17:J17,,MATCH(MRegion,$G$2:$J$2,0))","v":"Small crops"},null,"Small crops","Soybean"]
[null,2023,null,null,null,{"$f":"INDEX(G18:J18,,MATCH(MRegion,$G$2:$J$2,0))","v":"Soybean"},null,"Soybean"]
[null,2024]
[null,2025]
[null,2026]
[null,2027]
[null,2028]
[null,2029]
[null,2030]
[null,2031]
[null,2032]
[null,2033]
[null,2034]
[null,2035]
[null,{"$f":"B30+1","v":2036}]
[null,2037]
[null,2038]
[null,2039]
[null,2040]
[null,2041]
[null,2042]
[null,2043]
[null,2044]
[null,2045]
[null,2046]
[null,2047]
[null,2048]
[null,2049]
[null,2050]